Workbook

Sheet RCS-2 Contents
A3: Florida Power & Light Company
A4: Docket No. 160021-EI
A5: Exhibit RCS-2
A6: Accompanying the Direct Testimony of Ralph Smith | R6: Schedule | T6: Exhibit LA-1
A7: Revenue Requirement Schedules - January 2017 Rate Change
A8: CONTENTS
A9: Schedule Number | B9: Description | C9: No. of Pages | D9: Confi- dential | E9: Page No. | K9: Begin | L9: End | N9: Range
K10: 1 | M10: -
A11: =G11 -> A-1 | B11: Calculation of Revenue Deficiency (Sufficiency) | C11: 1 | D11: No | E11: =N11 -> 2 | G11: A-1 | K11: 2 | L11: =K10+C11 -> 2 | M11: - | N11: =IF(K11=L11,L11,K11&M11&L11) -> 2 | R11: =$R$6&A11 -> Schedule A-1
A12: B-1 | B12: Adjusted Rate Base | C12: 2 | D12: No | E12: =N12 -> 3-4 | G12: B-1 | K12: =L11+1 -> 3 | L12: =L11+C12 -> 4 | M12: - | N12: 3-4 | R12: Schedule B-1
A13: B-2 | B13: Plant Held for Future Use | C13: 2 | D13: No | E13: 5-6 | G13: B-2 | K13: =L12+1 -> 5 | L13: =L12+C13 -> 6 | M13: - | N13: 5-6 | R13: Schedule B-2
A14: C-1 | B14: Adjusted Net Operating Income | C14: 2 | D14: No | E14: 7-8 | G14: C-1 | K14: 7 | L14: 8 | M14: - | N14: 7-8 | R14: Schedule C-1
A15: C-2 | B15: ='SchC-2'!$A$6 -> Rate Case Expense | C15: 1 | D15: No | E15: 9 | G15: C-2 | K15: 9 | L15: 9 | M15: - | N15: 9 | R15: Schedule C-2
A16: C-3 | B16: =#REF! ->  | C16: 1 | D16: No | E16: 10 | G16: C-3 | K16: =L15+1 -> 10 | L16: =L15+C16 -> 10 | M16: - | N16: =IF(K16=L16,L16,K16&M16&L16) -> 10 | R16: Schedule C-3
A17: C-4 | B17: ='SchC-4'!$A$6 -> Income Tax Expense - Impact of Other Adjustments | C17: 1 | D17: No | E17: 11 | G17: C-4 | K17: 11 | L17: 11 | M17: - | N17: 11 | R17: Schedule C-4
A18: C-5 | B18: ='SchC-5'!$A$6 -> Interest Synchronization Adjustment | C18: 1 | D18: No | E18: 12 | G18: C-5 | K18: 12 | L18: 12 | M18: - | N18: 12 | R18: Schedule C-5
A19: C-6 | B19: Revenue at Current Rates - Adjustment for Sales Forecast | C19: 1 | D19: No | E19: 13 | K19: =L18+1 -> 13 | L19: =L18+C19 -> 13 | M19: - | N19: =IF(K19=L19,L19,K19&M19&L19) -> 13 | R19: =$R$6&A19 -> Schedule C-6
A20: C-7 | B20: Depreciation Expense - New Depreciation Rates | C20: 1 | D20: No | E20: 14 | K20: 14 | L20: 14 | M20: - | N20: 14 | R20: Schedule C-7
A21: D | B21: Capital Structure and Cost Rates | C21: 1 | D21: No | E21: 15 | G21: D | K21: 15 | L21: 15 | M21: - | N21: 15 | R21: Schedule D
A22: E | B22: Summary of FPL's May 3, 2016 Notice of Filing Adjustments | C22: 3 | D22: No | E22: =N22 -> 16-18 | K22: =L21+1 -> 16 | L22: =L21+C22 -> 18 | M22: - | N22: =IF(K22=L22,L22,K22&M22&L22) -> 16-18 | R22: =$R$6&A22 -> Schedule E
A23: F | B23: Summary of FPL's June 16, 2016 Second Notice of Filing Adjustments | C23: 3 | D23: No | E23: 19-21 | K23: 19 | L23: 21 | M23: - | N23: 19-21 | R23: Schedule F
B25: Total Pages (including Contents page) | C25: =SUM(C11:C24)+1 -> 21

Sheet SchA-1
A1: Schedule A-1 | G1: Docket No: 160021-EI
G2: January 2017 Rate Change
A3: Florida Power & Light Company | G3: Exhibit No. RCS-2
A4: Projected Test Year Ended December 31, 2017
A6: Revenue Requirement
A7: (Thousands of Dollars)
E8: Per | G8: Per
A9: Line | E9: Company | G9: OPC | I9: Col. (B)
A10: No. | C10: Description | E10: Amount | G10: Amount | I10: Reference | K10: workpaper calcs
E11: (A) | G11: (B)
A13: 1 | C13: Jurisdictional Adjusted Rate Base | E13: ='SchB-1p1'!E29 -> 32536116 | G13: ='SchB-1p1'!O29 -> 32725586.55 | I13: Exh. RCS-2, Sch. B-1
A14: 2 | C14: Required Rate of Return | E14: =SchD!$S$21 -> 0.06606867273 | G14: =SchD!S31 -> 0.05048697943 | I14: Exh. RCS-2, Sch. D | K14: =E16 -> 2149618 | L14: Required NOI
K15: =E13 -> 32536116 | L15: RB
A16: 3 | C16: Jurisdictional Income Required | E16: 2149618 | G16: =G13*G14 -> 1652216.015 | I16: Line 1 x Line 2 | K16: =E16/E13 -> 0.06606867273
A17: 4 | C17: Jurisdictional Adj. Net Operating Income | E17: =ROUND(SchC1p1!$E$31,0) -> 1618192 | G17: =ROUND(SchC1p1!$O$31,0) -> 2147370 | I17: Exh. RCS-2, Sch. C-1 | K17: =SUM(SchD!S14:S20) -> 0.06607796651
K18: =K16-K17 -> -9.293779127e-06
A19: 5 | C19: Income Deficiency (Sufficiency) | E19: =E16-E17+1 -> 531427 | G19: =G16-G17 -> -495153.985 | I19: Line 3 - Line 4
A21: 6 | C21: Earned Rate of Return | E21: =E17/E13 -> 0.0497352542 | G21: =G17/G13 -> 0.06561746408 | I21: Line 4 / Line 1
A23: 7 | C23: Net Operating Income Multiplier | E23: 1.63024 | G23: 1.63025 | I23: See below
A25: 8 | C25: Revenue Deficiency (Sufficiency) | E25: =ROUND(E19*E23,0) -> 866354 | G25: =ROUND(G19*G23,0) -> -807225 | I25: Line 5 x Line 7 | K25: =G25-E25 -> -1673579
A28: Source/Notes:
A29: Col. (A): MFR Schedule A-1
A30: Line 7: | C30: MFR Sch. A-1 and C-44
A31: Col. (B), Line 7: FPL's May 3, 2016 Notice of Identified Adjustments, Item No. 5, NOI Multiplier

Sheet SchB-1p1
A1: Schedule B-1, page 1 of 2 | O1: Docket No: 160021-EI
O2: ='SchA-1'!G2 -> January 2017 Rate Change
A3: Florida Power & Light Company | O3: ='SchA-1'!G3 -> Exhibit No. RCS-2
A4: Projected Test Year Ended December 31, 2017
A6: Adjusted Rate Base
A7: (Thousands of Dollars)
E9: Adjusted | K9: Amounts | O9: Adjusted
E10: Juris. Total | G10: FPL May 3, 2016 | I10: FPL June 15, 2016 | K10: Before | O10: Juris. Total
A11: Line | E11: Amount per | G11: Notice of | I11: Second Notice of | K11: OPC | M11: OPC | O11: Amount
A12: No. | C12: Rate Base Components | E12: Company | G12: Filing Adjustments | I12: Filing Adjustments | K12: Adjustments | M12: Adjustments | O12: per OPC
E13: (A) | G13: (B) | I13: (C) | K13: (D) | M13: (E) | O13: (F)
A15: 1 | C15: Plant in Service | E15: 43122297 | K15: =SUM(E15:J15) -> 43122297 | M15: =ROUND('SchB-1p2'!$K$15,0) -> -31546 | O15: =K15+M15 -> 43090751
A16: 2 | C16: Accumulated Depreciation & Amortization | E16: -13074538 | G16: ='Ep1'!$G$16 -> 690.1085318 | I16: ='Fp1'!$G$16 -> 10669.32933 | K16: =SUM(E16:J16) -> -13063178.56 | M16: =-ROUND('SchB-1p2'!$K$23,0) -> 233827 | O16: =K16+M16 -> -12829351.56
A18: 3 | C18: Net Plant in Service | E18: =E15+E16 -> 30047759 | G18: =G15+G16 -> 690.1085318 | I18: =I15+I16 -> 10669.32933 | K18: =K15+K16 -> 30059118.44 | M18: =M15+M16 -> 202281 | O18: =O15+O16 -> 30261399.44
A20: 4 | C20: Construction Work in Progress | E20: 747987 | K20: =SUM(E20:J20) -> 747987 | O20: =K20+M20 -> 747987
A21: 5 | C21: Plant Held For Future Use | E21: 233315 | K21: 233315 | M21: ='SchB-1p2'!K29 -> -14228 | O21: 219087
A22: 6 | C22: Nuclear Fuel | E22: 630075 | K22: 630075 | O22: 630075
A24: 7 | C24: Total Net Plant | E24: =SUM(E18:E22) -> 31659136 | G24: =SUM(G18:G22) -> 690.1085318 | I24: =SUM(I18:I22) -> 10669.32933 | K24: =SUM(K18:K22) -> 31670495.44 | M24: =SUM(M18:M22) -> 188053 | O24: =SUM(O18:O22)+1 -> 31858549.44
A26: 8 | C26: Working Capital Allowance | E26: 876981 | G26: ='Ep1'!$G$26 -> -6410.734648 | I26: ='Fp1'!$G$26 -> 775.850121 | K26: =SUM(E26:J26) -> 871346.1155 | M26: =ROUND('SchB-1p2'!$K$34,0) -> -4309 | O26: =K26+M26 -> 867037.1155
A27: 9 | C27: Other Rate Base Items | E27: 0 | O27: =SUM(E27:M27) -> 0
A29: 10 | C29: Total Rate Base | E29: =SUM(E24:E27)-1 -> 32536116 | G29: =SUM(G24:G27) -> -5720.626116 | I29: =SUM(I24:I27) -> 11445.17945 | K29: =SUM(K24:K27) -> 32541841.55 | M29: =SUM(M24:M27) -> 183744 | O29: =SUM(O24:O27) -> 32725586.55
A31: Source/Notes:
A32: Col. (A): Company MFR Schedule B-1
A33: Col. (B): Company May 3, 2016 Notice of Filing Adjustments. Also see Exhibit RCS-2, Schedule E, page 1
A34: Col. (C): Company June 16, 2016 Second Notice of Filing Adjustments. Also see Exhibit RCS-2, Schedule F
A35: Col. (D): Sum of columns A, B and C
A36: Col. (E): See Exhibit RCS-2, Schedule B-1, page 2
A37: Col. (F): Sum of columns D and E

Sheet SchB-1p2
A1: Schedule B-1, page 2 of 2 | K1: Docket No: 160021-EI
K2: ='SchA-1'!G2 -> January 2017 Rate Change
A3: Florida Power & Light Company | K3: ='SchA-1'!G3 -> Exhibit No. RCS-2
A4: Projected Test Year Ended December 31, 2017
A6: Adjusted Rate Base-Summary of Adjustments
A7: (Thousands of Dollars)
I9: Jurisdictional
A10: Line | G10: OPC | I10: Separation | K10: Jurisdictional
A11: No. | C11: Adjustment Title | E11: Reference (a) | G11: Adjustments | I11: Factor | K11: Amount
C13: Plant in Service Adjustments:
A14: 1 | C14: Storm Hardening | E14: Exhibit HWS-9 | G14: -31546 | I14: 1 | K14: =ROUND(G14*I14,0) -> -31546
A15: =A14+1 -> 2 | C15: Total Plant in Service | G15: =SUM(G14:G14) -> -31546 | K15: =SUM(K14:K14) -> -31546
A16: =A15+1 -> 3
A17: 4
A18: 5 | C18: Accumulated Depreciation Adjustments:
A19: 6 | C19: OPC's Adjustment to New Depreciation Rates for 2017 | E19: Exh. RCS-2, Sch. C-7 | K19: =ROUND(G19*I19,0) -> 0
A20: 7 | C20: Depreciation Expense | E20: [1/2 Depr'n Exp. Adj.] | G20: =SchC1p2!$Q$39/2 -> -146314.239 | I20: 0.891838 | K20: =ROUND(G20*I20,0) -> -130489
A21: 8 | C21: Depreciation Reserve Excess | E21: [1/2 of first year amort] | G21: =SchC1p2!$Q$40/2 -> -115390.8342 | I21: 0.891838 | K21: -102910
A22: 9 | C22: Storm Hardening | E22: Exhibit HWS-9 | G22: -428 | I22: 1 | K22: -428
A23: 10 | C23: Total Accumulated Depreciation | G23: =SUM(G19:G22) -> -262133.0732 | K23: =SUM(K19:K22) -> -233827
A24: 11
A25: 12
A26: 13 | C26: Plant Held for Future Use:
A27: 14 | C27: Reduction to Transmission PHFFU | E27: Exh. RCS-2, Sch. B-2 | G27: =SchB2!$E15/1000 -> -4637.31542 | I27: =SchB2!G15 -> 0.90224 | K27: =ROUND(G27*I27,0) -> -4184
A28: 15 | C28: Reduction to Distributon PHFFU | E28: Exh. RCS-2, Sch. B-2 | G28: =SchB2!$E16/1000 -> -10043.80165 | I28: =SchB2!G16 -> 1 | K28: =ROUND(G28*I28,0) -> -10044
A29: 16 | C29: Total Plant Held for Future Use | G29: =SUM(G27:G28) -> -14681.11707 | K29: =SUM(K27:K28) -> -14228
A30: 17
A31: 18 | C31: Working Capital Adjustments
A32: 19 | C32: Adjustment to Working Capital | E32: Exhibit HWS-11 | I32: Various
A33: 20 | C33: Remove Unamortized Rate Case Expense | E33: Smith Testimony | G33: -4309 | I33: 1 | K33: =ROUND(G33*I33,0) -> -4309
A34: 21 | C34: Total Working Capital | G34: =SUM(G32:G33) -> -4309 | K34: =SUM(K32:K33) -> -4309
C36: Notes:
C37: Jurisdictional Separation Factors from FPL's MFR Schedule B-6.
C38: (a) References beginning with Exh. HWS refer to exhibits presented with the testimony of Helmuth W. Schultz, III.

Sheet SchB2
A1: Schedule B-2, page 1 of 2 | I1: ='SchA-1'!G1 -> Docket No: 160021-EI
I2: ='SchA-1'!G2 -> January 2017 Rate Change
A3: Florida Power & Light Company | I3: ='SchA-1'!G3 -> Exhibit No. RCS-2
A4: Projected Test Year Ended December 31, 2017
A6: Reduction to Plant Held For Future Use (PHFFU)
A7: Plant Held for Future Use Adjustment 2017 Test Year
E10: Test Year | G10: Test Year | I10: Test Year
A11: Line | E11: 2017 | G11: Jurisdictional | I11: Jurisdictional
A12: No. | C12: Description | E12: 13 Month Average | G12: Factor | I12: Amount
E13: (A) | G13: (B) | I13: (C)
A15: 1 | C15: Transmission | E15: -4637315.42 | G15: 0.90224 | I15: =E15*G15 -> -4183971.465
A16: =A15+1 -> 2 | C16: Distribution | E16: -10043801.65 | G16: 1 | I16: =E16*G16 -> -10043801.65
A17: =A16+1 -> 3 | C17: Total Adjustment | E17: =SUM(E15:E16) -> -14681117.07 | I17: =SUM(I15:I16) -> -14227773.11
B22: Notes and Source:
B23: See Schedule B-2, Exhibit RCS-2, page 2 for detail
B24: Col. B: FPL MFR Schedule B-15

Sheet B2p2
A2: Schedule B-2, page 2 of 2 | I2: Docket No. 16-0021-EI
I3: January 2017 Rate Change
A4: Florida Power & Light Company | I4: Exhibit No. RCS-2
A5: Projected Test Year Ended December 31, 2017 and Subsequent Year Ended December 31, 2018
A6: Plant Held for Future Use with Estimated In-Service Dates Beyond 2026
A7: Line No. | B7: Property Name | C7: Cost | D7: Test Year 2017 13 mo avg. | E7: Sub Year 2018 13 mo avg. | F7: Description | G7: Purchase Date | H7: Expected In Service Date | I7: Date Recorded in account 105
B9: TRANSMISSION FUTURE USE
A10: 1 | B10: GALLOWAY-SOUTH MIAMI LOOP TO S WEST SUB | C10: 1834049.69 | D10: 1834049.69 | E10: 1834049.69 | F10: GALLOWAY-SOUTH MIAMI LOOP TO SOUTHWEST SUBSTATION. SECTION 14 & 23 TOWNSHIP | G10: 2005-10-01 | H10: 2027-06-01 | I10: 2005/10
A11: =A10+1 -> 2 | B11: HARBOR PUNTA GORDA #2 - ACQ EASEMENTS | C11: 738482.93 | D11: 738482.93 | E11: 738482.93 | F11: ACQUIRED APPROX. 2 MILES OF TRANSMISSION RIGHT OF WAY FOR THE HARBOR-PUNTA GORDA #2 LINE. SECTION 6, TOWNSHIP 41, RANGE 23 AND SECTION 36, TOWNSHIP 40, RANGE 22 | G11: 2008-09-01 | H11: 2027-12-01 | I11: 2008/9
A12: =A11+1 -> 3 | B12: RIMA SUB & RIMA-VOLUSIA 230KV R/W LINE | C12: 619861 | D12: 619861 | E12: 619861 | F12: RIMA SUB & RIMA-VOLUSIA 230 KV LINE ACQ RE-OPEN | G12: 1988-10-01 | H12: 2028-12-01 | I12: 1988/10
A13: 4 | B13: TURKEY POINT-LEVEE (LEVEE-SOUTH DADE) | C13: 1444921.8 | D13: 1444921.8 | E13: 1444921.8 | F13: TURKEY POINT-ANDYTOWN-ACQUIRE RIGHT-OF-WAY FOR EHV | G13: 1977-07-01 | H13: 2027-12-01 | I13: 1977/7
A14: 5 | B14: Total Transmission Future Use | C14: =SUM(C10:C13) -> 4637315.42 | D14: =SUM(D10:D13) -> 4637315.42 | E14: =SUM(E10:E13) -> 4637315.42
A15: 6
A16: 7
A17: 8 | B17: DISTRIBUTION FUTURE USE
A18: 9 | B18: ARIEL SUBSTATION - ACQ SITE | C18: 774059.75 | D18: 774059.75 | E18: 774059.75 | F18: VOLUSIA COUNTY - SECTION 24, TOWNSHIP 18 S, RANGE 34 E. ACQUIRE APPROXIMATELY 3.65 +/- ACRES OF LAND IN VOLUSIA COUNTY FOR ARIEL SUBSTATION | G18: 2008-04-01 | H18: 2028-12-01 | I18: 2008/5
A19: 10 | B19: CHESTER SUBSTATION | C19: 374695.16 | D19: 374695.16 | E19: 374695.16 | F19: NASSAU COUNTY 25-N2-28 | G19: 1994-07-01 | H19: 2028-12-01 | I19: 2004/2
A20: 11 | B20: DEERWOOD SUBSTATION - ACQUIRE SITE | C20: 787349.06 | D20: 787349.06 | E20: 787349.06 | F20: SECTIONS 28, 29, TOWNSHIP 7, RANGE 29, ST. JOHNS COUNTY. ACQUIRE APPROXIMATELY 22.6 ACRES | G20: 2006-01-01 | H20: 2028-12-01 | I20: 2006/1
A21: 12 | B21: ELY SUBSTATION EXPANSION | C21: 507655.71 | D21: 507655.71 | E21: 507655.71 | F21: SECTION 35, TOWNSHIP 48S, RANGE 42E, BROWARD COUNTY. ACQUIRE APPROXIMATELY 2.18 ACRES OF PROPERTY | G21: 1967-07-01 | H21: 2028-12-01 | I21: 2002/2
A22: 13 | B22: HARGROVE SUBSTATION - ACQUIRE SITE | C22: 866414.75 | D22: 866414.75 | E22: 866414.75 | F22: ACQUIRE APPROXIMATELY 5.78 ACRES OF LAND FOR THE HARGROVE SUBSTATION IN FLAGLER COUNTY. SECTION 16, TOWNSHIP 11S, RANGE 30E, FLAGLER COUNTY | G22: 2005-03-01 | H22: 2028-12-01 | I22: 2005/6
A23: 14 | B23: MINTON SUBSTATION - ACQ SITE (FKA HENRY) | C23: 1000545.13 | D23: 1000545.13 | E23: 1000545.13 | F23: MINTON SUBSTATION - ACQ SITE (FKA HENRY): SECTION 12, TOWNSHIP 28 S, RANGE 36E | G23: 2003-07-01 | H23: 2028-12-01 | I23: 2004/2
A24: 15 | B24: PACETTI | C24: 204487.15 | D24: 204487.15 | E24: 204487.15 | F24: 4.76 ACRES IN SECTION 38, T6S, R28E, ST. JOHNS COUNTY, NEAR THE INTERSECTION OF NINE MILE ROAD AND I-95 IN NORTHWESTERN ST. AUGUSTINE. | G24: 1994-03-01 | H24: 2028-12-01 | I24: 1994/3
A25: 16 | B25: SARTORI | C25: 117958.01 | D25: 117958.01 | E25: 117958.01 | F25: 6.63 ACRES IN SECTION 7, T30S, R37E, BREVARD COUNTY. | G25: 1994-09-01 | H25: 2028-12-01 | I25: 1994/10
A26: 17 | B26: SPEEDWAY SUBSTATION (FORMERLY PELICAN) | C26: 520184.92 | D26: 520184.92 | E26: 520184.92 | F26: SECTION 2, TOWNSHIP 16, RANGE 32, VOLUSIA COUNTY. ACQUIRE APPROXIMATELY 5 ACRES OF LAND IN VOLUSIA COUNTY FOR THE PELICAN SUBSTATION. PER MEIER WISE ON 11-08-04 SUBSTATION NAME CHANGE FROM PELICAN TO SPEEDWAY. | G26: 2001-10-01 | H26: 2028-12-01 | I26: 2002/2
A27: 18 | B27: TIMUCAN SUBSTATION - ACQUIRE SITE | C27: 1714138.05 | D27: 1714138.05 | E27: 1714138.05 | F27: TIMUCAN SUBSTATION - ACQUIRE SITE. SECTION 10, TOWNSHIP 35 | G27: 2005-07-01 | H27: 2028-12-01 | I27: 2005/8
A28: 19 | B28: TOWNSHIP | C28: 14519.7 | D28: 14519.7 | E28: 14519.7 | F28: APPROXIMATELY FOUR ACRES IN THE SE 1/4 OF SECTION 36, T28S, R37E, BREVARD COUNTY. | G28: 1973-04-01 | H28: 2028-12-01 | I28: 1973/10
A29: 20 | B29: PENNSUCCO EXPANSION OF TRANS SUB | C29: 1580143.06 | D29: 1580143.06 | E29: 1580143.06 | F29: ACQUIRE APPROXIMATELY 2.27 ACRES OF LAND IN DADE COUNTY FOR PENNSUCCO SUBSTATION EXPANSION. SECTION 31; TOWNSHIP 52S, RANGE 40E. | G29: 2010-01-01 | H29: 2027-06-01 | I29: 2010/12
A30: 21 | B30: VERMONT SUBSTATION-ACQUIRE SITE | C30: 702668.28 | D30: 702668.28 | E30: 702668.28 | F30: S9, T8S, R29E, ST JOHNS COUNTY. ACQUIRE APPROXIMATELY 4.2 ACRES OF LAND FOR THE VERMONT SUBSTATION IN ST. JOHNS COUNTY. | G30: 2005-06-01 | H30: 2028-12-01 | I30: 2005/7
A31: 22 | B31: CHALLENGER (formerly Harrison St Sub) | C31: 251660.71 | D31: 251660.71 | E31: 251660.71 | F31: 2.2 ACRES IN SECTION 9, T22S, R35E, BREVARD COUNTY. 36000 - LAND & LAND RIGHTS 36100 - STRUCTURES & IMPROVEMENTS 36200 - STATION EQUIPMENT | G31: 1970-02-01 | H31: 2028-12-01 | I31: 1994/11
A32: 23 | B32: SOUTHWEST SUB-ACQUIRE ADTNL PROPERTY | C32: 627322.21 | D32: 627322.21 | E32: 627322.21 | F32: S14, T54S, R40E, MIAMI DADE COUNTY. ACQUIRE APPROXIMATELY 0.49 ACRES OF ADDITIONAL PROPERTY. 36000 - LAND & LAND RIGHTS 36100 - STRUCTURES & IMPROVEMENTS 36200 - STATION EQUIPMENT | G32: 2004-08-01 | H32: 2028-12-01 | I32: 2004/9
A33: 24 | B33: Total Distribution Future Use | C33: =SUM(C18:C32) -> 10043801.65 | D33: =SUM(D18:D32) -> 10043801.65 | E33: =SUM(E18:E32) -> 10043801.65
A34: 25
A35: 26 | B35: TOTAL PROPERTY HELD FOR FUTURE USE BEYOND 2026 | C35: =C33+C14 -> 14681117.07 | D35: =D33+D14 -> 14681117.07 | E35: =E33+E14 -> 14681117.07
B37: Source:
B38: OPC's Second Interrogatory No. 105. Attachment No. 1

Sheet SchC1p1
A1: Schedule C-1, page 1 of 2 | O1: Docket No: 160021-EI
O2: ='SchA-1'!G2 -> January 2017 Rate Change
A3: Florida Power & Light Company | O3: ='SchA-1'!G3 -> Exhibit No. RCS-2
A4: Projected Test Year Ended December 31, 2017
A6: Adjusted Net Operating Income
A7: (Thousands of Dollars)
E9: Adjusted | K9: Amounts | O9: Adjusted
E10: Jurisdictional | G10: FPL May 3, 2016 | I10: FPL June 15, 2016 | K10: Before | O10: Juris. Total
A11: Line | E11: Total per | G11: Notice of | I11: Second Notice of | K11: OPC | M11: OPC | O11: Amount
A12: No. | C12: Description | E12: Company | G12: Filing Adjustments | I12: Filing Adjustments | K12: Adjustments | M12: Adjustments | O12: per OPC
E13: (A) | G13: (B) | I13: (C) | K13: (D) | M13: (E) | O13: (F)
C14: Operating Revenues:
A15: 1 | C15: Revenue From Sales | E15: 5728329 | G15: ='Ep2'!$G$14 -> 4903.899 | I15: ='Fp2'!$G$14 -> 715 | K15: =SUM(E15:I15) -> 5733947.899 | M15: =SchC1p2!$K$17 -> 201596 | O15: =K15+M15 -> 5935543.899
A16: 2 | C16: Other Operating Revenues | E16: 193876 | G16: ='Ep2'!$G$15 -> -978.604 | K16: =SUM(E16:I16) -> 192897.396 | O16: =K16+M16 -> 192897.396
A18: 3 | C18: Total Operating Revenues | E18: =SUM(E15:E17) -> 5922205 | G18: =SUM(G15:G17) -> 3925.295 | I18: =SUM(I15:I17) -> 715 | K18: =SUM(K15:K17) -> 5926845.295 | M18: =SUM(M15:M17) -> 201596 | O18: =SUM(O15:O17) -> 6128441.295
C20: Operating Expenses:
A21: 4 | C21: Other Operation & Maintenance | E21: 1330140 | G21: ='Ep2'!$G$20 -> -3632.455807 | I21: ='Fp2'!$G$20 -> -19.02787572 | K21: =SUM(E21:I21) -> 1326488.516 | M21: =SchC1p2!K30 -> -58534 | O21: =K21+M21 -> 1267954.516
A22: 5 | C22: Fuel & Interchange | E22: 24466 | K22: 24466 | O22: 24466
A23: 6 | C23: Purchased Power | E23: 0 | K23: 0 | O23: 0
A24: 7 | C24: Deferred Costs | E24: 0 | K24: 0 | O24: 0
A25: 8 | C25: Depreciation & Amortization | E25: 1665925 | G25: ='Ep2'!$G$24 -> -1380.271187 | I25: ='Fp2'!$G$24 -> -21824.17412 | K25: 1642720.555 | M25: =SchC1p2!K45 -> -502157 | O25: 1140563.555
A26: 9 | C26: Taxes Other Than Income Taxes | E26: 578191 | K26: 578191 | M26: =SchC1p2!K50 -> -2887 | O26: 575304
A27: 10 | C27: Income Taxes | E27: 711051 | G27: ='Ep2'!$G$26 -> 3479.117167 | I27: ='Fp2'!$G$26 -> 8639.254583 | K27: 723169.3717 | M27: =SchC1p2!K55 -> 255373 | O27: 978542.3717
A28: 11 | C28: (Gain)/Loss on Disposal of Plant | E28: -5759 | K28: -5759 | O28: -5759
A29: 12 | C29: Total Operating Expenses | E29: =SUM(E21:E28)-1 -> 4304013 | G29: =SUM(G21:G28) -> -1533.609828 | I29: =SUM(I21:I28) -> -13203.94741 | K29: =SUM(K21:K28) -> 4289276.443 | M29: =SUM(M21:M28) -> -308205 | O29: =SUM(O21:O28) -> 3981071.443
A31: 13 | C31: Net Operating Income | E31: =E18-E29 -> 1618192 | G31: =G18-G29 -> 5458.904828 | I31: =I18-I29 -> 13918.94741 | K31: =K18-K29 -> 1637568.852 | M31: =M18-M29 -> 509801 | O31: =O18-O29 -> 2147369.852
A34: Source/Notes
A35: Col.(A): Per Company amounts are from FPL MFR Schedule C-1
A36: Col. (B): Company May 3, 2016 Notice of Filing Adjustments. Also see Exhibit RCS-2, Schedule E, page 2
A37: Col. (C): Company June 16, 2016 Second Notice of Filing Adjustments. Also see Exhibit RCS-2, Schedule F
A38: Col. (D): Sum of columns A, B and C
A39: Col. (E): See Exhibit RCS-2, Schedule C-1, page 2
A40: Col. (F): Sum of columns D and E

Sheet SchC1p2
A1: Schedule C-1, page 2 of 2 | K1: Docket No: 160021-EI
K2: ='SchA-1'!G2 -> January 2017 Rate Change
A3: Florida Power & Light Company | K3: ='SchA-1'!G3 -> Exhibit No. RCS-2
A4: Projected Test Year Ended December 31, 2017
A6: Net Operating Income-Summary of Adjustments
A7: (Thousands of Dollars)
I10: Jurisdictional
A11: Line | G11: Total | I11: Separation | K11: Jurisdictional
A12: No. | C12: Adjustment Title | E12: Reference (a) | G12: Adjustment | I12: Factor | K12: Amount
C14: Revenue at Current Rates
A15: 1 | C15: Revenue at Current Rates - Sales Forecast Adjustment | E15: Dismukes Testimony | G15: ='C-6'!E15 -> 206500 | I15: 1 | K15: =ROUND(G15*I15,0) -> 206500
A16: =A15+1 -> 2 | C16: less amount in FPL Corrections | E16: Exh. RCS-2, Sch. C-6 | G16: =-'C-6'!$E$16 -> -4903.899 | I16: 1 | K16: =ROUND(G16*I16,0) -> -4904
A17: =A16+1 -> 3 | C17: subtotal | G17: =SUM(G15:G16) -> 201596.101 | K17: =SUM(K15:K16) -> 201596
A18: 4
A19: 5 | C19: Other Operating and Maintenance Expense
A20: 6 | C20: Rate Case Expense | E20: Exh. RCS-2, Sch. C-2 | G20: ='SchC-2'!I19 -> -326 | I20: 1 | K20: =ROUND(G20*I20,0) -> -326
A21: 7 | C21: 2017 Employee Count Adjustment | E21: Exh. HWS-2 | G21: -17743 | I21: 0.967454 | K21: =ROUND(G21*I21,0) -> -17166
A22: =A21+1 -> 8 | C22: 2017 Employee Incentive Compensation Adjustment | E22: Exh. HWS-3 | G22: -28216 | I22: 0.967467 | K22: =ROUND(G22*I22,0) -> -27298
A23: 9 | C23: Benefit Expense Adjustment | E23: Exh. HWS-4 | G23: -2681 | I23: 0.968169 | K23: =ROUND(G23*I23,0)+1 -> -2595
A24: 10 | C24: Distribution Vegetative Mgt. - Tree Trimming | E24: Exh. HWS-6 | G24: -4647 | I24: 1 | K24: -4647
A25: 11 | C25: Pole Inspection Expense | E25: Exh. HWS-7 | G25: -1664 | I25: 0.999358 | K25: -1663
A26: 12 | C26: Directors & Officers Liability Insurance | E26: Exh. HWS-8 | G26: -1391 | I26: 0.984797 | K26: =ROUND(G26*I26,0)+1 -> -1369
A27: 13
A28: 14 | C28: Uncollectible Expense - on Revenue Adjustment | E28: Exh. RCS-2, Sch. C-6 | G28: ='C-6'!$E$22 -> 133.0534267 | I28: 1 | K28: 133
A29: 15 | C29: Generation Overhaul Expense Normalization | E29: Exh. RCS-2, Sch. C-3 | G29: ='C-3'!$M$33/1000 -> -3803.318631 | I29: ='C-3'!$I$60 -> 0.9473281653 | K29: =ROUND(G29*I29,0) -> -3603
A30: 16 | C30: subtotal | G30: =SUM(G20:G29) -> -60338.2652 | K30: =SUM(K20:K29) -> -58534
A31: 17
A32: 18 | C32: Depreciation & Amortization Expense
A33: 19 | C33: Depreciation Expense - New Depreciation Rates | E33: Pous Testimony | K33: =ROUND(G33*I33,0) -> 0
A34: 20 | C34: Production | E34: Exh RCS-2, Sch C-7 | G34: ='C7'!$M$31/1000 -> -211361.984 | I34: ='C7'!R31 -> 0.9505951814 | K34: =ROUND(G34*I34,0) -> -200920
A35: 21 | C35: Transmission | E35: Exh RCS-2, Sch C-7 | G35: ='C7'!$M$33/1000 -> -16064.331 | I35: ='C7'!R33 -> 0.8967408632 | K35: =ROUND(G35*I35,0) -> -14406
A36: 22 | C36: Distribution | E36: Exh RCS-2, Sch C-7 | G36: ='C7'!$M$34/1000 -> -62688.778 | I36: ='C7'!R34 -> 1 | K36: -62689
A37: 23 | C37: General | E37: Exh RCS-2, Sch C-7 | G37: ='C7'!$M$35/1000 -> -2513.385 | I37: ='C7'!R35 -> 0.9674535142 | K37: -2432 | M37: CHECK TOTALS FOR DEPRECIATION EXPENSE ADJUSTMENT
A38: 24 | C38: Depreciation Expense - New Depreciation Rates Excess Reserve | E38: Pous Testimony | Q38: TOTAL | R38: JURIS
A39: 25 | C39: Transmission | E39: Exh RCS-2, Sch C-7 | G39: ='C7'!$O$33/1000 -> -93969.523 | I39: ='C7'!R33 -> 0.8967408632 | K39: -84266 | M39: RATES | Q39: =SUM(G34:G37) -> -292628.478 | R39: =SUM(K34:K37) -> -280447
A40: 26 | C40: Distribution | E40: Exh RCS-2, Sch C-7 | G40: ='C7'!$O$34/1000 -> -129923.5887 | I40: ='C7'!R34 -> 1 | K40: -129924 | M40: EXCESS RESERVE FLOWBACK | Q40: =SUM(G39:G41) -> -230781.6685 | R40: =SUM(K39:K41) -> -220854
A41: 27 | C41: General | E41: Exh RCS-2, Sch C-7 | G41: ='C7'!$O$35/1000 -> -6888.55675 | I41: ='C7'!R35 -> 0.9674535142 | K41: -6664 | M41: JURISDICTIONAL ADJUSTMENT | R41: =SUM(R39:R40) -> -501301
A42: 28 | M42: COMPARE C-7:
A43: 29 | C43: Storm Hardening | E43: Exh. HWS-9 | G43: -856 | I43: 1 | K43: =ROUND(G43*I43,0) -> -856 | M43: RATES | Q43: ='C7'!M39/1000 -> -292628.478
A44: 30 | M44: EXCESS RESERVE FLOWBACK | Q44: ='C7'!O39/1000 -> -230781.6685
A45: 31 | C45: subtotal | G45: =SUM(G33:G44) -> -524266.1465 | K45: =SUM(K33:K44) -> -502157 | M45: JURISDICTIONAL ADJUSTMENT | R45: ='C7'!$T$39/1000 -> -501299.8451
A46: 32
A47: 33 | C47: Taxes Other Than Income Expense | M47: Differences - all should be zero or minimal rounding:
A48: 34 | C48: Payroll Tax Expense - Base Payroll | E48: Exh. HWS-5 | G48: -1152 | I48: 0.9863752 | K48: =ROUND(G48*I48,0) -> -1136 | M48: RATES | Q48: =Q39-Q43 -> 0
A49: 35 | C49: Payroll Tax Expense - Incentive Compensation | E49: Exh. HWS-5 | G49: -1775 | I49: 0.9863752 | K49: =ROUND(G49*I49,0) -> -1751 | M49: EXCESS RESERVE FLOWBACK | Q49: =Q40-Q44 -> 0
A50: 36 | C50: subtotal | K50: =SUM(K48:K49) -> -2887 | M50: JURISDICTIONAL ADJUSTMENT | R50: =R41-R45 -> -1.154925476
A51: 37
A52: 38 | C52: Income Tax Expense
A53: 39 | C53: Impact of other adjustments | E53: Exh. RCS-2, Sch. C-4 | I53: Various | K53: ='SchC-4'!G26 -> 297058
A54: 40 | C54: Interest Synchronization Adjustment | E54: Exh. RCS-2, Sch. C-5 | I54: Various | K54: ='SchC-5'!E25 -> -41685
A55: 41 | C55: subtotal | K55: =K53+K54 -> 255373
A58: Source/Notes:
A59: Jurisdictional Separation Factors from FPL MFR Schedule C-4.
A60: (a) | C60: References beginning with Exh. HWS refer to exhibits presented with the testimony of OPC witness Helmuth W. Schultz, III.

Sheet SchC-2
A1: Schedule C-2 | K1: Docket No: 160021-EI
K2: ='SchA-1'!G2 -> January 2017 Rate Change
A3: Florida Power & Light Company | K3: ='SchA-1'!G3 -> Exhibit No. RCS-2
A4: Projected Test Year Ended December 31, 2017
A6: Rate Case Expense
E8: Total
A9: Line | E9: Rate Case | G9: Amortization | I9: Amortization
A10: No. | C10: Description | E10: Expense | G10: Period (Years) | I10: Expense | K10: Reference
A12: 1 | C12: Rate Case Expense Authorized in 2010 Rate Case | E12: 3207000 | K12: (a)
A13: =A12+1 -> 2 | C13: O&M CPI-U Compound Multiplier, 2010 - 2013 | E13: 1.072066 | K13: (b)
A14: =A13+1 -> 3 | C14: Compound Inflation Multiplier, 2014 - 2017 | E14: =$I$31 -> 1.053 | K14: (c)
A15: 4 | C15: OPC Recommended Rate Case Expense - Current Case | E15: =E12*E13*E14 -> 3620335.792 | G15: 4 | I15: =E15/G15 -> 905083.948
A16: 5 | C16: FPL Estimated Rate Case Expense in Filing | E16: 4925000 | G16: 4 | I16: =E16/G16 -> 1231250 | K16: (d)
A17: 6 | C17: Reduction to Rate Case Expense, per OPC | E17: =E15-E16 -> -1304664.208 | I17: =I15-I16 -> -326166.052
A19: =A17+1 -> 7 | C19: Rounded Adjustment to Test Year Amortization Expense ($000) | I19: =ROUND(I17/1000,0) -> -326
A21: Source/Notes:
A22: (a) | C22: Commission Order No. PSC-10-0153-FOF-EI
A23: (b) | C23: MFR Schedule C-40 from FPL's 2013 rate case, Docket No. 120015-EI
A24: (c ) | C24: O&M CPI-U Compound Multiplier, 2014 - 2017 | G24: Inflation Rate | N24: WORKPAPER
E25: Year | G25: Per FPL | I25: Per OPC | O25: FPL | R25: OPC
E26: 2014 | G26: 0.016 | H26: (d) | I26: =G26 -> 0.016 | K26: (d) | N26: 1 | O26: 1.016099 | R26: =O26 -> 1.016099
E27: =E26+1 -> 2015 | G27: 0.001 | H27: (d) | I27: =G27 -> 0.001 | K27: (d) | N27: 1 | O27: =N27+G27 -> 1.001 | R27: =N27+I27 -> 1.001
E28: =E27+1 -> 2016 | G28: 0.02 | H28: (d) | I28: 0.0144 | K28: (e) | N28: 1 | O28: 1.02 | R28: 1.0144
E29: 2017 | G29: 0.025 | H29: (d) | I29: 0.0206 | K29: (e) | N29: 1 | O29: 1.025 | R29: 1.0206
C31: Compound Inflation Factor 2014 - 2017 | G31: =O31 -> 1.063393836 | I31: =ROUND(R31,4) -> 1.053 | O31: =O26*O27*O28*O29 -> 1.063393836 | R31: =R26*R27*R28*R29 -> 1.053015844
A33: (d) | C33: MFR Schedule C-10 | N33: check FPL by including 2013
A34: (e) | C34: 2016 and 2017 general price inflation factors are from the Direct Testimony of OPC witness David Dismukes | O34: 1.015
A35: (f) | C35: MFR Schedule C-10 and FPL response to OPC Fourth Set of Interrogatories, Interrogatory No. 128 | O35: =O31*O34 -> 1.079344744

Sheet C-3
A1: Schedule C-3 | M1: Docket No: 160021-EI
M2: January 2017 Rate Change
A3: Florida Power & Light Company | M3: Exhibit No. RCS-2
A4: Projected Test Year Ended December 31, 2017
A6: Generation Overhaul Expense Normalization
M7: Four-Year
A8: Line | M8: Escalated
A9: No | C9: Description | E9: =G9-1 -> 2014 | G9: =I9-1 -> 2015 | I9: =K9-1 -> 2016 | K9: 2017 | M9: Average
E10: (A) | G10: (B) | I10: (C ) | K10: (D) | M10: (E)
A11: 1 | C11: Steam Plant Overhaul Expense | E11: 16842966 | G11: 9430036 | I11: 16191801 | K11: 4660307
A12: 2 | C12: - Less Retired Units
A14: 3 | C14: Subtotal | E14: =SUM(E11:E13) -> 16842966 | G14: =SUM(G11:G13) -> 9430036 | I14: =SUM(I11:I13) -> 16191801 | K14: =SUM(K11:K13) -> 4660307
A15: 4 | C15: O&M Compound Multiplier, 2014 - 2017 | E15: =$I$46 -> 1.036331937 | G15: =$K$46 -> 1.03529664 | I15: =$M$46 -> 1.0206 | K15: 1
A17: 5 | C17: Steam Plant Overhaul Expense - Existing Plants | E17: =E14*E15 -> 17454903.57 | G17: =G14*G15 -> 9762884.586 | I17: =I14*I15 -> 16525352.1 | K17: =K14*K15 -> 4660307 | M17: =AVERAGE(E17:K17) -> 12100861.82
A19: 6 | C19: Other Production Plant Overhaul Expense | E19: 28667337 | G19: 25439543 | I19: 25697300 | K19: 42803842
A20: 7 | C20: - Less
A21: 8 | C21: - Plus Port Everglades Modernized Unit 5 | E21: =AVERAGE(145537,850171) -> 497854 | G21: =AVERAGE(145537,850171) -> 497854
A23: 9 | C23: Subtotal | E23: =SUM(E19:E22) -> 29165191 | G23: =SUM(G19:G22) -> 25937397 | I23: =SUM(I19:I22) -> 25697300 | K23: =SUM(K19:K22) -> 42803842
A24: 10 | C24: O&M Compound Multiplier, 2014 - 2017 | E24: =E15 -> 1.036331937 | G24: =G15 -> 1.03529664 | I24: =I15 -> 1.0206 | K24: 1
A26: 11 | C26: Other Production Plant Overhaul Expense - Existing Plants | E26: =E23*E24 -> 30224818.87 | G26: =G23*G24 -> 26852899.96 | I26: =I23*I24 -> 26226664.38 | K26: =K23*K24 -> 42803842 | M26: =AVERAGE(E26:K26) -> 31527056.3
A28: 12 | C28: Central Maintenance Overhaul Support | E28: 1183932 | G28: 1096447 | I28: 1074365 | K28: 1074365 | M28: =AVERAGE(E28:K28) -> 1107277.25
A29: 13 | C29: Total | E29: =E17+E26+E28 -> 48863654.45 | G29: =G17+G26+G28 -> 37712231.55 | I29: 43826381.48 | K29: 48538514
A31: 14 | C31: OPC Recommended Normalized Generation Overhaul Expense | M31: =SUM(M17:M28) -> 44735195.37
A32: 15 | C32: 2017 Generation Overhaul Expense in 2017 Base Rate Change, per FPL (Lines 1, 6 and 12 for 2017) | M32: =K11+K23+$K$28 -> 48538514
A33: 16 | C33: Reduction to Generation Overhaul Expense | M33: =M31-M32 -> -3803318.631
A35: =A33+1 -> 17 | C35: Jurisdictional Factor | M35: =ROUND($I$60,6) -> 0.947328
A36: =A35+1 -> 18 | C36: Reduction to Jurisdictional Generation Overhaul Expense (stated in $000) | M36: =M33/1000*M35 -> -3602.990232
A38: Notes and Source
A39: Lines 1, 6,& 12: FPL Responses to Staff's 6th Set of Interrogatories, Interrogatory 153
A40: Lines 4 and 10: MFR Sch. C-40, ad modified to reflect OPC witness Dismuke's recommendations for 2016 and 2017 general inflation
G41: Inflation | I41: Factor
E42: Year | G42: Rate | I42: =E43 -> 2014 | K42: =I42+1 -> 2015 | M42: =K42+1 -> 2016
E43: 2014 | G43: 0.016
E44: 2015 | G44: 0.001
E45: 2016 | G45: 0.0144
E46: 2017 | G46: 0.0206 | I46: =(1+G44)*K46 -> 1.036331937 | K46: =(1+G45)*(1+G46) -> 1.03529664 | M46: =1+G46 -> 1.0206
C48: Calculation of Compound Multipliers | E48: 2014 | G48: (1+0.001)*(1+0.0144)*(1+0.0206)
E49: 2015 | G49: (1+0.0144)*(1+0.0206)
E50: 2016 | G50: (1+0.0206)
C52: Line 8: | E52: 2016 | G52: 145537
E53: 2017 | G53: 850171
E54: Average | G54: =AVERAGE(G52:G53) -> 497854
C56: Jurisdictional Factor Calculation:
C57: (Figures taken from MFR Schedule C-4, in $000) | E57: Total Company | G57: FPSC Jurisdictional | I57: Jurisdictional Factor
C58: Steam Power Generation | E58: 446375.4406 | G58: 422962.4298 | I58: 0.9475486133
C59: Other Power Generation | E59: 2504438.059 | G59: 2372426.309 | I59: 0.9472888741
C60: Total | E60: =SUM(E58:E59) -> 2950813.499 | G60: =SUM(G58:G59) -> 2795388.739 | I60: =G60/E60 -> 0.9473281653

Sheet SchC-4
A1: Schedule C-4 | G1: ='SchA-1'!G1 -> Docket No: 160021-EI
G2: ='SchA-1'!G2 -> January 2017 Rate Change
A3: Florida Power & Light Company | G3: ='SchA-1'!G3 -> Exhibit No. RCS-2
A4: Projected Test Year Ended December 31, 2017
A6: Income Tax Expense - Impact of Other Adjustments
A7: (Thousands of Dollars)
A11: Line
A12: No. | C12: Description | G12: Amount
C14: OPC Jurisdictional Operating Income Adjustments (1):
A15: 1 | C15: Revenue at Current Rates | G15: =SchC1p2!$K$15 -> 206500
C17: Pre-Tax Operating Expenses:
A18: =A15+1 -> 2 | C18: =SchC1p2!$C$19 -> Other Operating and Maintenance Expense | G18: =SchC1p2!$K$30 -> -58534
A19: =A18+1 -> 3 | C19: =SchC1p2!$C$32 -> Depreciation & Amortization Expense | G19: =SchC1p2!$K$45 -> -502157
A20: =A19+1 -> 4 | C20: =SchC1p2!$C$47 -> Taxes Other Than Income Expense | G20: =SchC1p2!$K$50 -> -2887
A21: 5 | C21: Subtotal Pre-Tax Operating Expenses | G21: =SUM(G18:G20) -> -563578
A23: =A21+1 -> 6 | C23: Net Increase in Taxable Income | G23: =G15-G21 -> 770078
A24: =A23+1 -> 7 | C24: Composite Income Tax Rate (2) | G24: 0.38575
A26: =A24+1 -> 8 | C26: Adjustment to Income Tax Expense | G26: =ROUND(G24*G23,0) -> 297058
A29: Notes and Source
A30: (1) | C30: Exhibit RCS-2, Schedule C-1, Page 2
A31: (2) | C31: Calculated using Florida state income tax rate of 5.50% and Federal income tax rate of 35%
C32: FPL used these same income tax rates in its filing. See, e.g., MFR Schedule C-44

Sheet SchC-5
A1: Schedule C-5 | G1: ='SchA-1'!G1 -> Docket No: 160021-EI
G2: ='SchA-1'!G2 -> January 2017 Rate Change
A3: Florida Power & Light Company | G3: ='SchA-1'!G3 -> Exhibit No. RCS-2
A4: Projected Test Year Ended December 31, 2017
A6: Interest Synchronization Adjustment
A7: (Thousands of Dollars)
A10: Line
A11: No. | C11: Description | E11: Amount | G11: Reference
A13: 1 | C13: Adjusted Jurisdictional Rate Base, per OPC | E13: =ROUND('SchB-1p1'!$O$29,0) -> 32725587 | G13: Exh. RCS-2, Sch. B-1
A15: 2 | C15: Weighted Cost of Debt, per OPC | E15: =SchD!S24+SchD!S25+SchD!S28 -> 0.01711533962 | G15: Exh. RCS-2, Sch. D
A17: 3 | C17: Interest Deduction for Income Taxes | E17: =ROUND(E13*E15,0) -> 560110 | G17: Line 1 x Line 2
A19: 4 | C19: Interest Deduction, per Company | E19: =$E$35 -> 452048.4748 | G19: (a)
A21: 5 | C21: Increase (Reduction) in Deductible Interest | E21: =E17-E19 -> 108061.5252
A23: 6 | C23: Composite Income Tax Rate | E23: ='SchC-4'!G24 -> 0.38575 | G23: (b)
A25: 7 | C25: Increase (Reduction) to Income Tax Expense | E25: =-ROUND(E21*E23,0) -> -41685
A29: Notes and Source
A30: (a) | C30: Per Company amount calculated as the per Company rate base times the per FPL
C31: weighted Cost of Debt (long term debt, short term debt and customer deposits):
A33: =A25+1 -> 8 | C33: Per Company Rate Base | E33: ='SchB-1p1'!$E$29 -> 32536116 | G33: Exh. RCS-2, Sch. B-1
A34: =A33+1 -> 9 | C34: Per Company weighted Cost of Debt | E34: =E41 -> 0.01389374426 | G34: Exh. RCS-2, Sch. D
A35: =A34+1 -> 10 | C35: Interest Deduction, per Company | E35: =E33*E34 -> 452048.4748
A37: =A35+1 -> 11 | C37: Per Company weighted Cost of Debt: | E37: Wtd.Cost Rate | G37: Interest Deduction
A38: =A37+1 -> 12 | C38: =SchD!C14 -> Long Term Debt | E38: =SchD!S14 -> 0.01328858302 | G38: =E38*$E$33 -> 432358.8787
A39: =A38+1 -> 13 | C39: =SchD!C15 -> Short Term Debt | E39: =SchD!S15 -> 0.0003485164563 | G39: =E39*$E$33 -> 11339.37185
A40: 14 | C40: =SchD!C18 -> Customer Deposits | E40: =SchD!S18 -> 0.0002566447777 | G40: 8350.224257
A41: 15 | C41: Per Company weighted Cost of Debt | E41: =SUM(E38:E40) -> 0.01389374426 | G41: =SUM(G38:G40) -> 452048.4748
A43: (b) | C43: Calculated using Florida state income tax rate of 5.50% and Federal income tax rate of 35%
C44: FPL used these same income tax rates in its filing. See, e.g., MFR Schedule C-44

Sheet C-6
A1: Schedule C-6 | G1: Docket No: 160021-EI
G2: January 2017 Rate Change
A3: Florida Power & Light Company | G3: Exhibit No. RCS-2
A4: Projected Test Year Ended December 31, 2017
A6: ='RCS-2 Contents'!B19 -> Revenue at Current Rates - Adjustment for Sales Forecast
A7: (Thousands of Dollars)
A11: Line
A12: No. | C12: Description | E12: Amount | G12: Reference
C14: Revenue at Current Rates
A15: 1 | C15: OPC Forecast Adjustment | E15: 206500 | G15: (a)
A16: =A15+1 -> 2 | C16: Less: Amount in FPL May 3, 2016 Adjustments | E16: ='Ep2'!$G$14 -> 4903.899 | G16: (b)
A17: =A16+1 -> 3 | C17: Net Increase to Revenue at Current Rates | E17: =E15-E16 -> 201596.101
C19: Pre-Tax Operating Expenses:
C20: Uncollectibles Expense
A21: =A17+1 -> 4 | C21: Bad Debt Rate | E21: 0.00066 | G21: (c )
A22: =A21+1 -> 5 | C22: Increase in Uncollectibles Expense | E22: =E21*E17 -> 133.0534267
A27: Notes and Source
A28: (a) | C28: Testimony of OPC witness David Dismukes
A29: (b) | C29: FPL May 3, 2016 Notice of Identified Adjustments, item 4
C30: See Exhibit RCS-2, Schedule E, page 2, Revenue from Sales
A31: (c ) | C31: Bad Debt Rate from MFR Schedule C-44, line 5
C32: As corrected per FPL's May 3, 2016 Notice of Identified Corrections, item 5, NOI Multiplier,
C33: Bad Debt Rate

Sheet C7
A1: Schedule C-7 | T1: Docket No: 160021-EI
T2: January 2017 Rate Change
A3: Florida Power & Light Company | T3: Exhibit No. RCS-2
A4: Test Year Ended December 31, 2017
A5: Annual Depreciation Accruals - New Depreciation Rates
D6: FP&L Existing | G6: FP&L Proposed | K6: Per OPC | Z6: Linked to Detail by Plant Acct
A7: Line No. | B7: Function | C7: Original Cost (Based on 12/31/2017 Electric Plant) | D7: Annual Depr. Rate | E7: Annual Depr. Accruals | G7: Annual Depr. Rate | H7: Annual Depr. Accruals | I7: Increase/ Decrease | K7: Annual Depr. Rate | L7: Annual Depr. Accruals | M7: Difference | O7: Excess Depreciation Reserve for Amortization | P7: Excess Depreciation Reserve Annual Amortization | R7: Total OPC Adjustments | AB7: Per FPL
C8: (A) | D8: (B) | E8: (C ) | G8: (D) | H8: (E) | I8: (F) | K8: (1) | L8: -2 | M8: -3 | O8: -4 | P8: -5 | R8: -6
B9: I. Calculated Depreciation Expense on 12/31/2017 Plant
A10: 1 | B10: Steam | C10: 3243194417 | D10: 2.5 | E10: 80638814 | G10: 3.785439114 | H10: 122769150 | I10: 42130336 | K10: 3.776957816 | L10: 122494085 | M10: -275065 | P10: 0 | R10: -275065 | X10: CALCULATED | Z10: 3.776957816 | AB10: 3.785439114
A11: 2 | B11: Nuclear | C11: 7822373927 | D11: 2 | E11: 160192998 | G11: 4.155662898 | H11: 325071491 | I11: 164878493 | K11: 4.005370069 | L11: 313315024 | M11: -11756467 | P11: 0 | R11: -11756467 | Z11: 4.005370069 | AB11: 4.155662898
A12: 3 | B12: Combined Cycle | C12: 1.088450601e+10 | D12: 3.8 | E12: 412097322 | G12: 4.330640725 | H12: 471368850 | I12: 59271528 | K12: 2.499938606 | L12: 272105967.9 | M12: -199262882.1 | P12: 0 | R12: -199262882.1 | Z12: 2.929639924 | AB12: 4.330640725
A13: 4 | B13: Peaker Plants | C13: 527598852.9 | D13: 3.3 | E13: 17181142 | G13: 3.311747723 | H13: 17472743 | I13: 291601 | K13: 3.084723811 | L13: 16274967.44 | M13: -1197775.559 | P13: 0 | R13: -1197775.559 | Z13: 3.084723811 | AB13: 3.311747723
A14: 5 | B14: Solar | C14: 1051134801 | D14: 3.3 | E14: 34687449 | G14: 3.178378928 | H14: 33409047 | I14: -1278402 | K14: 3.175359925 | L14: 33377313.21 | M14: -31733.79002 | P14: 0 | R14: -31733.79002 | Z14: 3.175359925 | AB14: 3.178378928
A15: 6 | B15: Total Production | C15: 2.352880801e+10 | D15: 3 | E15: 704797725 | G15: 4.122993739 | H15: 970091281 | I15: 265293556 | K15: 3.219743887 | L15: 757567357.5 | M15: -212523923.5 | O15: 0 | P15: 0 | R15: -212523923.5 | Z15: 3.418292275 | AB15: 4.122993739
A16: 7
A17: 8 | B17: Transmission | C17: 5577625822 | D17: 2.8 | E17: 153559713 | G17: 2.499582465 | H17: 139417357 | I17: -14142356 | K17: 2.211705427 | L17: 123360653 | M17: -16056704 | O17: 375878092 | P17: -93969523 | R17: -110026227 | Z17: 2.211705427 | AB17: 2.499582465
A18: 9 | B18: Distribution | C18: 1.601595157e+10 | D18: 3.4 | E18: 537116945 | G18: 3.190100218 | H18: 510924906 | I18: -26192039 | K18: 2.74522391 | L18: 439673732 | M18: -71251174 | O18: 519694355 | P18: -129923588.8 | R18: -201174762.7 | Z18: 2.74522391 | AB18: 3.190100218
A19: 10 | B19: General | C19: 858008961.8 | D19: 4.4 | E19: 37489110 | G19: 3.939478549 | H19: 33801079 | I19: -3688031 | K19: 3.595034357 | L19: 30845716.96 | M19: -2955362.038 | O19: 27554227 | P19: -6888556.75 | R19: -9843918.788 | Z19: 3.595034357 | AB19: 3.939478549
A20: 11 | B20: Total Trans., Dist.
A21: 12 | B21: and General Plant | C21: 2.245158636e+10 | D21: 3.2 | E21: 728165768 | G21: 3.047193776 | H21: 684143342 | I21: -44022426 | K21: 2.645158754 | L21: 593880102 | M21: -90263240.04 | O21: 923126674 | P21: -230781668.5 | R21: -321044908.5 | Z21: 2.644719991 | AB21: 3.047193776
A22: 13
A23: 14 | B23: Grand Total | C23: 4.598039436e+10 | D23: 3.1 | E23: 1432963493 | G23: 3.597695596 | H23: 1654234623 | I23: 221271130 | K23: 2.939181967 | L23: 1351447459 | M23: -302787163.5 | O23: 923126674 | P23: -230781668.5 | R23: -533568832 | Z23: 3.0405677 | AB23: 3.597695596
B25: II. Depreciation Expense Adjustment for Ratemaking
B26: Function | C26: FPL New Depreciation Rates Expense Adjustment | E26: Depreciation Expense -Clauses | G26: Depreciation Expense - Base Rates | H26: Jurisdictional Factors | I26: FPL New Depreciation Rates Juris. Expense Adjustment | K26: OPC New Depreciation Rates Expense Adjustment | L26: Ratio of FPL Base Rates Depreciation Expense Adj to Total Exp. Adj. | M26: OPC Depreciation Expense Adjustment - Base Rates | O26: Excess Depreciation Reserve Annual Amortization | P26: OPC Total Depreciation Expense Adjustment After Clauses | R26: Jurisdictional Factors | T26: OPC New Depreciation Rates Juris. Expense Adjustment
C27: (G) | E27: (H) | G27: (I) | H27: (J) | I27: (K) | K27: (7) = (3) | L27: (8)=I/G | M27: (9)=(8)x(7) | O27: (10)=(5) | P27: (11)=(9)+(10) | R27: (12)=(J) | T27: (13)=(11)x(12)
A28: 15 | B28: Steam | C28: 42675782.52 | E28: 15102236.15 | G28: 27573546.37 | H28: 0.9505951814 | I28: 26211280.32 | K28: -275065 | L28: 0.646117 | M28: -177724 | P28: -177724 | R28: 0.9505951814 | T28: -168943.578
A29: 16 | B29: Nuclear | C29: 162509137.6 | E29: 3416927.982 | G29: 159092209.6 | H29: 0.9505951814 | I29: 151232287.9 | K29: -11756467 | L29: 0.978974 | M29: -11509276 | P29: -11509276 | R29: 0.9505951814 | T29: -10940662.31
A30: 17 | B30: Other | C30: 51998277.3 | E30: 211996.0322 | G30: 51786281.27 | H30: 0.9505951814 | I30: 49227789.44 | K30: -200492391 | L30: 0.995923 | M30: -199674984 | P30: -199674984 | R30: 0.9505951814 | T30: -189810077.6
A31: 18 | B31: Total Production | C31: 257183197.4 | E31: 18731160.16 | G31: 238452037.3 | I31: 226671357.6 | K31: -212523923 | M31: -211361984 | O31: 0 | P31: -211361984 | R31: 0.9505951814 | T31: -200919683.5
A32: 19
A33: 20 | B33: Transmission | C33: -7892671.728 | E33: 3749.781623 | G33: -7896421.51 | H33: 0.8967408632 | I33: -7081043.841 | K33: -16056704 | L33: 1.000475 | M33: -16064331 | O33: -93969523 | P33: -110033854 | R33: 0.8967408632 | T33: -98671853.22
A34: 21 | B34: Distribution | C34: -24863168.1 | E34: -2987852.887 | G34: -21875315.21 | H34: 1 | I34: -21875315.21 | K34: -71251174 | L34: 0.879828 | M34: -62688778 | O34: -129923588.8 | P34: -192612366.8 | R34: 1 | T34: -192612366.8
A35: 22 | B35: General | C35: -3124406.394 | E35: -467256.7721 | G35: -2657149.622 | H35: 0.9674535142 | I35: -2570668.74 | K35: -2955362 | L35: 0.850449 | M35: -2513385 | O35: -6888556.75 | P35: -9401941.75 | R35: 0.9674535142 | T35: -9095941.586
A36: 23 | B36: Total Trans., Dist.
A37: 24 | B37: and General Plant | C37: -35880246.22 | E37: -3451359.878 | G37: -32428886.35 | I37: -31527027.79 | K37: -90263240 | M37: -81266494 | O37: -230781668.5 | P37: -312048162.5 | T37: -300380161.6
A38: 25
A39: 26 | B39: Grand Total | C39: 221302951.2 | E39: 15279800.29 | G39: 206023150.9 | I39: 195144329.8 | K39: -302787163 | M39: -292628478 | O39: -230781668.5 | P39: -523410146.5 | T39: -501299845.1
A40: 27
A41: 28 | B41: Compare FPL Total Jurisdictional Adjustment (based on MFR Schedule C-2) | I41: 195144329.8 | J41: (a)
A43: Notes and Source
A44: Columns A-F, Line Nos. 1-16: FPL Exhibit NWA-1, Page 7 of 762
A45: Excess Depreciation Reserve is being amortized over 4 years per recommendation of OPC witness Pous.
A46: (a): MFR Schedule C-2 for Projected Test Year Ended 12/31/17, Page 3 of 3, Line 15
A47: Cols.G, H and I: FPL response to OPC Fifth Set of Interrogatories, No. 167, Attachment 2
A48: Cols. I, J, and K: FPL response to OPC's Fifth Set of Interrogatories, No. 168, Attachment 2
A49: OPC Depreciation Rate Recommendations from OPC witness Jack Pous are summarized in columns (1) through (6) above.
A51: WORKPAPER BELOW THIS POINT AND ON OTHER TABS OF THIS EXCEL
B52: C:\Cases\FL OPC FPL 2016 rate case\Testimony Jack Pous Depreciation rates\[2016-07-04 OPC Dep templet_please fill in yellow in OPC Adj 2017 tab UPDATED_C7.xlsm]C7
B53: C:\Cases\FL OPC FPL 2016 rate case\Testimony Jack Pous Depreciation rates\[2016-07-01 OPC Dep templet_please fill in yellow in OPC Adj 2017 tab and return.xlsm]OPC Adj 2017 Summary
B54: OPC Adj 2017 Summary

Sheet SchD
A1: Schedule D | S1: ='SchA-1'!G1 -> Docket No: 160021-EI
S2: ='SchA-1'!G2 -> January 2017 Rate Change
A3: Florida Power & Light Company | S3: ='SchA-1'!G3 -> Exhibit No. RCS-2
A4: Projected Test Year Ended December 31, 2017
A6: Cost of Capital
A7: (Thousands of Dollars)
E8: Jurisdictional | G8: OPC | M8: Per
E9: Capital | G9: Adjustments | K9: OPC | M9: Citizens | S9: Per OPC
A10: Line | E10: Structure Per | G10: to | I10: Adjusted | K10: Rate Base | M10: Adjusted | Q10: Cost | S10: Weighted
A11: No. | C11: Description | E11: Company | G11: Cap. Struct. | I11: Amounts | K11: Adjustments | M11: Amounts | O11: Ratio | Q11: Rate | S11: Cost Rate
E12: (A) | G12: (B) | I12: (C) | K12: (D) | M12: (E) | O12: (F) | Q12: (G) | S12: (H)
C13: Per Company
A14: 1 | C14: Long Term Debt | E14: 9358417 | I14: =SUM(E14:G14) -> 9358417 | M14: =SUM(I14:K14) -> 9358417 | O14: =I14/$I$21 -> 0.2876316671 | Q14: 0.0462 | S14: =O14*Q14 -> 0.01328858302
A15: =A14+1 -> 2 | C15: Short Term Debt | E15: 612939 | I15: 612939 | M15: =SUM(I15:K15) -> 612939 | O15: =I15/$I$21 -> 0.01883872736 | Q15: 0.0185 | S15: =O15*Q15 -> 0.0003485164563
A16: =A15+1 -> 3 | C16: Preferred Stock | E16: 0 | I16: 0 | M16: 0 | O16: 0 | Q16: 0 | S16: 0
A17: 4 | C17: Common Equity | E17: 14682574 | I17: 14682574 | M17: 14682574 | O17: 0.4512700425 | Q17: 0.115 | S17: 0.05189605489
A18: 5 | C18: Customer Deposits | E18: 407328 | I18: 407328 | M18: 407328 | O18: 0.01251925745 | Q18: 0.0205 | S18: 0.0002566447777 | U18: =SUM(S14:S20) -> 0.06607796651
A19: 6 | C19: Deferred Taxes | E19: 7368582 | I19: 7368582 | M19: 7368582 | O19: 0.2264739352 | Q19: 0 | S19: 0
A20: 7 | C20: Investment Tax Credits | E20: 106275 | I20: 106275 | M20: 106275 | O20: 0.003266370309 | Q20: =(Q14*(M14/($M$24+$M$27)))+(Q17*(M17/(M14+M17))) -> 0.08822250292 | S20: 0.0002881673641 | U20: =SUM(S14:S20) -> 0.06607796651 | V20: this sch
A21: 8 | C21: Total | E21: =SUM(E14:E20) -> 32536115 | G21: =SUM(G14:G20) -> 0 | I21: =SUM(I14:I20) -> 32536115 | M21: =SUM(M14:M20) -> 32536115 | O21: =SUM(O14:O20) -> 1 | S21: =U20+U22 -> 0.06606867273 | U21: ='SchA-1'!K16 -> 0.06606867273 | V21: sch A
U22: =U21-U20 -> -9.293779127e-06 | V22: diff
C23: Per OPC
A24: =A21+1 -> 9 | C24: Long Term Debt | E24: =E14 -> 9358417 | G24: =M37 -> 2210809.775 | I24: =SUM(E24:G24) -> 11569226.77 | K24: =$I$56*O24 -> 67371.43203 | M24: =SUM(I24:K24) -> 11636598.21 | O24: =I24/$I$31 -> 0.3555810758 | Q24: 0.0462 | S24: =O24*Q24 -> 0.0164278457
A25: =A24+1 -> 10 | C25: Short Term Debt | E25: =E15 -> 612939 | G25: =M38 -> 144799.2254 | I25: 757738.2254 | K25: =$I$56*O25 -> 4412.560177 | M25: =SUM(I25:K25) -> 762150.7856 | O25: =I25/$I$31 -> 0.02328914271 | Q25: =Q15 -> 0.0185 | S25: =O25*Q25 -> 0.0004308491401
A26: 11 | C26: Preferred Stock | E26: =E16 -> 0 | G26: 0 | I26: 0 | K26: 0 | M26: 0 | O26: 0 | Q26: 0 | S26: 0
A27: 12 | C27: Common Equity | E27: 14682574 | G27: =M39 -> -2355609 | I27: 12326965 | K27: 71783.9922 | M27: 12398748.99 | O27: 0.3788702185 | Q27: 0.0875 | S27: 0.03315114412
A28: 13 | C28: Customer Deposits | E28: 407328 | G28: 0 | I28: 407328 | K28: 2372.005597 | M28: 409700.0056 | O28: 0.01251925745 | Q28: 0.0205 | S28: 0.0002566447777
A29: 14 | C29: Deferred Taxes | E29: 7368582 | G29: 0 | I29: 7368582 | K29: 42909.68887 | M29: 7411491.689 | O29: 0.2264739352 | Q29: 0 | S29: 0
A30: 15 | C30: Investment Tax Credits | E30: 106275 | G30: 0 | I30: 106275 | K30: 618.8744571 | M30: 106893.8745 | O30: 0.003266370309 | Q30: =(Q24*(M24/($M$24+$M$27)))+(Q27*(M27/(M24+M27))) -> 0.06750480284 | S30: 0.0002204956837 | U30: check # column D | V30: diff
A31: 16 | C31: Total | E31: =SUM(E24:E30) -> 32536115 | G31: =SUM(G24:G30) -> -9.313225746e-10 | I31: =SUM(I24:I30) -> 32536115 | K31: =SUM(K24:K30) -> 189468.5533 | M31: =SUM(M24:M30) -> 32725583.55 | O31: =SUM(O24:O30) -> 1 | S31: =SUM(S24:S30) -> 0.05048697943 | U31: =SUM(K24:K30) -> 189468.5533 | V31: =K31-U31 -> 0
I33: Capitalization | M33: Adjs. To | U33: check # column E
E34: Per FPL | G34: Effective | I34: Ratio | K34: Revised | M34: Reflect OPC | U34: ='SchB-1p1'!$O$29 -> 32725586.55 | V34: =M31-U34 -> -3.000000004
C35: Ratio of Debt & Equity Components | E35: Amounts | G35: FPL Ratio | I35: Per OPC^ | K35: Allocations | M35: Cap. Struct. | U35: from Sch B-1p1
E36: (a) | G36: (b) | I36: (c ) | K36: (d) | M36: (e) = (d - a)
A37: =A31+1 -> 17 | C37: Long Term Debt | E37: =E24 -> 9358417 | G37: =E37/$E$41 -> 0.3795912863 | I37: =K47 -> 0.4692650127 | K37: =$E$41*I37 -> 11569226.77 | M37: =K37-E37 -> 2210809.775
A38: =A37+1 -> 18 | C38: Short Term Debt | E38: =E25 -> 612939 | G38: =E38/$E$41 -> 0.02486171576 | I38: =K48 -> 0.0307349873 | K38: =$E$41*I38 -> 757738.2254 | M38: =K38-E38 -> 144799.2254
A39: 19 | C39: Common Equity | E39: =E27 -> 14682574 | G39: =E39/$E$41 -> 0.595546998 | I39: 0.5 | K39: =$E$41*I39 -> 12326965 | M39: =K39-E39 -> -2355609
E41: =SUM(E37:E40) -> 24653930 | G41: =SUM(G37:G40) -> 1 | I41: =SUM(I37:I40) -> 1 | K41: =SUM(K37:K40) -> 24653930 | M41: =SUM(M37:M40) -> 0
E44: Per FPL | G44: Long/Short | I44: Per OPC | K44: OPC Adjusted
C45: ^ Ratio of Debt Components | E45: Amounts | G45: Term Ratio | I45: Debt Ratio | K45: Debt Ratio
E46: (f) | G46: (g) | I46: (h) | K46: (i) = (g x h)
A47: =A39+1 -> 20 | C47: Long Term Debt | E47: =E37 -> 9358417 | G47: =E47/E49 -> 0.9385300254 | K47: =G47*$I$49 -> 0.4692650127
A48: =A47+1 -> 21 | C48: Short Term Debt | E48: =E38 -> 612939 | G48: =E48/E49 -> 0.0614699746 | K48: =G48*$I$49 -> 0.0307349873
A49: 22 | E49: =E47+E48 -> 9971356 | G49: =G47+G48 -> 1 | I49: 0.5 | K49: =K47+K48 -> 0.5
A51: Notes and Source
A52: The per Company amounts are from MFR Sch. D-1a.
A53: Column (c): Capitalization Ratio per OPC sponsored by OPC Witness Kevin O'Donnell
A54: Column (D): OPC rate base adjustments are from Schedule B-1, page 1, col. E. This includes the FPL update/filing correction rate base adjustments in columns B and C.
E55: FPL Updates | G55: OPC Adjs | I55: Rate Base Adjs
C56: Rate Base Adjustments | E56: ='SchB-1p1'!G29+'SchB-1p1'!I29 -> 5724.55333 | G56: ='SchB-1p1'!$M$29 -> 183744 | I56: =SUM(E56:G56) -> 189468.5533
A57: Column (G), Lines 9&10, debt cost rates are sponsored by OPC Witness Kevin O'Donnell
A58: Column (G): Lines 1 - 3 and 5 based on per-FPL Cost rates. Return on Equity on line 4 sponsored by OPC witness Randall Woolridge. Lines 7 and 15 are fall-out calculations.
A60: FPL Weighted Cost of Debt for Interest Synchronization | G60: =S14+S15+S18 -> 0.01389374426 | I60: Col. H, lines 1, 2 and 5
A61: OPC Weighted Cost of Debt for Interest Synchronization | G61: =S24+S25+S28 -> 0.01711533962 | I61: Col. H, lines 9, 10 and 13

Sheet Ep1
A1: Schedule E, page 1 of 3 | I1: Docket No: 160021-EI
I2: ='SchA-1'!G2 -> January 2017 Rate Change
A3: Florida Power & Light Company | I3: ='SchA-1'!G3 -> Exhibit No. RCS-2
A4: Projected Test Year Ended December 31, 2017
A6: Company Rate Base Adjustments from May 3, 2016 Notice of Identified Adjustments
A7: (Thousands of Dollars)
G10: FPL May 3, 2016
A11: Line | G11: Notice of
A12: No. | C12: Rate Base Components | G12: Filing Adjustments
G13: (A)
A15: 1 | C15: Plant in Service
A16: 2 | C16: Accumulated Depreciation & Amortization | G16: =I37 -> 690.1085318
A18: 3 | C18: Net Plant in Service | G18: =G15+G16 -> 690.1085318
A20: 4 | C20: Construction Work in Progress
A21: 5 | C21: Plant Held For Future Use
A22: 6 | C22: Nuclear Fuel
A24: 7 | C24: Total Net Plant | G24: =SUM(G18:G22) -> 690.1085318
A26: 8 | C26: Working Capital Allowance | G26: =$I$43 -> -6410.734648
A27: 9 | C27: Other Rate Base Items
A29: 10 | C29: Total Rate Base | G29: =SUM(G24:G27) -> -5720.626116
A31: Source/Notes:
A32: Schedule E, page 3 of 3
C33: Description | E33: Page 3 Column Reference | G33: Dollars | I33: Thousands of $
C34: Accumulated Depreciation & Amortization
A35: =A29+1 -> 11 | C35: ='Ep3'!$K$11 -> Depreciation Co Adj | E35: ='Ep3'!K10 -> (9) | G35: ='Ep3'!$K$26 -> 1327.920021 | I35: =G35/1000 -> 1.327920021
A36: =A35+1 -> 12 | C36: ='Ep3'!$L$11 -> Dismantlement Co Adj | E36: ='Ep3'!L10 -> (10) | G36: ='Ep3'!$L$26 -> 688780.6118 | I36: =G36/1000 -> 688.7806118
A37: =A36+1 -> 13 | C37: Accumulated Depreciation & Amortization | G37: =SUM(G35:G36) -> 690108.5318 | I37: =SUM(I35:I36) -> 690.1085318
C39: Working Capital Allowance
A40: =A37+1 -> 14 | C40: Pension Debit | E40: ='Ep3'!D10 -> (2) | G40: ='Ep3'!$D$26 -> -3527563.757 | I40: =G40/1000 -> -3527.563757
A41: =A40+1 -> 15 | C41: Uncollectible Accounts Expense | E41: ='Ep3'!H10 -> (6) | G41: ='Ep3'!$H$26 -> 30106.72997 | I41: 30.10672997
A42: 16 | C42: DSM Adj | E42: ='Ep3'!J10 -> (8) | G42: ='Ep3'!$J$26 -> -2913277.621 | I42: -2913.277621
A43: 17 | C43: Working Capital Allowance | G43: =SUM(G40:G42) -> -6410734.648 | I43: =SUM(I40:I42) -> -6410.734648
A45: =A43+1 -> 18 | C45: Total Rate Base | G45: =G43+G37 -> -5720626.116 | I45: =I43+I37 -> -5720.626116

Sheet Ep2
A1: Schedule E, page 2 of 3 | I1: Docket No: 160021-EI
I2: ='SchA-1'!G2 -> January 2017 Rate Change
A3: Florida Power & Light Company | I3: ='SchA-1'!G3 -> Exhibit No. RCS-2
A4: Projected Test Year Ended December 31, 2017
A6: Company Net Operating Income Adjustments from May 3, 2016 Notice of Identified Adjustments
A7: (Thousands of Dollars)
G9: FPL May 3, 2016
A10: Line | G10: Notice of
A11: No. | C11: Description | E11: Reference | G11: Filing Adjustments
G12: (A)
C13: Operating Revenues:
A14: 1 | C14: Revenue From Sales | E14: Line 14 | G14: =$I$37 -> 4903.899
A15: 2 | C15: Other Operating Revenues | E15: Line 18 | G15: =$I$43 -> -978.604
A17: 3 | C17: Total Operating Revenues | E17: Line 19 | G17: =SUM(G14:G16) -> 3925.295
C19: Operating Expenses:
A20: 4 | C20: Other Operation & Maintenance | E20: Line 22 | G20: =$I$50 -> -3632.455807
A21: 5 | C21: Fuel & Interchange
A22: 6 | C22: Purchased Power
A23: 7 | C23: Deferred Costs
A24: 8 | C24: Depreciation & Amortization | E24: Line 25 | G24: =$I$55 -> -1380.271187
A25: 9 | C25: Taxes Other Than Income Taxes
A26: 10 | C26: Income Taxes | E26: Line 31 | G26: =$I$63 -> 3479.117167
A27: 11 | C27: (Gain)/Loss on Disposal of Plant
A28: 12 | C28: Total Operating Expenses | G28: =SUM(G20:G27) -> -1533.609828
A30: 13 | C30: Net Operating Income | G30: =G17-G28 -> 5458.904828
A32: Source/Notes:
A33: Schedule E, page 3 of 3
C34: Description | E34: Page 3 Column Reference | G34: NOI Dollars (a) | I34: Thousands of NOI $
G35: (B) | I35: (C )
C36: Revenues (Decrease) Increase
A37: =A30+1 -> 14 | C37: ='Ep3'!$I$11 -> Retail Base Revenues | E37: ='Ep3'!$I$10 -> (7) | G37: =-'Ep3'!$I$38 -> 4903899 | H37: (a) | I37: =G37/1000 -> 4903.899
C39: Other Operating Revenues
A40: =A37+1 -> 15 | C40: ='Ep3'!$C$11 -> Aviation gains | E40: ='Ep3'!$C$10 -> (1) | G40: =-'Ep3'!$C$38 -> -1229710 | H40: (a) | I40: =G40/1000 -> -1229.71
A41: =A40+1 -> 16 | C41: ='Ep3'!$F$11 -> Late Payment charges | E41: ='Ep3'!$F$10 -> (4) | G41: =-'Ep3'!$F$38 -> 244983 | H41: (a) | I41: 244.983
A42: =A41+1 -> 17 | C42: ='Ep3'!$G$11 -> Returned Checks | E42: ='Ep3'!$G$10 -> (5) | G42: =-'Ep3'!$G$38 -> 6123 | H42: (a) | I42: 6.123
A43: 18 | C43: Other Operating Revenues | G43: =SUM(G40:G42) -> -978604 | I43: =SUM(I40:I42) -> -978.604
A45: =A43+1 -> 19 | C45: Total Operating Revenues | G45: =G43+G37 -> 3925295 | I45: =I43+I37 -> 3925.295
C47: Other Operation & Maintenance
A48: =A45+1 -> 20 | C48: ='Ep3'!$E$11 -> WCEC Water Reclamation | E48: ='Ep3'!$E$10 -> (3) | G48: ='Ep3'!$E$42 -> -4031220.807 | I48: =G48/1000 -> -4031.220807
A49: =A48+1 -> 21 | C49: ='Ep3'!$H$11 -> Uncollectible Accounts Expense | E49: ='Ep3'!$H$10 -> (6) | G49: ='Ep3'!$H$42 -> 398765 | I49: 398.765
A50: 22 | C50: Other Operation & Maintenance | G50: =SUM(G48:G49) -> -3632455.807 | I50: =SUM(I48:I49) -> -3632.455807
C52: Depreciation & Amortization
A53: =A50+1 -> 23 | C53: ='Ep3'!$K$11 -> Depreciation Co Adj | E53: ='Ep3'!$K$10 -> (9) | G53: ='Ep3'!$K$42 -> -2709.963363 | I53: =G53/1000 -> -2.709963363
A54: =A53+1 -> 24 | C54: ='Ep3'!$L$11 -> Dismantlement Co Adj | E54: ='Ep3'!$L$10 -> (10) | G54: ='Ep3'!$L$42 -> -1377561.224 | I54: -1377.561224
A55: =A54+1 -> 25 | C55: Depreciation & Amortization | G55: =SUM(G53:G54) -> -1380271.187 | I55: =SUM(I53:I54) -> -1380.271187
C57: Income Taxes
A58: =A55+1 -> 26 | C58: Revenue | G58: Line 19 | I58: =$I$45 -> 3925.295
A59: =A58+1 -> 27 | C59: Pre-Tax Expenses | G59: Lines 22 + 25 | I59: =I50+I55 -> -5012.726994
A60: 28 | C60: Synchronized Interest (c ) | G60: Line 37 | I60: =G73 -> -81.07629906
A61: 29 | C61: Taxable Income | I61: =I58-I59-I60 -> 9019.098293
A62: 30 | C62: Combined State and Federal Income Tax Rate Used | I62: =G66 -> 0.38575
A63: 31 | C63: Income Tax Expense | G63: Line 29 x Line 30 | I63: =I61*I62 -> 3479.117167
A65: (a) | C65: Page 3, lines 22-28 state the income statement amounts as net operating income impacts
A66: =A63+1 -> 32 | C66: Combined State and Federal Income Tax Rate Used | G66: 0.38575
A67: =A66+1 -> 33 | C67: NOI factor: 1 minus Income Tax Rate | G67: =1-G66 -> 0.61425
A68: 34 | C68: 1 divided by NOI factor | G68: =1/G67 -> 1.628001628
A70: (c ) | C70: Synchronized Interest
A71: =A68+1 -> 35 | C71: Rate Base | E71: Page 1 | G71: ='Ep1'!$G$29 -> -5720.626116
A72: =A71+1 -> 36 | C72: FPL Interest | E72: Page 3 | G72: ='Ep3'!$C$32 -> 0.01417262681
A73: 37 | C73: Synchronized Interest | G73: =G71*G72 -> -81.07629906

Sheet Ep3
A1: Schedule E, page 3 of 3 | M1: ='SchA-1'!G1 -> Docket No: 160021-EI
M2: ='SchA-1'!G2 -> January 2017 Rate Change
A3: Florida Power & Light Company | M3: ='SchA-1'!G3 -> Exhibit No. RCS-2
A4: Projected Test Year Ended December 31, 2017
A6: Company Rate Base and Net Operating Income Adjustments from May 3, 2016 Notice of Identified Adjustments
C9: 2017
C10: (1) | D10: (2) | E10: (3) | F10: (4) | G10: (5) | H10: (6) | I10: (7) | J10: (8) | K10: (9) | L10: (10)
A11: Line No. | B11: Description | C11: Aviation gains | D11: Pension Debit | E11: WCEC Water Reclamation | F11: Late Payment charges | G11: Returned Checks | H11: Uncollectible Accounts Expense | I11: Retail Base Revenues | J11: DSM Adj | K11: Depreciation Co Adj | L11: Dismantlement Co Adj | M11: Total
B12: RATE BASE
A13: 1 | B13: PLANT IN SERVICE | F13: 0 | K13: 0 | M13: =SUM(C13:L13) -> 0
A14: =+A13+1 -> 2 | B14: DEPRECIATION & AMORT RESERVE | F14: 0 | K14: =-[1]Distribution!$O$42 -> 1327.920021 | L14: =+[1]Dismantlement!$Q$44 -> 724578.2698 | M14: =SUM(C14:L14) -> 725906.1898
A15: 3 | B15: NET PLANT IN SERVICE | C15: =C13+C14 -> 0 | D15: 0 | E15: 0 | F15: 0 | G15: 0 | H15: 0 | I15: 0 | J15: 0 | K15: 1327.920021 | L15: 724578.2698 | M15: =M13+M14 -> 725906.1898
A16: 4
A17: 5 | B17: FUTURE USE PLANT | C17: 0 | D17: 0 | E17: 0 | F17: 0 | G17: 0 | H17: 0 | I17: 0 | J17: 0 | K17: 0 | L17: 0 | M17: =SUM(C17:L17) -> 0
A18: 6 | B18: CWIP | C18: 0 | D18: 0 | E18: 0 | F18: 0 | G18: 0 | H18: 0 | I18: 0 | J18: 0 | K18: 0 | L18: 0 | M18: =SUM(C18:L18) -> 0
A19: 7 | B19: NUCLEAR FUEL | C19: 0 | D19: 0 | E19: 0 | F19: 0 | G19: 0 | H19: 0 | I19: 0 | J19: 0 | K19: 0 | L19: 0 | M19: =SUM(C19:L19) -> 0
A20: 8 | B20: NET UTILITY PLANT | C20: =C15+C17+C18+C19 -> 0 | D20: 0 | E20: 0 | F20: 0 | G20: 0 | H20: 0 | I20: 0 | J20: 0 | K20: 1327.920021 | L20: 724578.2698 | M20: =M15+M17+M18+M19 -> 725906.1898
A21: 9
A22: 10 | B22: WORKING CAPITAL | D22: ='[1]Pension Debit Bal'!$E$36 -> -3646235.923 | E22: 0 | F22: 0 | G22: 0 | H22: =+'[1]UAR-Late Pymt-Return Checks'!$AF$17 -> 30106.72997 | I22: 0 | K22: 0 | L22: 0 | M22: =SUM(C22:L22) -> -3616129.193
A23: 11 | B23: RATE BASE - INCREASE/(DECREASE) | C23: =C20+C22 -> 0 | D23: -3646235.923 | E23: 0 | F23: 0 | G23: 0 | H23: 30106.72997 | I23: 0 | J23: 0 | K23: 1327.920021 | L23: 724578.2698 | M23: =M20+M22 -> -2890223.003
A24: 12
A25: 13 | B25: JURISDICTIONAL FACTOR (2) | C25: 0 | D25: ='[1]rate base'!$D$394 -> 0.9674535142 | E25: 0 | F25: 1 | G25: 1 | H25: 1 | I25: 1 | J25: 0 | K25: 1 | L25: =[1]Dismantlement!$R$36 -> 0.9505951814
A26: 14 | B26: JURISDICTIONAL RATE BASE | C26: =+C23*C25 -> 0 | D26: -3527563.757 | E26: 0 | F26: 0 | G26: 0 | H26: 30106.72997 | I26: 0 | J26: ='[1]DSM peak adj - sep fac - RB'!$AE$553 -> -2913277.621 | K26: 1327.920021 | L26: 688780.6118 | M26: =SUM(C26:L26) -> -5720626.116
A27: 15
A28: 16 | B28: PRE-TAX RATE OF RETURN (D-1a) (1) | C28: =[1]OCEC!$B$13 -> 0.09865949137 | D28: =+C28 -> 0.09865949137 | E28: =+D28 -> 0.09865949137 | F28: 0.09865949137 | G28: 0.09865949137 | H28: 0.09865949137 | I28: 0.09865949137 | J28: 0.09865949137 | K28: 0.09865949137 | L28: 0.09865949137
A29: 17
A30: 18 | B30: RETURN ON RATE BASE | C30: =+C26*C28 -> 0 | D30: -348027.646 | E30: 0 | F30: 0 | G30: 0 | H30: 2970.314666 | I30: 0 | J30: -287422.4883 | K30: 131.0119139 | L30: 67954.74482 | M30: =SUM(C30:L30) -> -564394.0629
A31: 19
A32: 20 | B32: COST OF DEBT (D-1a) (1) | C32: =[1]OCEC!$B$12 -> 0.01417262681 | D32: =+C32 -> 0.01417262681 | E32: =+D32 -> 0.01417262681 | F32: 0.01417262681 | G32: 0.01417262681 | H32: 0.01417262681 | I32: 0.01417262681 | J32: 0.01417262681 | K32: 0.01417262681 | L32: 0.01417262681 | M32: 0.01417262681
A33: 21 | B33: INTEREST SYNC ADJUSTMENT | C33: =-C26*C32*0.38575 -> 0 | D33: =-D26*D32*0.38575 -> 19285.51133 | E33: 0 | F33: 0 | G33: 0 | H33: -164.5962262 | I33: 0 | J33: 15927.15325 | K33: -7.259859322 | L33: -3765.62614 | M33: =-M26*M32*0.38575 -> 31275.18236
B35: NET OPERATING INCOME
A36: =+A33+1 -> 22 | B36: OPERATION AND MAINTENANCE EXPENSE | C36: 0 | D36: 0 | E36: =+-'[1]WCEC water reclam'!$K$80 -> -4243153.125 | F36: 0 | G36: 0 | H36: ='[1]UAR-Late Pymt-Return Checks'!$Q$15 -> 398765 | I36: 0 | J36: 0 | K36: 0 | L36: 0 | M36: =SUM(C36:L36) -> -3844388.125
A37: =A36+1 -> 23 | B37: DEPRECIATION & AMORTIZATION | C37: 0 | E37: 0 | F37: 0 | G37: 0 | H37: 0 | I37: 0 | J37: 0 | K37: =+[1]Distribution!$O$39 -> -2709.963363 | L37: =+[1]Dismantlement!$P$38 -> -1449156.54
A38: 24 | B38: REVENUES | C38: ='[1]aviation gains'!$O$27 -> 1229710 | D38: 0 | E38: 0 | F38: =-'[1]UAR-Late Pymt-Return Checks'!$Q$21 -> -244983 | G38: =-'[1]UAR-Late Pymt-Return Checks'!$Q$22 -> -6123 | H38: 0 | I38: -4903899 | J38: 0 | K38: 0 | L38: 0 | M38: =SUM(C38:L38) -> -3925295
A39: 25 | B39: TOTAL - INCREASE/(DECREASE) | C39: =SUM(C36:C38) -> 1229710 | D39: 0 | E39: -4243153.125 | F39: -244983 | G39: -6123 | H39: 398765 | I39: -4903899 | J39: 0 | K39: -2709.963363 | L39: -1449156.54 | M39: =SUM(M36:M38) -> -7769683.125
A40: 26
A41: 27 | B41: JURISDICTIONAL FACTOR (2) | C41: 1 | D41: 0 | E41: ='[1]WCEC water reclam'!$M$80 -> 0.9500531064 | F41: 1 | G41: 1 | H41: 1 | I41: 1 | K41: 1 | L41: =L25 -> 0.9505951814
A42: 28 | B42: JURISDICTIONAL NET OPERATING INCOME | C42: =+C39*C41 -> 1229710 | D42: 0 | E42: -4031220.807 | F42: -244983 | G42: -6123 | H42: 398765 | I42: -4903899 | J42: ='[1]DSM peak adj - sep fac - NOI'!$AE$489 -> -450736.4584 | K42: -2709.963363 | L42: -1377561.224 | M42: =SUM(C42:L42) -> -9388758.453
A46: 26 | B46: SUBTOTAL (SUM OF LINES 18, 21, & 25) | C46: =+C30+C33+C42 -> 1229710 | D46: =+D30+D33+D42 -> -328742.1347 | E46: -4031220.807 | F46: -244983 | G46: -6123 | H46: 401570.7184 | I46: -4903899 | J46: -722231.7934 | K46: -2586.211309 | L46: -1313372.105 | M46: =+M30+M33+M42 -> -9921877.333
A47: 27 | B47: RAF and Bad Debt Multiplier (3) | C47: 1.00137 | D47: 1.00137 | E47: 1.00137 | F47: 1.00137 | G47: 1.00137 | H47: 1.00137 | I47: 1.00137 | J47: 1.00137 | K47: 1.00137 | L47: 1.00137 | M47: 1.00137
A48: 28 | B48: TOTAL REVENUE REQUIREMENT | C48: =+C46*C47 -> 1231394.703 | D48: =+D46*D47 -> -329192.5114 | E48: -4036743.58 | F48: -245318.6267 | G48: -6131.38851 | H48: 402120.8703 | I48: -4910617.342 | J48: -723221.2509 | K48: -2589.754418 | L48: -1315171.425 | M48: =+M46*M47 -> -9935470.305
B50: Notes:
B51: (1) Pre-Tax COC (debt/equity) was obtained from MFRs D-1a for the TY & SY
B52: (2) Jurisdictional factors reflected in this calculation are the same as the jusridictional factors reflected in MFRs B-2 & C-3 for the TY & SY
B53: (3) Refer to MFR C-44 for TY & SY
B54: (4) Fukushima adjustment only applies to 2018.

Sheet Fp1
A1: Schedule F, page 1 of 3 | I1: Docket No: 160021-EI
I2: ='SchA-1'!G2 -> January 2017 Rate Change
A3: Florida Power & Light Company | I3: ='SchA-1'!G3 -> Exhibit No. RCS-2
A4: Projected Test Year Ended December 31, 2017
A6: Company Rate Base Adjustments from June 16, 2016 Second Notice of Identified Adjustments
A7: (Thousands of Dollars)
G10: FPL June 16, 2016
A11: Line | G11: Second Notice of
A12: No. | C12: Rate Base Components | G12: Filing Adjustments
G13: (A)
A15: 1 | C15: Plant in Service
A16: 2 | C16: Accumulated Depreciation & Amortization | G16: =$I$37 -> 10669.32933
A18: 3 | C18: Net Plant in Service | G18: =G15+G16 -> 10669.32933
A20: 4 | C20: Construction Work in Progress
A21: 5 | C21: Plant Held For Future Use
A22: 6 | C22: Nuclear Fuel
A24: 7 | C24: Total Net Plant | G24: =SUM(G18:G22) -> 10669.32933
A26: 8 | C26: Working Capital Allowance | G26: =$I$43 -> 775.850121
A27: 9 | C27: Other Rate Base Items
A29: 10 | C29: Total Rate Base | G29: =SUM(G24:G27) -> 11445.17945
A31: Source/Notes:
A32: Schedule F, page 3 of 3
C33: Description | E33: Page 3 Column Reference | G33: Dollars | I33: Thousands of $
C34: Accumulated Depreciation & Amortization
A35: =A29+1 -> 11 | C35: Depreciation Co Adj | E35: ='Fp3'!$E$9 -> (3) | G35: ='Fp3'!$E$25 -> 10669329.33 | I35: =G35/1000 -> 10669.32933
A36: =A35+1 -> 12 | I36: =G36/1000 -> 0
A37: =A36+1 -> 13 | C37: Accumulated Depreciation & Amortization | G37: =SUM(G35:G36) -> 10669329.33 | I37: =SUM(I35:I36) -> 10669.32933
C39: Working Capital Allowance
A40: =A37+1 -> 14 | C40: ='Fp3'!$D$10 -> SJRPP - Def Credit - Dismantlement | E40: ='Fp3'!D9 -> (2) | G40: ='Fp3'!$D$25 -> 775850.121 | I40: =G40/1000 -> 775.850121
A41: =A40+1 -> 15
A42: 16
A43: 17 | C43: Working Capital Allowance | G43: =SUM(G40:G42) -> 775850.121 | I43: =SUM(I40:I42) -> 775.850121
A45: =A43+1 -> 18 | C45: Total Rate Base | G45: =G43+G37 -> 11445179.45 | I45: =I43+I37 -> 11445.17945

Sheet Fp2
A1: Schedule F, page 2 of 3 | I1: Docket No: 160021-EI
I2: ='SchA-1'!G2 -> January 2017 Rate Change
A3: Florida Power & Light Company | I3: ='SchA-1'!G3 -> Exhibit No. RCS-2
A4: Projected Test Year Ended December 31, 2017
A6: Company Net Operating Income Adjustments from June 16, 2016 Second Notice of Identified Adjustments
A7: (Thousands of Dollars)
G9: FPL June 16, 2016
A10: Line | G10: Notice of
A11: No. | C11: Description | E11: Reference | G11: Filing Adjustments
G12: (A)
C13: Operating Revenues:
A14: 1 | C14: Revenue From Sales | E14: Line 14 | G14: =$I$37 -> 715
A15: 2 | C15: Other Operating Revenues | E15: Line 18
A17: 3 | C17: Total Operating Revenues | E17: Line 19 | G17: =SUM(G14:G16) -> 715
C19: Operating Expenses:
A20: 4 | C20: Other Operation & Maintenance | E20: Line 22 | G20: =$I$50 -> -19.02787572
A21: 5 | C21: Fuel & Interchange
A22: 6 | C22: Purchased Power
A23: 7 | C23: Deferred Costs
A24: 8 | C24: Depreciation & Amortization | E24: Line 25 | G24: =$I$55 -> -21824.17412
A25: 9 | C25: Taxes Other Than Income Taxes
A26: 10 | C26: Income Taxes | E26: Line 31 | G26: =$I$63 -> 8639.254583
A27: 11 | C27: (Gain)/Loss on Disposal of Plant
A28: 12 | C28: Total Operating Expenses | G28: =SUM(G20:G27) -> -13203.94741
A30: 13 | C30: Net Operating Income | G30: =G17-G28 -> 13918.94741
A32: Source/Notes:
A33: Schedule F, page 3 of 3
C34: Description | E34: Page 3 Column Reference | G34: NOI Dollars (a) | I34: Thousands of NOI $
G35: (B) | I35: (C )
C36: Revenues (Decrease) Increase
A37: =A30+1 -> 14 | C37: ='Fp3'!$C$10 -> EDR | E37: ='Fp3'!$C$9 -> (1) | G37: ='Fp3'!$C$37 -> 715000 | H37: (a) | I37: =G37/1000 -> 715
C39: Other Operating Revenues
A40: =A37+1 -> 15
A41: =A40+1 -> 16
A42: =A41+1 -> 17
A43: 18 | C43: Other Operating Revenues | G43: =SUM(G40:G42) -> 0 | I43: =SUM(I40:I42) -> 0
A45: =A43+1 -> 19 | C45: Total Operating Revenues | G45: =G43+G37 -> 715000 | I45: =I43+I37 -> 715
C47: Other Operation & Maintenance
A48: =A45+1 -> 20 | C48: ='Fp3'!$C$10 -> EDR | E48: ='Fp3'!$C$9 -> (1) | G48: ='Fp3'!$C$35 -> -19027.87572 | I48: =G48/1000 -> -19.02787572
A49: =A48+1 -> 21
A50: 22 | C50: Other Operation & Maintenance | G50: =SUM(G48:G49) -> -19027.87572 | I50: =SUM(I48:I49) -> -19.02787572
C52: Depreciation & Amortization
A53: =A50+1 -> 23 | C53: ='Ep3'!$K$11 -> Depreciation Co Adj | E53: ='Fp3'!$E$9 -> (3) | G53: ='Fp3'!$E$41 -> -21824174.12 | I53: =G53/1000 -> -21824.17412
A54: =A53+1 -> 24
A55: =A54+1 -> 25 | C55: Depreciation & Amortization | G55: =SUM(G53:G54) -> -21824174.12 | I55: =SUM(I53:I54) -> -21824.17412
C57: Income Taxes
A58: =A55+1 -> 26 | C58: Revenue | G58: Line 19 | I58: =$I$45 -> 715
A59: =A58+1 -> 27 | C59: Pre-Tax Expenses | G59: Lines 22 + 25 | I59: =I50+I55 -> -21843.20199
A60: 28 | C60: Synchronized Interest (c ) | G60: Line 37 | I60: =G73 -> 162.2082571
A61: 29 | C61: Taxable Income | I61: =I58-I59-I60 -> 22395.99373
A62: 30 | C62: Combined State and Federal Income Tax Rate Used | I62: =G66 -> 0.38575
A63: 31 | C63: Income Tax Expense | G63: Line 29 x Line 30 | I63: =I61*I62 -> 8639.254583
A65: (a) | C65: Page 3, lines 22-28 state the income statement amounts as net operating income impacts
A66: =A63+1 -> 32 | C66: Combined State and Federal Income Tax Rate Used | G66: 0.38575
A67: =A66+1 -> 33 | C67: NOI factor: 1 minus Income Tax Rate | G67: =1-G66 -> 0.61425
A68: 34 | C68: 1 divided by NOI factor | G68: =1/G67 -> 1.628001628
A70: (c ) | C70: Synchronized Interest
A71: =A68+1 -> 35 | C71: Rate Base | E71: Page 1 | G71: ='Fp1'!$G$29 -> 11445.17945
A72: =A71+1 -> 36 | C72: FPL Interest | E72: Page 3 | G72: ='Ep3'!$C$32 -> 0.01417262681
A73: 37 | C73: Synchronized Interest | G73: =G71*G72 -> 162.2082571

Sheet Fp3
A1: Schedule F, page 3 of 3 | F1: ='SchA-1'!G1 -> Docket No: 160021-EI
F2: ='SchA-1'!G2 -> January 2017 Rate Change
A3: Florida Power & Light Company | F3: ='SchA-1'!G3 -> Exhibit No. RCS-2
A4: Projected Test Year Ended December 31, 2017
A6: Company Rate Base and Net Operating Income Adjustments from June 16, 2016 Second Notice of Identified Adjustments
C8: 2017
C9: (1) | D9: (2) | E9: (3) | F9: Total
A10: Line No. | B10: DESCRIPTION | C10: EDR | D10: SJRPP - Def Credit - Dismantlement | E10: Depreciation Co Adj (4)
B11: RATE BASE
A12: 1 | B12: PLANT IN SERVICE | E12: 0 | F12: =SUM(C12:E12) -> 0
A13: =+A12+1 -> 2 | B13: DEPRECIATION & AMORT RESERVE | D13: 0 | E13: 11153114.47 | F13: =SUM(C13:E13) -> 11153114.47
A14: 3 | B14: NET PLANT IN SERVICE | C14: =C12+C13 -> 0 | D14: 0 | E14: 11153114.47 | F14: =F12+F13 -> 11153114.47
A15: 4
A16: 5 | B16: FUTURE USE PLANT | C16: 0 | D16: 0 | E16: 0 | F16: =SUM(C16:E16) -> 0
A17: 6 | B17: CWIP | C17: 0 | D17: 0 | E17: 0 | F17: =SUM(C17:E17) -> 0
A18: 7 | B18: NUCLEAR FUEL | C18: 0 | D18: 0 | E18: 0 | F18: =SUM(C18:E18) -> 0
A19: 8 | B19: NET UTILITY PLANT | C19: =C14+C16+C17+C18 -> 0 | D19: 0 | E19: 11153114.47 | F19: =F14+F16+F17+F18 -> 11153114.47
A20: 9
A21: 10 | B21: WORKING CAPITAL | D21: 816173 | E21: 0 | F21: =SUM(C21:E21) -> 816173
A22: 11 | B22: RATE BASE - INCREASE/(DECREASE) | C22: =C19+C21 -> 0 | D22: 816173 | E22: 11153114.47 | F22: =F19+F21 -> 11969287.47
A23: 12
A24: 13 | B24: JURISDICTIONAL FACTOR (2) | C24: 0 | D24: 0.9505951814 | E24: 0.9566233137
A25: 14 | B25: JURISDICTIONAL RATE BASE | C25: =+C22*C24 -> 0 | D25: 775850.121 | E25: 10669329.33 | F25: =SUM(C25:E25) -> 11445179.45
A26: 15
A27: 16 | B27: PRE-TAX RATE OF RETURN (D-1a) (1) | C27: =D27 -> 0.09865949137 | D27: 0.09865949137 | E27: =D27 -> 0.09865949137 | F27: 0.09865949137
A28: 17
A29: 18 | B29: RETURN ON RATE BASE | C29: =+C25*C27 -> 0 | D29: =+D25*D27 -> 76544.97831 | E29: 1052630.605 | F29: =SUM(C29:E29) -> 1129175.583
A30: 19
A31: 20 | B31: COST OF DEBT (D-1a) (1) | C31: =D31 -> 0.01417262681 | D31: 0.01417262681 | E31: =D31 -> 0.01417262681 | F31: 0.01417262681
A32: 21 | B32: INTEREST SYNC ADJUSTMENT | C32: =-C25*C31*0.38575 -> 0 | D32: =-D25*D31*0.38575 -> -4241.643052 | E32: -58330.19211 | F32: -62571.83516
B34: NET OPERATING INCOME
A35: =+A32+1 -> 22 | B35: OPERATION AND MAINTENANCE EXPENSE | C35: -19027.87572 | D35: 0 | E35: 0 | F35: =SUM(C35:E35) -> -19027.87572
A36: =A35+1 -> 23 | B36: DEPRECIATION & AMORTIZATION | C36: 0 | D36: 0 | E36: -22794378.49
A37: 24 | B37: REVENUES | C37: 715000 | D37: 0 | E37: 0 | F37: =SUM(C37:E37) -> 715000
A38: 25 | B38: TOTAL - INCREASE/(DECREASE) | C38: =SUM(C35:C37) -> 695972.1243 | D38: =SUM(D35:D37) -> 0 | E38: -22794378.49 | F38: 695972.1243
A39: 26
A40: 27 | B40: JURISDICTIONAL FACTOR (2) | C40: 1 | D40: 0 | E40: 0.9574366823
A41: 28 | B41: JURISDICTIONAL NET OPERATING INCOME | C41: =+C38*C40 -> 695972.1243 | D41: 0 | E41: -21824174.12 | F41: =SUM(C41:E41) -> -21128201.99
A45: =A41+1 -> 29 | B45: SUBTOTAL (SUM OF LINES 18, 21, & 25) | C45: =+C29+C32+C41 -> 695972.1243 | D45: =+D29+D32+D41 -> 72303.33526 | E45: -20829873.7 | F45: =+F29+F32+F41 -> -20061598.24
A46: =A45+1 -> 30 | B46: RAF and Bad Debt Multiplier (3) | C46: 1.00137 | D46: 1.00137 | E46: 1.00137 | F46: 1.00137
A47: =A46+1 -> 31 | B47: TOTAL REVENUE REQUIREMENT | C47: =+C45*C46 -> 696925.6061 | D47: 72402.39083 | E47: -20858410.63 | F47: =+F45*F46 -> -20089082.63
A49: Notes:
A50: (1) Pre-Tax COC (debt/equity) was obtained from MFRs D-1a for the TY & SY
A51: (2) Jurisdictional factors reflected in this calculation are the same as the jusridictional factors reflected in MFRs B-2 & C-3 for the TY & SY
A52: (3) Refer to MFR C-44 for TY & SY
A53: (4) Jurisdictional factor reflected for this adjustment is a composite rate. Jurisdictional factors by function are reflected in the supporting tabs in this workbook.
A55: Source: | B55: [Attachment No. 1 - Second Notice of Identified Adjustments Workpapers.xlsx]rev req

Sheet RCS-3 Contents
A3: Florida Power & Light Company
A4: Docket No. 160021-EI
A5: Exhibit RCS-3
A6: Accompanying the Direct Testimony of Ralph Smith | R6: Schedule | T6: Exhibit LA-1
A7: Revenue Requirement Schedules - 2018 Subsequent Year Adjustment
A8: CONTENTS
A9: Schedule Number | B9: Description | C9: No. of Pages | D9: Confi- dential | E9: Page No. | K9: Begin | L9: End | N9: Range
K10: 1 | M10: -
A11: =G11 -> A-1 | B11: Calculation of Revenue Deficiency (Sufficiency) | C11: 1 | D11: No | E11: =N11 -> 2 | G11: A-1 | K11: 2 | L11: =K10+C11 -> 2 | M11: - | N11: =IF(K11=L11,L11,K11&M11&L11) -> 2 | R11: =$R$6&A11 -> Schedule A-1
A12: B-1 | B12: Adjusted Rate Base | C12: 2 | D12: No | E12: =N12 -> 3-4 | G12: B-1 | K12: =L11+1 -> 3 | L12: =L11+C12 -> 4 | M12: - | N12: 3-4 | R12: Schedule B-1
A13: B-2 | B13: Plant Held for Future Use | C13: 1 | D13: No | E13: 5 | G13: B-2 | K13: =L12+1 -> 5 | L13: =L12+C13 -> 5 | M13: - | N13: 5 | R13: Schedule B-2
A14: C-1 | B14: Adjusted Net Operating Income | C14: 2 | D14: No | E14: 6-7 | G14: C-1 | K14: 6 | L14: 7 | M14: - | N14: 6-7 | R14: Schedule C-1
A15: C-2 | B15: ='SchC-2'!$A$6 -> Rate Case Expense | C15: 1 | D15: No | E15: 8 | G15: C-2 | K15: 8 | L15: 8 | M15: - | N15: 8 | R15: Schedule C-2
A16: C-3 | B16: =#REF! ->  | C16: 1 | D16: No | E16: 9 | G16: C-3 | K16: 9 | L16: 9 | M16: - | N16: 9 | R16: Schedule C-3
A17: C-4 | B17: ='SchC-4'!$A$6 -> Income Tax Expense - Impact of Other Adjustments | C17: 1 | D17: No | E17: 10 | G17: C-4 | K17: 10 | L17: 10 | M17: - | N17: 10 | R17: Schedule C-4
A18: C-5 | B18: ='SchC-5'!$A$6 -> Interest Synchronization Adjustment | C18: 1 | D18: No | E18: 11 | G18: C-5 | K18: 11 | L18: 11 | M18: - | N18: 11 | R18: Schedule C-5
A19: C-6 | B19: Revenue at Current Rates - Adjustment for Sales Forecast | C19: 1 | D19: No | E19: 12 | K19: =L18+1 -> 12 | L19: =L18+C19 -> 12 | M19: - | N19: =IF(K19=L19,L19,K19&M19&L19) -> 12 | R19: =$R$6&A19 -> Schedule C-6
A20: C-7 | B20: Depreciation Expense - New Depreciation Rates | C20: 1 | D20: No | E20: 13 | K20: 13 | L20: 13 | M20: - | N20: 13 | R20: Schedule C-7
A21: D | B21: Capital Structure and Cost Rates | C21: 1 | D21: No | E21: 14 | G21: D | K21: 14 | L21: 14 | M21: - | N21: 14 | R21: Schedule D
A22: E | B22: Summary of FPL's May 3, 2016 Notice of Filing Adjustments | C22: 3 | D22: No | E22: 15-17 | K22: 15 | L22: 17 | M22: - | N22: 15-17 | R22: Schedule E
A23: F | B23: Summary of FPL's June 16, 2016 Second Notice of Filing Adjustments | C23: 3 | D23: No | E23: 18-20 | K23: 18 | L23: 20 | M23: - | N23: 18-20 | R23: Schedule F
B26: Total Pages (including Contents page) | C26: =SUM(C11:C25)+1 -> 20

Sheet 18-SchA-1
A1: Schedule A-1 | I1: Docket No: 160021-EI
I2: 2018 Subsequent Year Adjustment
A3: Florida Power & Light Company | I3: Exhibit No. RCS-3
A4: Projected Year Ended December 31, 2018
A6: Adjusted Rate Base-Summary of Adjustments - January 2018 Step Increase (Decrease)
A7: (Thousands of Dollars)
E9: Per | G9: Per
A10: Line | E10: Company | G10: OPC | I10: Col. (B)
A11: No. | C11: Description | E11: Amount | G11: Amount | I11: Reference | K11: workpaper calcs
E12: (A) | G12: (B)
A14: 1 | C14: Jurisdictional Adjusted Rate Base | E14: ='18-SchB-1p1'!E28 -> 33870897 | G14: ='18-SchB-1p1'!$O$28 -> 34269536.4 | I14: Exh. RCS-3, Sch. B-1
A15: =A14+1 -> 2 | C15: Required Rate of Return | E15: ='18-D'!$S$21 -> 0.06705057147 | G15: ='18-D'!$S$31 -> 0.05170974738 | I15: Exh. RCS-3, Sch. D | K15: =E17 -> 2271063 | L15: Required NOI
K16: =E14 -> 33870897 | L16: RB
A17: =A15+1 -> 3 | C17: Jurisdictional Income Required | E17: 2271063 | G17: =G14*G15 -> 1772069.07 | I17: Line 1 x Line 2 | K17: =E17/E14 -> 0.06705057147
A18: =A17+1 -> 4 | C18: Jurisdictional Adj. Net Operating Income | E18: ='18-SchC-1p1'!E30 -> 1575711 | G18: ='18-SchC-1p1'!$O$30 -> 2142473.34 | I18: Exh. RCS-3, Sch. C-1 | K18: =SUM(SchD!S15:S21) -> 0.1188580562
K19: =K17-K18 -> -0.05180748475
A20: =A18+1 -> 5 | C20: Income Deficiency (Sufficiency) | E20: =E17-E18 -> 695352 | G20: =G17-G18 -> -370404.2698 | I20: Line 3 - Line 4
A22: =A20+1 -> 6 | C22: Earned Rate of Return | E22: =E18/E14 -> 0.04652108859 | G22: =G18/G14 -> 0.06251830532 | I22: Line 4 / Line 1
A24: =A22+1 -> 7 | C24: Net Operating Income Multiplier | E24: 1.63024 | G24: 1.63025 | I24: See below
A26: =A24+1 -> 8 | C26: Revenue Deficiency (Sufficiency) | E26: =ROUND(E20*E24,0)+2 -> 1133593 | G26: =ROUND(G20*G24,0) -> -603852 | I26: Line 5 x Line 7 | K26: =G26-E26 -> -1737445
A28: =A26+1 -> 9 | C28: 2017 Revenue Increase (Decrease) Requested | E28: 871301 | G28: =E28/'SchA-1'!$E$25*'SchA-1'!$G$25 -> -811834.3653
A30: =A28+1 -> 10 | C30: Rate Increase Requested (After 2017 Increase) | E30: =E26-E28 -> 262292 | G30: =IF(G26-G28>0,0,G26-G28) -> 0 | I30: None if line 8 is less than zero
A33: Source/Notes:
A34: Col. (A): MFR Schedule A-1
A35: Line 7: | C35: MFR Sch. A-1 and C-44
A36: Col. (B), Line 7: FPL's May 3, 2016 Notice of Identified Adjustments, Item No. 5, NOI Multiplier

Sheet 18-SchB-1p1
A1: Schedule B-1, page 1 of 2 | O1: Docket No: 160021-EI
O2: ='18-SchA-1'!I2 -> 2018 Subsequent Year Adjustment
A3: Florida Power & Light Company | O3: ='18-SchA-1'!I3 -> Exhibit No. RCS-3
A4: Projected Year Ended December 31, 2018
A6: Adjusted Rate Base-Summary of Adjustments - January 2018 Step Increase
A7: (Thousands of Dollars)
E8: Adjusted | K8: Amounts | O8: Adjusted
E9: Juris. Total | G9: FPL May 3, 2016 | I9: FPL June 15, 2016 | K9: Before | O9: Juris. Total
A10: Line | E10: Amount per | G10: Notice of | I10: Second Notice of | K10: OPC | M10: OPC | O10: Amount
A11: No. | C11: Rate Base Components | E11: Company | G11: Filing Adjustments | I11: Filing Adjustments | K11: Adjustments | M11: Adjustments | O11: per OPC
E12: (A) | G12: (B) | I12: (C) | K12: (D) | M12: (E) | O12: (F)
A14: 1 | C14: Plant in Service | E14: 45511408 | K14: =SUM(E14:J14) -> 45511408 | M14: ='18-SchB1p2'!$K$16 -> -45335 | O14: =K14+M14 -> 45466073
A15: 2 | C15: Accumulated Depreciation & Amortization | E15: -14227659 | G15: ='18Ep1'!$G$16 -> 1994.251407 | I15: ='18Fp1'!$G$16 -> 33803.02272 | K15: =SUM(E15:J15) -> -14191861.73 | M15: =-'18-SchB1p2'!$K$25 -> 439500 | O15: =K15+M15 -> -13752361.73
A17: 3 | C17: Net Plant in Service | E17: =E14+E15+1 -> 31283750 | G17: =G14+G15 -> 1994.251407 | I17: =I14+I15 -> 33803.02272 | K17: =K14+K15 -> 31319546.27 | M17: =M14+M15 -> 394165 | O17: =O14+O15 -> 31713711.27
A19: 4 | C19: Construction Work in Progress | E19: 807675 | K19: =SUM(E19:J19) -> 807675 | O19: =K19+M19 -> 807675
A20: 5 | C20: Plant Held For Future Use | E20: 242917 | K20: 242917 | M20: ='18-SchB1p2'!$K$34 -> -14235 | O20: 228682
A21: 6 | C21: Nuclear Fuel | E21: 606781 | K21: 606781 | O21: 606781
A23: 7 | C23: Total Net Plant | E23: =SUM(E17:E21) -> 32941123 | G23: =SUM(G17:G21) -> 1994.251407 | I23: =SUM(I17:I21) -> 33803.02272 | K23: =SUM(K17:K21) -> 32976919.27 | M23: =SUM(M17:M21) -> 379930 | O23: =SUM(O17:O21)+1 -> 33356850.27
A25: 8 | C25: Working Capital Allowance | E25: 929774 | G25: ='18Ep1'!$G$26 -> -14924.10396 | I25: ='18Fp1'!$G$26 -> 914.2279062 | K25: =SUM(E25:J25) -> 915764.1239 | M25: ='18-SchB1p2'!$K$40 -> -3078 | O25: =K25+M25 -> 912686.1239
A26: 9 | C26: Other Rate Base Items | O26: =SUM(E26:M26) -> 0
A28: 10 | C28: Total Rate Base | E28: =SUM(E23:E26) -> 33870897 | G28: =SUM(G23:G26) -> -12929.85255 | I28: =SUM(I23:I26) -> 34717.25062 | K28: =SUM(K23:K26) -> 33892683.4 | M28: =SUM(M23:M26) -> 376852 | O28: =SUM(O23:O26) -> 34269536.4 | R28: =O28-E28 -> 398639.3981
A31: Source/Notes:
A32: Col. (A): Company MFR Schedule B-1
A33: Col. (B): Company May 3, 2016 Notice of Filing Adjustments. Also see Exhibit RCS-3, Schedule E, page 1
A34: Col. (C): Company June 16, 2016 Second Notice of Filing Adjustments. Also see Exhibit RCS-3, Schedule F
A35: Col. (D): Sum of columns A, B and C
A36: Col. (E): See Exhibit RCS-2, Schedule B-1, page 2
A37: Col. (F): Sum of columns D and E

Sheet 18-SchB1p2
A1: Schedule B-1, page 2 of 2 | K1: Docket No: 160021-EI
K2: ='18-SchA-1'!I2 -> 2018 Subsequent Year Adjustment
A3: Florida Power & Light Company | K3: ='18-SchA-1'!I3 -> Exhibit No. RCS-3
A4: Projected Year Ended December 31, 2018
A6: Adjusted Rate Base-Summary of Adjustments
A7: (Thousands of Dollars)
I10: Jurisdictional
A11: Line | G11: OPC | I11: Separation | K11: Jurisdictional
A12: No. | C12: Adjustment Title | E12: Reference | G12: Adjustments | I12: Factor | K12: Amount
C14: Plant in Service Adjustments:
A15: 1 | C15: Storm Hardening | E15: Exhibit HWS-9 | G15: -45335 | I15: 1 | K15: =ROUND(G15*I15,0) -> -45335
A16: =A15+1 -> 2 | C16: Total Plant in Service | G16: =SUM(G15:G15) -> -45335 | K16: =SUM(K15:K15) -> -45335
A17: =A16+1 -> 3
A18: 4
A19: 5 | C19: Accumulated Depreciation Adjustments:
A20: 6 | C20: OPC's Adjustment to New Depreciation Rates for 2017 | E20: Exh. RCS-2, Sch. C-7 | K20: =ROUND(G20*I20,0) -> 0
A21: 7 | C21: Depreciation Expense | E21: One-half Depr'n Exp. | G21: ='18C-7'!$M$39/1000/2 -> -143093.054 | I21: 0.897028 | K21: =ROUND(G21*I21,0) -> -128358
A22: 8 | C22: Depreciation Reserve Excess - 2017 impact (full year) | E22: Annual Amort. full year | G22: ='18C-7'!$O$39/1000 -> -230781.6685 | I22: 0.897028 | K22: -207018
A23: 9 | C23: Depreciation Reserve Excess - 2018 impact (1/2 year) | E23: [1/2 of annual amort] | G23: =G22/2 -> -115390.8342 | I23: 0.897028 | K23: -103509
A24: 10 | C24: Storm Hardening | E24: Exhibit HWS-9 | G24: -615 | I24: 1 | K24: -615
A25: 11 | C25: Total Accumulated Depreciation | G25: =SUM(G20:G24) -> -489880.5568 | K25: =SUM(K20:K24) -> -439500
A26: 12
A27: 13
A28: 14
A29: 15
A30: 16
A31: 17 | C31: Plant Held for Future Use:
A32: 18 | C32: Reduction to Transmission PHFFU | E32: Exh. RCS-2, Sch. B-2 | G32: =SchB2!$E15/1000 -> -4637.31542 | I32: 0.903661 | K32: =ROUND(G32*I32,0) -> -4191
A33: 19 | C33: Reduction to Distributon PHFFU | E33: Exh. RCS-2, Sch. B-2 | G33: =SchB2!$E16/1000 -> -10043.80165 | I33: 1 | K33: =ROUND(G33*I33,0) -> -10044
A34: 20 | C34: Total Plant Held for Future Use | G34: =SUM(G32:G33) -> -14681.11707 | K34: =SUM(K32:K33) -> -14235
A35: 21
A36: 22 | C36: Working Capital Adjustments
A37: 23 | C37: Adjustment to Working Capital | E37: Exhibit HWS-11 | I37: Various
A38: 24 | C38: Remove Unamortized Rate Case Expense | E38: Smith Testimony | G38: -3078 | I38: 1 | K38: =ROUND(G38*I38,0) -> -3078
A39: 25 | E39: FPL Sch B-1, p.3, L23
A40: 26 | C40: Total Working Capital | G40: =SUM(G37:G38) -> -3078 | K40: =SUM(K37:K38) -> -3078
C42: Notes:
C43: Jurisdictional Separation Factors from FPL's MFR Schedule B-6.
C44: (a) References beginning with Exh. HWS refer to exhibits presented with the testimony of Helmuth W. Schultz, III.

Sheet 18-SchB-2
A1: Schedule B-2 | I1: Docket No: 160021-EI
I2: ='18-SchA-1'!I2 -> 2018 Subsequent Year Adjustment
A3: Florida Power & Light Company | I3: ='18-SchA-1'!I3 -> Exhibit No. RCS-3
A4: Projected Year Ended December 31, 2018
A5: January 2018 Step Increase
A7: Reduction to Plant Held For Future Use (PHFFU)
A8: Plant Held for Future Use Adjustment 2018 Test Year
E11: Test Year | G11: Test Year | I11: Test Year
A12: Line | E12: 2017 | G12: Jurisdictional | I12: Jurisdictional
A13: No. | C13: Description | E13: 13 Month Average | G13: Factor | I13: Amount
E14: (A) | G14: (B) | I14: (C)
A16: 1 | C16: Transmission | E16: -4637315.42 | G16: 0.903661 | I16: =E16*G16 -> -4190561.09
A17: =A16+1 -> 2 | C17: Distribution | E17: -10043801.65 | G17: 1 | I17: =E17*G17 -> -10043801.65
A18: =A17+1 -> 3 | C18: Total Adjustment | E18: =SUM(E16:E17) -> -14681117.07 | I18: =SUM(I16:I17) -> -14234362.74
B21: Notes and Source:
B22: See Schedule B-2, Exhibit RCS-2, page 2 for detail
B23: Col. B: FPL MFR Schedule B-15

Sheet 18-SchC-1p1
A1: Schedule C-1, page 1 of 2 | O1: Docket No: 160021-EI
O2: ='18-SchA-1'!I2 -> 2018 Subsequent Year Adjustment
A3: Florida Power & Light Company | O3: ='18-SchA-1'!I3 -> Exhibit No. RCS-3
A4: Projected Year Ended December 31, 2018
A6: Adjusted Rate Base-Summary of Adjustments - January 2018 Step Increase
A7: (Thousands of Dollars)
E9: Adjusted | K9: Amounts | O9: Adjusted
E10: Jurisdictional | G10: FPL May 3, 2016 | I10: FPL June 15, 2016 | K10: Before | O10: Juris. Total
A11: Line | E11: Total per | G11: Notice of | I11: Second Notice of | K11: OPC | M11: OPC | O11: Amount
A12: No. | C12: Description | E12: Company | G12: Filing Adjustments | I12: Filing Adjustments | K12: Adjustments | M12: Adjustments | O12: per OPC
E13: (A) | G13: (B) | I13: (C) | K13: (D) | M13: (E) | O13: (F)
C14: Operating Revenues:
A15: 1 | C15: Sales From Electricity | E15: 5766631 | G15: ='18Ep2'!G14 -> 5491.774512 | I15: ='18Fp2'!G14 -> 850 | K15: =SUM(E15:I15) -> 5772972.775 | M15: ='18-SchC1p2'!$K$15 -> 254008 | O15: =K15+M15 -> 6026980.775
A16: =A15+1 -> 2 | C16: Other Operating Revenues | E16: 200898 | G16: ='18Ep2'!G15 -> -6760.67046 | K16: =SUM(E16:I16) -> 194137.3295 | O16: =K16+M16 -> 194137.3295
A17: =A16+1 -> 3 | C17: Total Operating Revenues | E17: =SUM(E15:E16) -> 5967529 | G17: =SUM(G15:G16) -> -1268.895948 | I17: =SUM(I15:I16) -> 850 | K17: =SUM(K15:K16) -> 5967110.104 | M17: =SUM(M15:M16) -> 254008 | O17: =SUM(O15:O16) -> 6221118.104
C19: Operating Expenses:
A20: =A17+1 -> 4 | C20: Operation & Maintenance: | E20: 1379393 | G20: ='18Ep2'!$G$20 -> -4046.219191 | I20: ='18Fp2'!G20 -> -25.67387165 | K20: =SUM(E20:I20) -> 1375321.107 | M20: ='18-SchC1p2'!$K$28 -> -64881 | O20: =K20+M20 -> 1310440.107
A21: =A20+1 -> 5 | C21: Fuel | E21: 24262 | K21: =SUM(E21:I21) -> 24262 | O21: 24262
A22: 6 | C22: Purchased Power | E22: 0 | K22: 0 | O22: 0
A23: 7 | C23: Deferred Costs | K23: 0 | O23: 0
A24: 8 | C24: Depreciation & Amortization | E24: 1738419 | G24: ='18Ep2'!$G$24 -> -1381.630696 | I24: ='18Fp2'!G24 -> -23660.46872 | K24: 1713376.901 | M24: ='18-SchC1p2'!$K$42 -> -496463 | O24: 1216913.901
A25: 9 | C25: Taxes Other Than Income Taxes | E25: 615473 | K25: 615473 | M25: ='18-SchC1p2'!$K$47 -> -2809 | O25: 612664
A26: 10 | C26: Income Taxes | E26: 645029 | G26: ='18Ep2'!$G$26 -> 1679.909921 | I26: ='18Fp2'!G26 -> 9261.846942 | K26: 655970.7569 | M26: ='18-SchC1p2'!$K$52 -> 269153 | O26: 925123.7569
A27: 11 | C27: (Gain)/Loss on Disposal of Plant | E27: -10759 | K27: -10759 | O27: -10759
A28: 12 | C28: Total Operating Expenses | E28: =SUM(E20:E27)+1 -> 4391818 | G28: =SUM(G20:G27) -> -3747.939966 | I28: =SUM(I20:I27) -> -14424.29565 | K28: =SUM(K20:K27) -> 4373644.764 | M28: =SUM(M20:M27) -> -295000 | O28: =SUM(O20:O27) -> 4078644.764
A30: =A28+1 -> 13 | C30: Net Operating Income | E30: =E17-E28 -> 1575711 | G30: =G17-G28 -> 2479.044018 | I30: =I17-I28 -> 15274.29565 | K30: =K17-K28 -> 1593465.34 | M30: =M17-M28 -> 549008 | O30: =O17-O28 -> 2142473.34
A33: Source/Notes
A34: Col.(A): Per Company amounts are from FPL MFR Schedule C-1
A35: Col. (B): Company May 3, 2016 Notice of Filing Adjustments. Also see Exhibit RCS-2, Schedule E, page 2
A36: Col. (C): Company June 16, 2016 Second Notice of Filing Adjustments. Also see Exhibit RCS-2, Schedule F
A37: Col. (D): Sum of columns A, B and C
A38: Col. (E): See Exhibit RCS-2, Schedule C-1, page 2
A39: Col. (F): Sum of columns D and E

Sheet 18-SchC1p2
A1: Schedule C-1, page 2 of 2 | K1: Docket No: 160021-EI
K2: ='18-SchA-1'!I2 -> 2018 Subsequent Year Adjustment
A3: Florida Power & Light Company | K3: ='18-SchA-1'!I3 -> Exhibit No. RCS-3
A4: Projected Year Ended December 31, 2018
A6: Adjusted Rate Base-Summary of Adjustments - January 2018 Step Increase
A7: (Thousands of Dollars)
I8: Jurisdictional
A9: Line | G9: OPC | I9: Separation | K9: Jurisdictional
A10: No. | C10: Adjustment Title | E10: Reference | G10: Adjustment | I10: Factor | K10: Amount
C12: Revenue at Current Rates
A13: 1 | C13: Revenue at Current Rates - Sales Forecast Adjustment | E13: Dismukes Testimony | G13: ='18C-6'!$E$15 -> 259500 | I13: 1 | K13: =ROUND(G13*I13,0) -> 259500
A14: =A13+1 -> 2 | C14: less amount in FPL Corrections | E14: Exh. RCS-3, Sch. C-6 | G14: =-'18C-6'!E16 -> -5491.774512 | I14: 1 | K14: =ROUND(G14*I14,0) -> -5492
A15: =A14+1 -> 3 | C15: subtotal | G15: =SUM(G13:G14) -> 254008.2255 | K15: =SUM(K13:K14) -> 254008
A16: 4
A17: 5 | C17: Other Operating and Maintenance Expense
A18: 6 | C18: Rate Case Expense | E18: Exh. RCS-3, Sch. C-2 | G18: ='18-SchC-2'!$G$15 -> -326 | I18: 1 | K18: =ROUND(G18*I18,0) -> -326
A19: 7 | C19: Employee Count Adjustment | E19: Exh. HWS-10, p.1 | G19: -16530 | I19: 0.964177 | K19: =ROUND(G19*I19,0) -> -15938
A20: =A19+1 -> 8 | C20: Employee Incentive Compensation Adjustment | E20: Exh. HWS-10, p.2 | G20: =SchC1p2!G22 -> -28216 | I20: =SchC1p2!I22 -> 0.967467 | K20: -27298
A21: 9 | C21: Benefit Expense Adjustment | E21: Exh. HWS-10, p.4 | G21: -2513 | I21: 0.968861 | K21: -2435
A22: 10 | C22: Distribution Vegetative Mgt. - Tree Trimming | E22: Exh. HWS-10, p.5 | G22: -7428 | I22: =SchC1p2!I24 -> 1 | K22: -7428
A23: 11 | C23: Pole Inspection Expense | E23: Exh. HWS-10, p.6 | G23: -1693 | I23: 0.999422 | K23: -1692
A24: 12 | C24: Directors & Officers Liability Insurance | E24: Exh. HWS-8 | G24: =SchC1p2!G26 -> -1391 | I24: =SchC1p2!I26 -> 0.984797 | K24: -1370
A25: 13 | G25: =SchC1p2!G27 -> 0 | I25: =SchC1p2!I27 -> 0 | K25: 0
A26: 14 | C26: Uncollectible Expense - on Revenue Adjustment | E26: Exh. RCS-3, Sch. C-6 | G26: ='18C-6'!$E$22 -> 167.6454288 | I26: 1 | K26: 168
A27: 15 | C27: Generation Overhaul Expense Normalization | E27: Exh. RCS-2, Sch. C-3 | G27: ='18C3'!$O$34/1000 -> -9036.553318 | I27: ='18C3'!$O$36 -> 0.947444 | K27: =ROUND(G27*I27,0) -> -8562
A28: 16 | C28: subtotal | G28: =SUM(G18:G27) -> -66965.90789 | K28: =SUM(K18:K27) -> -64881
A29: 17
A30: 18 | C30: Depreciation & Amortization Expense | M30: workpaper
A31: 19 | C31: Depreciation Expense - New Depreciation Rates | E31: Pous Testimony | M31: check carry forward to this sch of Depreciation Rates adj
A32: 20 | C32: Production | E32: Exh RCS-2, Sch C-7 | G32: ='18C-7'!M31/1000 -> -211342.052 | I32: ='18C-7'!$R$31 -> 0.9512837372 | K32: =ROUND(G32*I32,0) -> -201046 | M32: Totals
A33: 21 | C33: Transmission | E33: Exh RCS-2, Sch C-7 | G33: ='18C-7'!M33/1000 -> -16062.565 | I33: ='18C-7'!R33 -> 0.8987352178 | K33: =ROUND(G33*I33,0) -> -14436 | N33: Excess | O33: Juris
A34: 22 | C34: Distribution | E34: Exh RCS-2, Sch C-7 | G34: ='18C-7'!M34/1000 -> -56281.801 | I34: ='18C-7'!R34 -> 1 | K34: -56282 | M34: Rates | N34: Reserve | O34: Adj. | P34: Reference
A35: 23 | C35: General | E35: Exh RCS-2, Sch C-7 | G35: ='18C-7'!M35/1000 -> -2499.69 | I35: ='18C-7'!R35 -> 0.9682042331 | K35: -2420 | M35: =SUM(G32:G35) -> -286186.108 | N35: =SUM(G37:G39) -> -230781.6685 | O35: =SUM(K32:K39) -> -495232 | P35: Here
A36: 24 | C36: Depreciation Expense - New Depreciation Rates Excess Reserve | E36: Pous Testimony | M36: ='18C-7'!$M$39/1000 -> -286186.108 | N36: ='18C-7'!$O$39/1000 -> -230781.6685 | O36: ='18C-7'!$T$39/1000 -> -495231.0996 | P36: C-7
A37: 25 | C37: Transmission | E37: Exh RCS-2, Sch C-7 | G37: ='18C-7'!O33/1000 -> -93969.523 | I37: ='18C-7'!R33 -> 0.8987352178 | K37: -84454 | M37: =M35-M36 -> 0 | N37: =N35-N36 -> 0 | O37: -0.9003738281 | P37: Difference - should all be zero or minimal rounding
A38: 26 | C38: Distribution | E38: Exh RCS-2, Sch C-7 | G38: ='18C-7'!O34/1000 -> -129923.5887 | I38: ='18C-7'!R34 -> 1 | K38: -129924
A39: 27 | C39: General | E39: Exh RCS-2, Sch C-7 | G39: ='18C-7'!O35/1000 -> -6888.55675 | I39: ='18C-7'!R35 -> 0.9682042331 | K39: -6670
A40: 28
A41: 29 | C41: Storm Hardening | E41: Exh. HWS-9 | G41: -1231 | I41: 1 | K41: =ROUND(G41*I41,0) -> -1231
A42: 30 | C42: subtotal | G42: =SUM(G32:G41) -> -518198.7765 | K42: =SUM(K32:K41) -> -496463
A43: 31
A44: 32 | C44: Taxes Other Than Income Expense
A45: 33 | C45: Payroll Tax Expense - Base Payroll | E45: Exh. HWS-10, p.3 | G45: -1073 | I45: 0.986375 | K45: =ROUND(G45*I45,0) -> -1058
A46: 34 | C46: Payroll Tax Expense - Incentive Compensation | E46: Exh. HWS-10, p.3 | G46: -1775 | I46: 0.986375 | K46: =ROUND(G46*I46,0) -> -1751
A47: 35 | C47: subtotal | G47: =SUM(G45:G46) -> -2848 | K47: =SUM(K45:K46) -> -2809
A48: 36
A49: 37 | C49: Income Tax Expense
A50: 38 | C50: Impact of other adjustments | E50: Exh. RCS-3, Sch. C-4 | I50: Various | K50: ='18C4'!$G$26 -> 317724
A51: 39 | C51: Interest Synchronization Adjustment | E51: Exh. RCS-3, Sch. C-3 | I51: Various | K51: ='18-SchC-5'!$E$25 -> -48571
A52: 40 | C52: subtotal | K52: =K50+K51 -> 269153

Sheet 18-SchC-2
A1: Schedule C-2 | G1: Docket No: 160021-EI
G2: ='18-SchA-1'!I2 -> 2018 Subsequent Year Adjustment
A3: Florida Power & Light Company | G3: ='18-SchA-1'!I3 -> Exhibit No. RCS-3
A4: Projected Year Ended December 31, 2018
A5: January 2018 Step Increase
A7: Rate Case Expense
A9: (Thousands of Dollars)
A12: Line | G12: Amortization
A13: No. | C13: Description | G13: Expense
A15: 1 | C15: Rounded Adjustment to Test Year Amortization Expense ($000) | G15: ='SchC-2'!$I$19 -> -326
A19: Notes and Source
A20: Exhibit No. RCS-2, Schedule C-2

Sheet 18C3
A1: Schedule C-3 | Q1: Docket No: 160021-EI
Q2: January 2018 Rate Change
A3: Florida Power & Light Company | Q3: Exhibit No. RCS-3
A4: Projected Test Year Ended December 31, 2018
A6: Generation Overhaul Expense Normalization | O6: 2014-2017 | Q6: 2014-2018
O7: Four-Year | Q7: Five-Year
A8: Line | O8: Escalated | Q8: Escalated
A9: No | C9: Description | E9: =G9-1 -> 2014 | G9: =I9-1 -> 2015 | I9: =K9-1 -> 2016 | K9: 2017 | M9: 2018 | O9: Average | Q9: Average
E10: (A) | G10: (B) | I10: (C ) | K10: (D) | M10: (E) | O10: (F) | Q10: (F)
A11: 1 | C11: Steam Plant Overhaul Expense | E11: 16842966 | G11: 9430036 | I11: 16191801 | K11: 4660307 | M11: 21288659
A12: 2 | C12: - Less Retired Units
A14: 3 | C14: Subtotal | E14: =SUM(E11:E13) -> 16842966 | G14: =SUM(G11:G13) -> 9430036 | I14: =SUM(I11:I13) -> 16191801 | K14: =SUM(K11:K13) -> 4660307 | M14: =SUM(M11:M13) -> 21288659
A15: 4 | C15: O&M Compound Multiplier, 2014 - 2018 | E15: =$K$44 -> 1.057680375 | G15: =$K$45 -> 1.056623751 | I15: =$K$46 -> 1.04162436 | K15: =$K$47 -> 1.0206 | M15: =K48 -> 1
A17: 5 | C17: Steam Plant Overhaul Expense - Existing Plants | E17: =E14*E15 -> 17814474.59 | G17: =G14*G15 -> 9964000.008 | I17: =I14*I15 -> 16865774.35 | K17: =K14*K15 -> 4756309.324 | L17: =L14*L15 -> 0 | M17: 21288659 | O17: =AVERAGE(E17:K17) -> 12350139.57 | Q17: =AVERAGE(E17:M17) -> 11781536.21
A19: 6 | C19: Other Production Plant Overhaul Expense | E19: 28667337 | G19: 25439543 | I19: 25697300 | K19: 42803842 | M19: 32249855
A20: 7 | C20: - Less
A21: 8 | C21: - Plus Port Everglades Modernized Unit 5 | E21: =AVERAGE(145537,850171,795922) -> 597210 | G21: =AVERAGE(145537,850171,795922) -> 597210
A23: 9 | C23: Subtotal | E23: =SUM(E19:E22) -> 29264547 | G23: =SUM(G19:G22) -> 26036753 | I23: =SUM(I19:I22) -> 25697300 | K23: =SUM(K19:K22) -> 42803842 | M23: =SUM(M19:M22) -> 32249855
A24: 10 | C24: O&M Compound Multiplier, 2014 - 2018 | E24: =E15 -> 1.057680375 | G24: =G15 -> 1.056623751 | I24: =I15 -> 1.04162436 | K24: =K15 -> 1.0206 | M24: =M15 -> 1
A26: 11 | C26: Other Production Plant Overhaul Expense - Existing Plants | E26: =E23*E24 -> 30952537.03 | G26: =G23*G24 -> 27511051.61 | I26: =I23*I24 -> 26766933.67 | K26: =K23*K24 -> 43685601.15 | M26: =M23*M24 -> 32249855 | O26: =AVERAGE(E26:K26) -> 32229030.86 | Q26: =AVERAGE(E26:M26) -> 32233195.69
A28: 12 | C28: Central Maintenance Overhaul Support | E28: 1183932 | G28: 1096447 | I28: 1074365 | K28: 1074365 | M28: 1184487 | O28: =AVERAGE(E28:K28) -> 1107277.25 | Q28: =AVERAGE(E28:M28) -> 1122719.2
A29: 13 | C29: Total | E29: =E17+E26+E28 -> 49950943.62 | G29: =G17+G26+G28 -> 38571498.62 | I29: 44707073.02 | K29: 49516275.47 | M29: 54723001
A31: 14 | C31: OPC Recommended Normalized Generation Overhaul Expense | O31: =SUM(O17:O28) -> 45686447.68 | Q31: =SUM(Q17:Q28) -> 45137451.1
A32: 15 | C32: 2018 Generation Overhaul Expense in 2018 Base Rate Change, per FPL (Lines 1, 6 and 12 for 2018) | O32: =M11+M23+M28 -> 54723001 | Q32: =$M$29 -> 54723001
A34: 16 | C34: Reduction to Generation Overhaul Expense | O34: =O31-O32 -> -9036553.318 | Q34: =Q31-Q32 -> -9585549.897
A36: =A34+1 -> 17 | C36: Jurisdictional Factor | O36: =ROUND($I$64,6) -> 0.947444 | Q36: =ROUND($I$64,6) -> 0.947444
A37: =A36+1 -> 18 | C37: Reduction to Jurisdictional Generation Overhaul Expense (stated in $000) | O37: =O34/1000*O36 -> -8561.628221 | Q37: =Q34/1000*Q36 -> -9081.771736
A39: Notes and Source
A40: Lines 1, 6,& 12: FPL Responses to Staff's 6th Set of Interrogatories, Interrogatory 153
A41: Lines 4 and 10: MFR Sch. C-40, ad modified to reflect OPC witness Dismukes' recommendations for 2016, 2017, and 2018 general inflation
G42: Inflation
E43: Year | G43: Rate | K43: Factor | M43: For Year
C44: Inflation Rates: | E44: 2014 | G44: 0.016 | K44: =T45 -> 1.057680375 | M44: =E44 -> 2014
E45: 2015 | G45: 0.001 | K45: =T46 -> 1.056623751 | M45: 2015 | R45: 1 | S45: =G45+R45 -> 1.001 | T45: =S45*T46 -> 1.057680375
E46: 2016 | G46: 0.0144 | K46: 1.04162436 | M46: 2016 | R46: 1 | S46: 1.0144 | T46: 1.056623751
E47: 2017 | G47: 0.0206 | K47: 1.0206 | M47: 2017 | R47: 1 | S47: 1.0206 | T47: =S47*T48 -> 1.04162436
E48: 2018 | G48: 0.0206 | K48: 1 | M48: =E48 -> 2018 | R48: 1 | S48: 1.0206 | T48: =S48*S49 -> 1.0206
S49: 1 | U49: 2018
C50: Calculation of Compound Multipliers | E50: 2014 | G50: (1+0.001)*(1+0.0144)*(1+0.0206)*(1+0.0206)
E51: 2015 | G51: (1+0.0144)*(1+0.0206)*(1+0.0206)
E52: 2016 | G52: (1+0.0206)*(1+0.0206)
E53: 2017 | G53: (1+0.0206)
C55: Line 8: | E55: 2016 | G55: 145537
E56: 2017 | G56: 850171
E57: 2018 | G57: 795922
E58: Average | G58: =AVERAGE(G55:G57) -> 597210
C60: Jurisdictional Factor Calculation:
C61: (Figures taken from MFR Schedule C-4, in $000) | E61: Total Company | G61: FPSC Jurisdictional | I61: Jurisdictional Factor
C62: Steam Power Generation | E62: 472933.6732 | G62: 448200.8673 | I62: 0.9477034365
C63: Other Power Generation | E63: 2645031.248 | G63: 2505895.207 | I63: 0.9473972034
C64: Total | E64: =SUM(E62:E63) -> 3117964.921 | G64: =SUM(G62:G63) -> 2954096.074 | I64: =G64/E64 -> 0.9474436529

Sheet 18C4
A1: Schedule C-4 | G1: ='SchA-1'!G1 -> Docket No: 160021-EI
G2: ='18-SchC-5'!$G$2 -> 2018 Subsequent Year Adjustment
A3: Florida Power & Light Company | G3: ='18-SchC-5'!$G$3 -> Exhibit No. RCS-3
A4: ='18-SchA-1'!$A$4 -> Projected Year Ended December 31, 2018
A6: Income Tax Expense - Impact of Other Adjustments
A7: (Thousands of Dollars)
A11: Line
A12: No. | C12: Description | G12: Amount
C14: OPC Jurisdictional Operating Income Adjustments (1):
A15: 1 | C15: Revenue at Current Rates | G15: ='18-SchC1p2'!$K$13 -> 259500
C17: Pre-Tax Operating Expenses:
A18: =A15+1 -> 2 | C18: =SchC1p2!$C$19 -> Other Operating and Maintenance Expense | G18: ='18-SchC1p2'!$K$28 -> -64881
A19: =A18+1 -> 3 | C19: =SchC1p2!$C$32 -> Depreciation & Amortization Expense | G19: ='18-SchC1p2'!$K$42 -> -496463
A20: =A19+1 -> 4 | C20: =SchC1p2!$C$47 -> Taxes Other Than Income Expense | G20: ='18-SchC1p2'!$K$47 -> -2809
A21: 5 | C21: Subtotal Pre-Tax Operating Expenses | G21: =SUM(G18:G20) -> -564153
A22: 6 | C22: Net Increase in Taxable Income | G22: =G15-G21 -> 823653
A24: =A22+1 -> 7 | C24: Composite Income Tax Rate (2) | G24: 0.38575
A26: =A24+1 -> 8 | C26: Adjustment to Income Tax Expense | G26: =ROUND(G24*G22,0) -> 317724
A32: Notes and Source
A33: (1) | C33: Exhibit RCS-3, Schedule C-1, Page 2
A34: (2) | C34: Calculated using Florida state income tax rate of 5.50% and Federal income tax rate of 35%
C35: FPL used these same income tax rates in its filing. See, e.g., MFR Schedule C-44

Sheet 18-SchC-5
A1: Schedule C-5 | G1: ='18-SchA-1'!$I$1 -> Docket No: 160021-EI
G2: ='18-SchA-1'!$I$2 -> 2018 Subsequent Year Adjustment
A3: Florida Power & Light Company | G3: ='18-SchA-1'!$I$3 -> Exhibit No. RCS-3
A4: Projected Year Ended December 31, 2018
A5: Canaveral Modernization Project
A6: Adjusted Rate Base-Summary of Adjustments - January 2018 Step Increase
A7: Interest Synchronization Adjustment
A8: (Thousands of Dollars)
A10: Line
A11: No. | C11: Description | E11: Amount | G11: Reference
A13: 1 | C13: Adjusted Jurisdictional Rate Base, per Citizens | E13: ='18-SchB-1p1'!$O$28 -> 34269536.4 | G13: Exh. RCS-3, Sch. B-1
A15: 2 | C15: Weighted Cost of Debt, per OPC | E15: ='18-D'!$G$59 -> 0.01840086072 | G15: Exh. RCS-3, Sch. D
A17: 3 | C17: Interest Deduction for Income Taxes | E17: =ROUND(E13*E15,0) -> 630589
A19: 4 | C19: Jurisdictional Interest Deduction | E19: =$G$43 -> 504674.9297 | G19: (a)
A21: 5 | C21: Increase in Deductible Interest | E21: =E17-E19 -> 125914.0703
A23: 6 | C23: Combined Income Tax Rate | E23: =ROUND('SchC-4'!$G$24,6) -> 0.38575
A25: 7 | C25: Increase (Reduction) to Income Tax Expense | E25: =-ROUND(E21*E23,0) -> -48571
A27: Notes and Source
A28: (a) | C28: Interest in Operating Income Taxes Sch C-22 | E28: 569484 | G28: MFR Schedule C-23
C29: Jurisdictional Factor | E29: 0.979395 | G29: MFR Schedule C-3, line 16
C30: Jurisdictional Interest Deduction | E30: =E28*E29 -> 557749.7822
C32: (a) Per Company amount calculated as the per Company rate base of times the per FPL
C33: weighted Cost of Debt (long term debt, short term debt and customer deposits):
A35: =A25+1 -> 8 | C35: Per Company Rate Base | E35: ='18-SchB-1p1'!$E$28 -> 33870897 | G35: Exh. RCS-3, Sch. B-1
A36: =A35+1 -> 9 | C36: Per Company weighted Cost of Debt | E36: ='18-D'!$G$58 -> 0.01489995762 | G36: Exh. RCS-3, Sch. D
A37: =A36+1 -> 10 | C37: Interest Deduction, per Company | E37: =E35*E36 -> 504674.9297
A39: =A37+1 -> 11 | C39: Per Company weighted Cost of Debt: | E39: Wtd.Cost Rate | G39: Interest Deduction
A40: =A39+1 -> 12 | C40: =SchD!C16 -> Preferred Stock | E40: ='18-D'!$S$14 -> 0.01441278661 | G40: =$E$35*E40 -> 488174.0109
A41: =A40+1 -> 13 | C41: =SchD!C17 -> Common Equity | E41: ='18-D'!$S$15 -> 0.0002544714065 | G41: =$E$35*E41 -> 8619.1748
A42: 14 | C42: =SchD!C20 -> Investment Tax Credits | E42: ='18-D'!$S$18 -> 0.0002326995946 | G42: 7881.744
A43: 15 | C43: Per Company weighted Cost of Debt | E43: =SUM(E40:E42) -> 0.01489995762 | G43: =SUM(G40:G42) -> 504674.9297

Sheet 18C-6
A1: Schedule C-6 | G1: ='SchA-1'!G1 -> Docket No: 160021-EI
G2: ='SchA-1'!G2 -> January 2017 Rate Change
A3: Florida Power & Light Company | G3: ='18-SchA-1'!$I$3 -> Exhibit No. RCS-3
A4: ='18-SchA-1'!$A$4 -> Projected Year Ended December 31, 2018
A6: ='RCS-2 Contents'!B19 -> Revenue at Current Rates - Adjustment for Sales Forecast
A7: (Thousands of Dollars)
A11: Line
A12: No. | C12: Description | E12: Amount | G12: Reference
C14: Revenue at Current Rates
A15: 1 | C15: OPC Forecast Adjustment | E15: 259500 | G15: (a)
A16: =A15+1 -> 2 | C16: Less: Amount in FPL May 3, 2016 Adjustments | E16: ='18Ep2'!$G$14 -> 5491.774512 | G16: (b)
A17: =A16+1 -> 3 | C17: Net Increase to Revenue at Current Rates | E17: =E15-E16 -> 254008.2255
C19: Pre-Tax Operating Expenses:
C20: Uncollectibles Expense
A21: =A17+1 -> 4 | C21: Bad Debt Rate | E21: 0.00066 | G21: (c )
A22: =A21+1 -> 5 | C22: Increase in Uncollectibles Expense | E22: =E21*E17 -> 167.6454288
A27: Notes and Source
A28: (a) | C28: Testimony of OPC witness David Dismukes
A29: (b) | C29: FPL May 3, 2016 Notice of Identified Adjustments, item 4
C30: See Exhibit RCS-3, Schedule E, page 2, Revenue from Sales
A31: (c ) | C31: Bad Debt Rate from MFR Schedule C-44, line 5
C32: As corrected per FPL's May 3, 2016 Notice of Identified Corrections, item 5, NOI Multiplier,
C33: Bad Debt Rate

Sheet 18C-7
A1: Schedule C-7 | T1: Docket No: 160021-EI
T2: January 2018 Rate Change
A3: Florida Power & Light Company | T3: Exhibit No. RCS-3
A4: Test Year Ended December 31, 2018
A5: Annual Depreciation Accruals - New Depreciation Rates
D6: FP&L Existing | G6: FP&L Proposed | K6: Per OPC | Z6: Linked to Detail by Plant Acct
A7: Line No. | B7: Function | C7: Original Cost (Based on 12/31/2017 Electric Plant) | D7: Annual Depr. Rate | E7: Annual Depr. Accruals | G7: Annual Depr. Rate | H7: Annual Depr. Accruals | I7: Increase/ Decrease | K7: Annual Depr. Rate | L7: Annual Depr. Accruals | M7: Difference | O7: Excess Depreciation Reserve for Amortization | P7: Excess Depreciation Reserve Annual Amortization | R7: Total OPC Adjustments | AB7: Per FPL
C8: (A) | D8: (B) | E8: (C ) | G8: (D) | H8: (E) | I8: (F) | K8: (1) | L8: -2 | M8: -3 | O8: -4 | P8: -5 | R8: -6
B9: I. Calculated Depreciation Expense on 12/31/2017 Plant
A10: 1 | B10: Steam | C10: 3243194417 | D10: 2.5 | E10: 80638814 | G10: 3.785439114 | H10: 122769150 | I10: 42130336 | K10: 3.776957816 | L10: 122494085 | M10: -275065 | P10: 0 | R10: -275065 | X10: CALCULATED | Z10: 3.776957816 | AB10: 3.785439114
A11: 2 | B11: Nuclear | C11: 7822373927 | D11: 2 | E11: 160192998 | G11: 4.155662898 | H11: 325071491 | I11: 164878493 | K11: 4.005370069 | L11: 313315024 | M11: -11756467 | P11: 0 | R11: -11756467 | Z11: 4.005370069 | AB11: 4.155662898
A12: 3 | B12: Combined Cycle | C12: 1.088450601e+10 | D12: 3.8 | E12: 412097322 | G12: 4.330640725 | H12: 471368850 | I12: 59271528 | K12: 2.499938606 | L12: 272105967.9 | M12: -199262882.1 | P12: 0 | R12: -199262882.1 | Z12: 2.929639924 | AB12: 4.330640725
A13: 4 | B13: Peaker Plants | C13: 527598852.9 | D13: 3.3 | E13: 17181142 | G13: 3.311747723 | H13: 17472743 | I13: 291601 | K13: 3.084723811 | L13: 16274967.44 | M13: -1197775.559 | P13: 0 | R13: -1197775.559 | Z13: 3.084723811 | AB13: 3.311747723
A14: 5 | B14: Solar | C14: 1051134801 | D14: 3.3 | E14: 34687449 | G14: 3.178378928 | H14: 33409047 | I14: -1278402 | K14: 3.175359925 | L14: 33377313.21 | M14: -31733.79002 | P14: 0 | R14: -31733.79002 | Z14: 3.175359925 | AB14: 3.178378928
A15: 6 | B15: Total Production | C15: 2.352880801e+10 | D15: 3 | E15: 704797725 | G15: 4.122993739 | H15: 970091281 | I15: 265293556 | K15: 3.219743887 | L15: 757567357.5 | M15: -212523923.5 | O15: 0 | P15: 0 | R15: -212523923.5 | Z15: 3.418292275 | AB15: 4.122993739
A16: 7
A17: 8 | B17: Transmission | C17: 5577625822 | D17: 2.8 | E17: 153559713 | G17: 2.499582465 | H17: 139417357 | I17: -14142356 | K17: 2.211705427 | L17: 123360653 | M17: -16056704 | O17: 375878092 | P17: -93969523 | R17: -110026227 | Z17: 2.211705427 | AB17: 2.499582465
A18: 9 | B18: Distribution | C18: 1.601595157e+10 | D18: 3.4 | E18: 537116945 | G18: 3.190100218 | H18: 510924906 | I18: -26192039 | K18: 2.74522391 | L18: 439673732 | M18: -71251174 | O18: 519694355 | P18: -129923588.8 | R18: -201174762.7 | Z18: 2.74522391 | AB18: 3.190100218
A19: 10 | B19: General | C19: 858008961.8 | D19: 4.4 | E19: 37489110 | G19: 3.939478549 | H19: 33801079 | I19: -3688031 | K19: 3.595034357 | L19: 30845716.96 | M19: -2955362.038 | O19: 27554227 | P19: -6888556.75 | R19: -9843918.788 | Z19: 3.595034357 | AB19: 3.939478549
A20: 11 | B20: Total Trans., Dist.
A21: 12 | B21: and General Plant | C21: 2.245158636e+10 | D21: 3.2 | E21: 728165768 | G21: 3.047193776 | H21: 684143342 | I21: -44022426 | K21: 2.645158754 | L21: 593880102 | M21: -90263240.04 | O21: 923126674 | P21: -230781668.5 | R21: -321044908.5 | Z21: 2.644719991 | AB21: 3.047193776
A22: 13
A23: 14 | B23: Grand Total | C23: 4.598039436e+10 | D23: 3.1 | E23: 1432963493 | G23: 3.597695596 | H23: 1654234623 | I23: 221271130 | K23: 2.939181967 | L23: 1351447459 | M23: -302787163.5 | O23: 923126674 | P23: -230781668.5 | R23: -533568832 | Z23: 3.0405677 | AB23: 3.597695596
B25: II. Depreciation Expense Adjustment for Ratemaking - 2018 Projected Test Year
B26: Function | C26: FPL New Depreciation Rates Expense Adjustment | E26: Depreciation Expense -Clauses | G26: Depreciation Expense - Base Rates | H26: Jurisdictional Factors | I26: FPL New Depreciation Rates Juris. Expense Adjustment | K26: OPC New Depreciation Rates Expense Adjustment | L26: Ratio of FPL Base Rates Depreciation Expense Adj to Total Exp. Adj. | M26: OPC Depreciation Expense Adjustment - Base Rates | O26: Excess Depreciation Reserve Annual Amortization | P26: OPC Total Depreciation Expense Adjustment After Clauses | R26: Jurisdictional Factors | T26: OPC New Depreciation Rates Juris. Expense Adjustment
C27: (G) | E27: (H) | G27: (I) | H27: (J) | I27: (K) | K27: (7) = (3) | L27: (8)=I/G | M27: (9)=(8)x(7) | O27: (10)=(5) | P27: (11)=(9)+(10) | R27: (12)=(J) | T27: (13)=(11)x(12)
A28: 15 | B28: Steam | C28: 43253021.74 | E28: 15193385.17 | G28: 28059636.57 | H28: 0.9512837372 | I28: 26692675.94 | K28: -275065 | L28: 0.648732 | M28: -178443 | P28: -178443 | R28: 0.9512837372 | T28: -169749.9239
A29: 16 | B29: Nuclear | C29: 163550927.3 | E29: 3957611.752 | G29: 159593315.5 | H29: 0.9512837372 | I29: 151818525.6 | K29: -11756467 | L29: 0.975802 | M29: -11471984 | P29: -11471984 | R29: 0.9512837372 | T29: -10913111.81
A30: 17 | B30: Other | C30: 52132143.05 | E30: 208202.1544 | G30: 51923940.9 | H30: 0.9512837372 | I30: 49394400.55 | K30: -200492391.5 | L30: 0.996006 | M30: -199691625 | P30: -199691625 | R30: 0.9512837372 | T30: -189963395.3
A31: 18 | B31: Total Production | C31: 258936092 | E31: 19359199.08 | G31: 239576893 | I31: 227905602.1 | K31: -212523923.5 | M31: -211342052 | O31: 0 | P31: -211342052 | R31: 0.9512837372 | T31: -201046257.1
A32: 19
A33: 20 | B33: Transmission | C33: -9870107.58 | E33: 3599.037482 | G33: -9873706.618 | H33: 0.8987352178 | I33: -8873847.868 | K33: -16056704 | L33: 1.000365 | M33: -16062565 | O33: -93969523 | P33: -110032088 | R33: 0.8987352178 | T33: -98889712.57
A34: 21 | B34: Distribution | C34: -23123520.08 | E34: -4858090.244 | G34: -18265429.84 | H34: 1 | I34: -18265429.84 | K34: -71251174 | L34: 0.789907 | M34: -56281801 | O34: -129923588.8 | P34: -186205389.8 | R34: 1 | T34: -186205389.8
A35: 22 | B35: General | C35: -3041360.528 | E35: -468930.8827 | G35: -2572429.646 | H35: 0.9682042331 | I35: -2490637.272 | K35: -2955362.038 | L35: 0.845815 | M35: -2499690 | O35: -6888556.75 | P35: -9388246.75 | R35: 0.9682042331 | T35: -9089740.245
A36: 23 | B36: Total Trans., Dist.
A37: 24 | B37: and General Plant | C37: -36034988.19 | E37: -5323422.089 | G37: -30711566.1 | I37: -29629914.98 | K37: -90263240.04 | M37: -74844056 | O37: -230781668.5 | P37: -305625724.5 | T37: -294184842.6
A38: 25
A39: 26 | B39: Grand Total | C39: 222901103.9 | E39: 14035776.99 | G39: 208865326.9 | I39: 198275687.1 | K39: -302787163.5 | M39: -286186108 | O39: -230781668.5 | P39: -516967776.5 | T39: -495231099.6
A40: 27
A41: 28 | B41: Compare FPL Total Jurisdictional Adjustment (based on MFR Schedule C-2) | I41: 198275687 | J41: (a)
A43: Notes and Source
A44: Columns A-F, Line Nos. 1-16: FPL Exhibit NWA-1, Page 7 of 762
A45: Excess Depreciation Reserve is being amortized over 4 years per recommendation of OPC witness Pous.
A46: (a): MFR Schedule C-2 for Projected Test Year Ended 12/31/18, Page 3 of 3, Line 15
A47: Col.G: FPL response to OPC Fifth Set of Interrogatories, No. 172, Attachment 1
A48: Col.H, lines 15-26: Col. G - Col. I.
A49: Col. H, line 26: FPL response to OPC Fifth Set of Interrogatories, No. 172, Attachment 1. Clauses amounts for 2018 spread in same proportion to FPL Clause adjustments for 2017.
A50: Cols. I, J, and K: FPL response to OPC's Fifth Set of Interrogatories, No. 169, Attachment 2
A51: OPC Depreciation Rate Recommendations from OPC witness Jack Pous are summarized in columns (1) through (6) above.
A53: WORKPAPER BELOW THIS POINT AND ON OTHER TABS OF THIS EXCEL
B54: C:\Cases\FL OPC FPL 2016 rate case\Testimony Jack Pous Depreciation rates\[2016-07-05 OPC Dep templet_please fill in yellow in OPC Adj 2017 tab UPDATED_C7_added 2018.xlsm]C7_2018
B55: C:\Cases\FL OPC FPL 2016 rate case\Testimony Jack Pous Depreciation rates\[2016-07-01 OPC Dep templet_please fill in yellow in OPC Adj 2017 tab and return.xlsm]OPC Adj 2017 Summary
B56: OPC Adj 2017 Summary

Sheet 18-D
A1: Schedule D | S1: ='18-SchA-1'!$I$1 -> Docket No: 160021-EI
S2: ='18-SchA-1'!$I$2 -> 2018 Subsequent Year Adjustment
A3: Florida Power & Light Company | S3: ='18-SchA-1'!$I$3 -> Exhibit No. RCS-3
A4: Projected Test Year Ended December 31, 2018
A6: Cost of Capital
A7: (Thousands of Dollars)
E8: Jurisdictional | G8: OPC | M8: Per
E9: Capital | G9: Adjustments | K9: OPC | M9: Citizens | S9: Per OPC
A10: Line | E10: Structure Per | G10: to | I10: Adjusted | K10: Rate Base | M10: Adjusted | Q10: Cost | S10: Weighted
A11: No. | C11: Description | E11: Company | G11: Cap. Struct. | I11: Amounts | K11: Adjustments | M11: Amounts | O11: Ratio | Q11: Rate | S11: Cost Rate
E12: (A) | G12: (B) | I12: (C) | K12: (D) | M12: (E) | O12: (F) | Q12: (G) | S12: (H)
C13: Per Company
A14: 1 | C14: Long Term Debt | E14: 10024107 | I14: =SUM(E14:G14) -> 10024107 | M14: =SUM(I14:K14) -> 10024107 | O14: =I14/$I$21 -> 0.2959504438 | Q14: 0.0487 | S14: =O14*Q14 -> 0.01441278661
A15: =A14+1 -> 2 | C15: Short Term Debt | E15: 321611 | I15: 321611 | M15: =SUM(I15:K15) -> 321611 | O15: 0.009495201736 | Q15: 0.0268 | S15: =O15*Q15 -> 0.0002544714065
A16: =A15+1 -> 3 | C16: Preferred Stock | E16: 0 | I16: 0 | M16: 0 | O16: 0 | Q16: 0 | S16: 0
A17: 4 | C17: Common Equity | E17: 15284522 | I17: 15284522 | M17: 15284522 | O17: 0.4512582587 | Q17: 0.115 | S17: 0.05189469975
A18: 5 | C18: Customer Deposits | E18: 386360 | I18: 386360 | M18: 386360 | O18: 0.01140684287 | Q18: 0.0204 | S18: 0.0002326995946
A19: 6 | C19: Deferred Taxes | E19: 7753738 | I19: 7753738 | M19: 7753738 | O19: 0.2289203619 | Q19: 0 | S19: 0
A20: 7 | C20: Investment Tax Credits | E20: 100559 | I20: 100559 | M20: 100559 | O20: 0.002968890963 | Q20: 0.0887 | S20: 0.0002633406284 | U20: =SUM(S14:S20) -> 0.06705799799 | V20: this sch
A21: 8 | C21: Total | E21: =SUM(E14:E20) -> 33870897 | G21: =SUM(G14:G20) -> 0 | I21: =SUM(I14:I20) -> 33870897 | M21: =SUM(M14:M20) -> 33870897 | O21: =SUM(O14:O20) -> 1 | S21: =U20+U22 -> 0.06705057147 | U21: ='18-SchA-1'!$K$17 -> 0.06705057147 | V21: sch A
U22: =U21-U20 -> -7.42652313e-06 | V22: diff
C23: Per OPC
A24: =A21+1 -> 9 | C24: Long Term Debt | E24: =E14 -> 10024107 | G24: =M37 -> 2392637.212 | I24: =SUM(E24:G24) -> 12416744.21 | K24: =$I$55*O24 -> 146137.3591 | M24: =SUM(I24:K24) -> 12562881.57 | O24: =I24/$I$31 -> 0.3665903567 | Q24: =Q14 -> 0.0487 | S24: =O24*Q24 -> 0.01785295037
A25: =A24+1 -> 10 | C25: Short Term Debt | E25: =E15 -> 321611 | G25: =M38 -> 76764.78777 | I25: 398375.7878 | K25: =$I$55*O25 -> 4688.635327 | M25: =SUM(I25:K25) -> 403064.4231 | O25: =I25/$I$31 -> 0.01176159544 | Q25: =Q15 -> 0.0268 | S25: =O25*Q25 -> 0.0003152107578
A26: 11 | C26: Preferred Stock | E26: 0 | G26: 0 | I26: 0 | K26: 0 | M26: 0 | O26: 0 | Q26: 0 | S26: 0
A27: 12 | C27: Common Equity | E27: 15284522 | G27: =M39 -> -2469402 | I27: 12815120 | K27: 150825.9945 | M27: 12965945.99 | O27: 0.3783519521 | Q27: =SchD!$Q$27 -> 0.0875 | S27: 0.03310579581
A28: 13 | C28: Customer Deposits | E28: 386360 | G28: 0 | I28: 386360 | K28: 4547.216976 | M28: 390907.217 | O28: 0.01140684287 | Q28: =Q18 -> 0.0204 | S28: 0.0002326995946
A29: 14 | C29: Deferred Taxes | E29: 7753738 | G29: 0 | I29: 7753738 | K29: 91256.67528 | M29: 7844994.675 | O29: 0.2289203619 | Q29: 0 | S29: 0
A30: 15 | C30: Investment Tax Credits | E30: 100559 | G30: 0 | I30: 100559 | K30: 1183.516906 | M30: 101742.5169 | O30: 0.002968890963 | Q30: =(Q24*(M24/($M$24+$M$27)))+(Q27*(M27/(M24+M27))) -> 0.06840629882 | S30: 0.0002030908424 | U30: Compare Sch B final OPC RB
A31: 16 | C31: Total | E31: =SUM(E24:E30) -> 33870897 | G31: =SUM(G24:G30) -> -4.656612873e-10 | I31: =SUM(I24:I30) -> 33870897 | K31: =SUM(K24:K30) -> 398639.3981 | M31: =SUM(M24:M30) -> 34269536.4 | O31: =SUM(O24:O30) -> 1 | S31: =SUM(S24:S30) -> 0.05170974738 | U31: ='18-SchB-1p1'!$O$28 -> 34269536.4 | V31: =M31-U31 -> 0
V32: Diff
I33: Capitalization | M33: Adjs. To
E34: Per FPL | G34: Effective | I34: Ratio | K34: Revised | M34: Reflect OPC
C35: Ratio of Debt & Equity Components | E35: Amounts | G35: FPL Ratio | I35: Per OPC^ | K35: Allocations | M35: Cap. Struct.
E36: (a) | G36: (b) | I36: (c ) | K36: (d) | M36: (e) = (d - a)
A37: =A31+1 -> 17 | C37: Long Term Debt | E37: =E24 -> 10024107 | G37: =E37/$E$41 -> 0.3911046873 | I37: =K46 -> 0.4844568062 | K37: =$E$41*I37 -> 12416744.21 | M37: =K37-E37 -> 2392637.212
A38: =A37+1 -> 18 | C38: Short Term Debt | E38: =E25 -> 321611 | G38: =E38/$E$41 -> 0.01254810724 | I38: =K47 -> 0.01554319381 | K38: =$E$41*I38 -> 398375.7878 | M38: =K38-E38 -> 76764.78777
A39: 19 | C39: Common Equity | E39: =E27 -> 15284522 | G39: =E39/$E$41 -> 0.5963472055 | I39: 0.5 | K39: =$E$41*I39 -> 12815120 | M39: =K39-E39 -> -2469402
E41: =SUM(E37:E40) -> 25630240 | G41: =SUM(G37:G40) -> 1 | I41: =SUM(I37:I40) -> 1 | K41: =SUM(K37:K40) -> 25630240 | M41: =SUM(M37:M40) -> 0
E43: Per FPL | G43: Long/Short | I43: Per OPC | K43: OPC Adjusted
C44: ^ Ratio of Debt Components | E44: Amounts | G44: Term Ratio | I44: Debt Ratio | K44: Debt Ratio
E45: (f) | G45: (g) | I45: (h) | K45: (i) = (g x h)
A46: =A39+1 -> 20 | C46: Long Term Debt | E46: =E37 -> 10024107 | G46: =E46/E48 -> 0.9689136124 | K46: =G46*$I$48 -> 0.4844568062
A47: =A46+1 -> 21 | C47: Short Term Debt | E47: =E38 -> 321611 | G47: =E47/E48 -> 0.03108638762 | K47: =G47*$I$48 -> 0.01554319381
A48: 22 | E48: =E46+E47 -> 10345718 | G48: =G46+G47 -> 1 | I48: 0.5 | K48: =K46+K47 -> 0.5
A50: Notes and Source
A51: The per Company amounts are from MFR Sch. D-1a.
A52: Column (c): Capitalization Ratio per OPC sponsored by OPC Witness Kevin O'Donnell
A53: Column (D): OPC rate base adjustments are from Schedule B-1, page 1, col. E. This includes the FPL update/filing correction rate base adjustments in columns B and C.
E54: FPL Updates | G54: OPC Adjs | I54: Rate Base Adjs
C55: Rate Base Adjustments ($000) | E55: ='18-SchB-1p1'!G28+'18-SchB-1p1'!I28 -> 21787.39807 | G55: ='18-SchB-1p1'!$M$28 -> 376852 | I55: =SUM(E55:G55) -> 398639.3981
A56: Column (G): Lines 1 - 3 and 5 based on per-FPL Cost rates. Return on Equity on line 4 sponsored by OPC witness Randall Woolridge. Lines 7 and 15 are fall-out calculations.
A58: FPL Weighted Cost of Debt for Interest Synchronization | G58: =S14+S15+S18 -> 0.01489995762 | I58: Col. H, lines 1, 2 and 5
A59: OPC Weighted Cost of Debt for Interest Synchronization | G59: =S24+S25+S28 -> 0.01840086072 | I59: Col. H, lines 9, 10 and 13

Sheet 18Ep1
A1: Schedule E, page 1 of 3 | I1: Docket No: 160021-EI
I2: ='SchA-1'!G2 -> January 2017 Rate Change
A3: Florida Power & Light Company | I3: ='18-SchA-1'!$I$3 -> Exhibit No. RCS-3
A4: ='18-SchA-1'!$A$4 -> Projected Year Ended December 31, 2018
A6: Company Rate Base Adjustments from May 3, 2016 Notice of Identified Adjustments
A7: (Thousands of Dollars)
G10: FPL May 3, 2016
A11: Line | G11: Notice of
A12: No. | C12: Rate Base Components | G12: Filing Adjustments
G13: (A)
A15: 1 | C15: Plant in Service
A16: 2 | C16: Accumulated Depreciation & Amortization | G16: =I38 -> 1994.251407
A18: 3 | C18: Net Plant in Service | G18: =G15+G16 -> 1994.251407
A20: 4 | C20: Construction Work in Progress
A21: 5 | C21: Plant Held For Future Use
A22: 6 | C22: Nuclear Fuel
A24: 7 | C24: Total Net Plant | G24: =SUM(G18:G22) -> 1994.251407
A26: 8 | C26: Working Capital Allowance | G26: =$I$45 -> -14924.10396
A27: 9 | C27: Other Rate Base Items
A29: 10 | C29: Total Rate Base | G29: =SUM(G24:G27) -> -12929.85255
A31: Source/Notes:
A32: Schedule E, page 3 of 3
C33: Description | E33: Page 3 Column Reference | G33: Dollars | I33: Thousands of $
C34: Accumulated Depreciation & Amortization
A35: =A29+1 -> 11 | C35: Fukushima | E35: ='18Ep3'!$N$10 -> (11) | G35: ='18Ep3'!$N$26 -> -77803.3645 | I35: =G35/1000 -> -77.8033645
A36: =A35+1 -> 12 | C36: ='18Ep3'!$O$11 -> Depreciation Co Adj | E36: ='18Ep3'!$O$10 -> (12) | G36: ='18Ep3'!$O$26 -> 4216.198635 | I36: =G36/1000 -> 4.216198635
A37: =A36+1 -> 13 | C37: ='18Ep3'!$P$11 -> Dismantlement Co Adj | E37: ='18Ep3'!$P$10 -> (13) | G37: ='18Ep3'!$P$26 -> 2067838.573 | I37: =G37/1000 -> 2067.838573
A38: =A37+1 -> 14 | C38: Accumulated Depreciation & Amortization | G38: =SUM(G35:G37) -> 1994251.407 | I38: =SUM(I35:I37) -> 1994.251407
C40: Working Capital Allowance
A41: =A37+1 -> 14 | C41: ='18Ep3'!$E$11 -> Mitigation Bank Gain | E41: ='18Ep3'!$E$10 -> (2) | G41: ='18Ep3'!$E$26 -> -2430949.152 | I41: =G41/1000 -> -2430.949152
A42: =A41+1 -> 15 | C42: ='18Ep3'!$F$11 -> Pension Debit | E42: ='18Ep3'!$F$10 -> (3) | G42: ='18Ep3'!$F$26 -> -8599615.321 | I42: -8599.615321
A43: 16 | C43: ='18Ep3'!$J$11 -> Uncollectible Accounts Expense | E43: ='18Ep3'!$J$10 -> (7) | G43: ='18Ep3'!$J$26 -> -81171.85722 | I43: -81.17185722
A44: 17 | C44: ='18Ep3'!$M$11 -> DSM Adj | E44: ='18Ep3'!$M$10 -> (10) | G44: ='18Ep3'!$M$26 -> -3812367.628 | I44: -3812.367628
C45: Working Capital Allowance | G45: =SUM(G41:G44) -> -14924103.96 | I45: =SUM(I41:I44) -> -14924.10396
A47: =A44+1 -> 18 | C47: Total Rate Base | G47: =G45+G38 -> -12929852.55 | I47: =I45+I38 -> -12929.85255

Sheet 18Ep2
A1: Schedule E, page 2 of 3 | I1: Docket No: 160021-EI
I2: ='18-SchA-1'!$I$2 -> 2018 Subsequent Year Adjustment
A3: Florida Power & Light Company | I3: ='18Ep1'!$I$3 -> Exhibit No. RCS-3
A4: ='18Ep1'!$A$4 -> Projected Year Ended December 31, 2018
A6: Company Net Operating Income Adjustments from May 3, 2016 Notice of Identified Adjustments
A7: (Thousands of Dollars)
G9: FPL May 3, 2016
A10: Line | G10: Notice of
A11: No. | C11: Description | E11: Reference | G11: Filing Adjustments
G12: (A)
C13: Operating Revenues:
A14: 1 | C14: Revenue From Sales | E14: Line 14 | G14: =$I$39 -> 5491.774512
A15: 2 | C15: Other Operating Revenues | E15: Line 18 | G15: =$I$46 -> -6760.67046
A17: 3 | C17: Total Operating Revenues | E17: Line 19 | G17: =SUM(G14:G16) -> -1268.895948
C19: Operating Expenses:
A20: 4 | C20: Other Operation & Maintenance | E20: Line 22 | G20: =$I$53 -> -4046.219191
A21: 5 | C21: Fuel & Interchange
A22: 6 | C22: Purchased Power
A23: 7 | C23: Deferred Costs
A24: 8 | C24: Depreciation & Amortization | E24: Line 25 | G24: =$I$58 -> -1381.630696
A25: 9 | C25: Taxes Other Than Income Taxes
A26: 10 | C26: Income Taxes | E26: Line 31 | G26: =$I$66 -> 1679.909921
A27: 11 | C27: (Gain)/Loss on Disposal of Plant
A28: 12 | C28: Total Operating Expenses | G28: =SUM(G20:G27) -> -3747.939966
A30: 13 | C30: Net Operating Income | G30: =G17-G28 -> 2479.044018
A32: Source/Notes:
A33: Schedule E, page 3 of 3
C34: Description | E34: Page 3 Column Reference | G34: NOI Dollars (a) | I34: Thousands of NOI $
G35: (B) | I35: (C )
C36: Revenues (Decrease) Increase
A37: =A30+1 -> 14 | C37: ='18Ep3'!$K$11 -> Outdoor Lighting | E37: ='18Ep3'!$K$10 -> (8) | G37: =-'18Ep3'!$K$42 -> -3833010.488 | H37: (a) | I37: =G37/1000 -> -3833.010488
A38: =A37+1 -> 15 | C38: ='18Ep3'!$L$11 -> Retail Base Revenues | E38: ='18Ep3'!$L$10 -> (9) | G38: =-'18Ep3'!$L$42 -> 9324785 | H38: (a) | I38: 9324.785
A39: =A38+1 -> 16 | C39: Revenues (Decrease) Increase | G39: =SUM(G37:G38) -> 5491774.512 | I39: =SUM(I37:I38) -> 5491.774512
C41: Other Operating Revenues
A42: =A39+1 -> 17 | C42: ='18Ep3'!$D$11 -> Aviation gains | E42: ='18Ep3'!$D$10 -> (1) | G42: =-'18Ep3'!$D$42 -> -1229710 | H42: (a) | I42: =G42/1000 -> -1229.71
A43: =A42+1 -> 18 | C43: ='18Ep3'!$E$11 -> Mitigation Bank Gain | E43: ='18Ep3'!$E$10 -> (2) | G43: =-'18Ep3'!$E$42 -> -5028704.46 | H43: (a) | I43: =G43/1000 -> -5028.70446
A44: =A43+1 -> 19 | C44: ='18Ep3'!$H$11 -> Late Payment charges | E44: ='18Ep3'!$H$10 -> (5) | G44: =-'18Ep3'!$H$42 -> -490062 | H44: (a) | I44: -490.062
A45: =A44+1 -> 20 | C45: ='18Ep3'!$I$11 -> Returned Checks | E45: ='18Ep3'!$I$10 -> (6) | G45: =-'18Ep3'!$I$42 -> -12194 | H45: (a) | I45: -12.194
A46: 21 | C46: Other Operating Revenues | G46: =SUM(G42:G45) -> -6760670.46 | I46: =SUM(I42:I45) -> -6760.67046
A48: =A46+1 -> 22 | C48: Total Operating Revenues | G48: =G39+G46 -> -1268895.948 | I48: =I39+I46 -> -1268.895948
C50: Other Operation & Maintenance
A51: =A48+1 -> 23 | C51: ='18Ep3'!$G$11 -> WCEC Water Reclamation | E51: ='18Ep3'!$G$10 -> (4) | G51: ='18Ep3'!$G$42 -> -4032828.191 | I51: =G51/1000 -> -4032.828191
A52: =A51+1 -> 24 | C52: ='18Ep3'!$J$11 -> Uncollectible Accounts Expense | E52: ='18Ep3'!$J$10 -> (7) | G52: ='18Ep3'!$J$42 -> -13391 | I52: -13.391
A53: 25 | C53: Other Operation & Maintenance | G53: =SUM(G51:G52) -> -4046219.191 | I53: =SUM(I51:I52) -> -4046.219191
C55: Depreciation & Amortization
A56: =A53+1 -> 26 | C56: ='18Ep3'!$O$11 -> Depreciation Co Adj | E56: ='18Ep3'!$O$10 -> (12) | G56: ='18Ep3'!$O$42 -> -3071.647526 | I56: =G56/1000 -> -3.071647526
A57: =A56+1 -> 27 | C57: ='18Ep3'!$P$11 -> Dismantlement Co Adj | E57: ='18Ep3'!$P$10 -> (13) | G57: ='18Ep3'!$P$42 -> -1378559.049 | I57: -1378.559049
A58: =A57+1 -> 28 | C58: Depreciation & Amortization | G58: =SUM(G56:G57) -> -1381630.696 | I58: =SUM(I56:I57) -> -1381.630696
C60: Income Taxes
A61: =A58+1 -> 29 | C61: Revenue | G61: Line 22 | I61: =$I$48 -> -1268.895948
A62: =A61+1 -> 30 | C62: Pre-Tax Expenses | G62: Lines 25 and 28 | I62: =I53+I58 -> -5427.849888
A63: 31 | C63: Synchronized Interest (c ) | G63: Line 40 | I63: =G76 -> -195.9648453
A64: 32 | C64: Taxable Income | I64: =I61-I62-I63 -> 4354.918785
A65: 33 | C65: Combined State and Federal Income Tax Rate Used | I65: =G69 -> 0.38575
A66: 34 | C66: Income Tax Expense | G66: Line 32 x Line 33 | I66: =I64*I65 -> 1679.909921
A68: (a) | C68: Page 3, lines 22-28 state the income statement amounts as after tax net operating income impacts
A69: =A66+1 -> 35 | C69: Combined State and Federal Income Tax Rate Used | G69: 0.38575
A70: =A69+1 -> 36 | C70: NOI factor: 1 minus Income Tax Rate | G70: =1-G69 -> 0.61425
A71: 37 | C71: 1 divided by NOI factor | G71: =1/G70 -> 1.628001628 | H71: (b)
A73: (c ) | C73: Synchronized Interest
A74: =A71+1 -> 38 | C74: Rate Base | E74: Page 1 | G74: ='18Ep1'!$G$29 -> -12929.85255
A75: =A74+1 -> 39 | C75: FPL Interest | E75: Page 3 | G75: =ROUND('18Ep3'!$D$32,6) -> 0.015156
A76: 40 | C76: Synchronized Interest | G76: =G74*G75 -> -195.9648453

Sheet 18Ep3
A1: Schedule E, page 3 of 3 | Q1: ='SchA-1'!G1 -> Docket No: 160021-EI
Q2: ='18Ep2'!$I$2 -> 2018 Subsequent Year Adjustment
A3: Florida Power & Light Company | Q3: ='18Ep2'!$I$3 -> Exhibit No. RCS-3
A4: Projected Test Year Ended December 31, 2017
A6: Company Rate Base and Net Operating Income Adjustments from May 3, 2016 Notice of Identified Adjustments
D9: 2018
D10: (1) | E10: (2) | F10: (3) | G10: (4) | H10: (5) | I10: (6) | J10: (7) | K10: (8) | L10: (9) | M10: (10) | N10: (11) | O10: (12) | P10: (13) | Q10: Total
A11: Line No. | B11: Description | D11: Aviation gains | E11: Mitigation Bank Gain | F11: Pension Debit | G11: WCEC Water Reclamation | H11: Late Payment charges | I11: Returned Checks | J11: Uncollectible Accounts Expense | K11: Outdoor Lighting | L11: Retail Base Revenues | M11: DSM Adj | N11: Fukushima (4) | O11: Depreciation Co Adj | P11: Dismantlement Co Adj
B12: RATE BASE
A13: 1 | B13: PLANT IN SERVICE | D13: 0 | E13: 0 | F13: 0 | G13: 0 | H13: 0 | I13: 0 | J13: 0 | K13: 0 | L13: 0 | M13: 0 | N13: 0 | P13: 0 | Q13: =SUM(D13:P13) -> 0
A14: =+A13+1 -> 2 | B14: DEPRECIATION & AMORT RESERVE | D14: 0 | E14: 0 | F14: 0 | G14: 0 | H14: 0 | I14: 0 | J14: 0 | K14: 0 | L14: 0 | M14: 0 | N14: =[1]Fukushima!$AG$28 -> -81787.75843 | O14: =-[1]Distribution!$AC$42 -> 4216.198635 | P14: =+[1]Dismantlement!$AG$44 -> 2173734.809 | Q14: =SUM(D14:P14) -> 2096163.249
A15: 3 | B15: NET PLANT IN SERVICE | D15: =D13+D14 -> 0 | E15: 0 | F15: 0 | G15: 0 | H15: 0 | I15: 0 | J15: 0 | K15: 0 | L15: 0 | M15: 0 | N15: -81787.75843 | O15: 4216.198635 | P15: 2173734.809 | Q15: 2096163.249
A16: 4
A17: 5 | B17: FUTURE USE PLANT | D17: 0 | E17: 0 | F17: 0 | G17: 0 | H17: 0 | I17: 0 | J17: 0 | K17: 0 | L17: 0 | M17: 0 | N17: 0 | O17: 0 | P17: 0 | Q17: =SUM(D17:P17) -> 0
A18: 6 | B18: CWIP | D18: 0 | E18: 0 | F18: 0 | G18: 0 | H18: 0 | I18: 0 | J18: 0 | K18: 0 | L18: 0 | M18: 0 | N18: 0 | O18: 0 | P18: 0 | Q18: =SUM(D18:P18) -> 0
A19: 7 | B19: NUCLEAR FUEL | D19: 0 | E19: 0 | F19: 0 | G19: 0 | H19: 0 | I19: 0 | J19: 0 | K19: 0 | L19: 0 | M19: 0 | N19: 0 | O19: 0 | P19: 0 | Q19: =SUM(D19:P19) -> 0
A20: 8 | B20: NET UTILITY PLANT | D20: =D15+D17+D18+D19 -> 0 | E20: 0 | F20: 0 | G20: 0 | H20: 0 | I20: 0 | J20: 0 | K20: 0 | L20: 0 | M20: 0 | N20: -81787.75843 | O20: 4216.198635 | P20: 2173734.809 | Q20: 2096163.249
A21: 9
A22: 10 | B22: WORKING CAPITAL | E22: =-'[1]Mitigation bank Gain'!$Z$28 -> -2514352.23 | F22: ='[1]Pension Debit Bal'!$E$38 -> -8882026.154 | G22: 0 | H22: 0 | I22: 0 | J22: =+'[1]UAR-Late Pymt-Return Checks'!$AF$42 -> -81171.85722 | K22: 0 | L22: 0 | M22: 0 | N22: 0 | O22: 0 | P22: 0 | Q22: =SUM(D22:P22) -> -11477550.24
A23: 11 | B23: RATE BASE - INCREASE/(DECREASE) | D23: =D20+D22 -> 0 | E23: -2514352.23 | F23: -8882026.154 | G23: 0 | H23: 0 | I23: 0 | J23: -81171.85722 | K23: 0 | L23: 0 | M23: 0 | N23: -81787.75843 | O23: 4216.198635 | P23: 2173734.809 | Q23: -9381386.991
A24: 12
A25: 13 | B25: JURISDICTIONAL FACTOR (2) | D25: 0 | E25: =+'[1]rate base'!$G$545 -> 0.9668291987 | F25: ='[1]rate base'!$G$394 -> 0.9682042331 | G25: 0 | H25: 1 | I25: 1 | J25: 1 | K25: 1 | L25: 1 | M25: 0 | N25: 0.9512837372 | O25: 1 | P25: 0.9512837372
A26: 14 | B26: JURISDICTIONAL RATE BASE | D26: =+D23*D25 -> 0 | E26: -2430949.152 | F26: -8599615.321 | G26: 0 | H26: 0 | I26: 0 | J26: -81171.85722 | K26: 0 | L26: 0 | M26: ='[1]DSM peak adj - sep fac - RB'!$BF$553 -> -3812367.628 | N26: -77803.3645 | O26: 4216.198635 | P26: 2067838.573 | Q26: =SUM(D26:P26) -> -12929852.55
A27: 15
A28: 16 | B28: PRE-TAX RATE OF RETURN (D-1a) (1) | D28: 0.09964052287 | E28: =+D28 -> 0.09964052287 | F28: =+E28 -> 0.09964052287 | G28: 0.09964052287 | H28: 0.09964052287 | I28: 0.09964052287 | J28: 0.09964052287 | K28: 0.09964052287 | L28: 0.09964052287 | M28: 0.09964052287 | N28: 0.09964052287 | O28: 0.09964052287 | P28: 0.09964052287 | Q28: 0.09964052287
A29: 17
A30: 18 | B30: RETURN ON RATE BASE | D30: =+D26*D28 -> 0 | E30: -242221.0445 | F30: -856870.167 | G30: 0 | H30: 0 | I30: 0 | J30: -8088.006296 | K30: 0 | L30: 0 | M30: -379866.3038 | N30: -7752.367919 | O30: 420.1042365 | P30: 206040.5166 | Q30: =SUM(D30:P30) -> -1288337.269
A31: 19
A32: 20 | B32: COST OF DEBT (D-1a) (1) | D32: 0.01515586487 | E32: =+D32 -> 0.01515586487 | F32: =+E32 -> 0.01515586487 | G32: 0.01515586487 | H32: 0.01515586487 | I32: 0.01515586487 | J32: 0.01515586487 | K32: 0.01515586487 | L32: 0.01515586487 | M32: 0.01515586487 | N32: 0.01515586487 | O32: 0.01515586487 | P32: 0.01515586487 | Q32: 0.01515586487
A33: 21 | B33: INTEREST SYNC ADJUSTMENT | D33: =-D26*D32*0.38575 -> 0 | E33: 14212.24003 | F33: 50276.57492 | G33: 0 | H33: 0 | I33: 0 | J33: 474.5611064 | K33: 0 | L33: 0 | M33: 22288.5303 | N33: 454.8676351 | O33: -24.64947776 | P33: -12089.35947 | Q33: 75592.76505
B35: NET OPERATING INCOME
A36: =+A33+1 -> 22 | B36: OPERATION AND MAINTENANCE EXPENSE | D36: 0 | E36: 0 | F36: 0 | G36: =-'[1]WCEC water reclam'!$L$80 -> -4246490 | H36: 0 | I36: 0 | J36: ='[1]UAR-Late Pymt-Return Checks'!$Q$40 -> -13391 | K36: 0 | L36: 0 | M36: 0 | N36: 0 | O36: 0 | P36: 0 | Q36: =SUM(D36:P36) -> -4259881
A37: =A36+1 -> 23 | B37: DEPRECIATION & AMORTIZATION | D37: 0 | E37: 0 | F37: 0 | G37: 0 | H37: 0 | I37: 0 | J37: 0 | K37: 0 | L37: 0 | M37: 0 | O37: =+[1]Distribution!$AC$39 -> -3071.647526 | P37: =[1]Dismantlement!$AF$38 -> -1449156.54 | Q37: =SUM(D37:P37) -> -1452228.187
A38: 24 | B38: REVENUES | D38: 1229710 | E38: =+-'[1]Mitigation bank Gain'!$Z$20 -> 5028704.46 | F38: 0 | G38: 0 | H38: =-'[1]UAR-Late Pymt-Return Checks'!$Q$59 -> 490062 | I38: =-'[1]UAR-Late Pymt-Return Checks'!$Q$60 -> 12194 | J38: 0 | K38: =-'[1]OL revenues'!$M$6 -> 3833010.488 | L38: -9324785 | M38: 0 | N38: 0 | O38: 0 | P38: 0 | Q38: =SUM(D38:P38) -> 1268895.948
A39: 25 | B39: TOTAL - INCREASE/(DECREASE) | D39: =SUM(D36:D38) -> 1229710 | E39: 5028704.46 | F39: 0 | G39: -4246490 | H39: 490062 | I39: 12194 | J39: -13391 | K39: 3833010.488 | L39: -9324785 | M39: 0 | N39: 0 | O39: -3071.647526 | P39: -1449156.54 | Q39: -4443213.239
A40: 26
A41: 27 | B41: JURISDICTIONAL FACTOR (2) | D41: 1 | E41: ='[1]NOI 2018'!$L$474 -> 1 | F41: 0 | G41: ='[1]WCEC water reclam'!$O$80 -> 0.9496850791 | H41: 1 | I41: 1 | J41: 1 | K41: 1 | L41: 1 | M41: 1 | N41: 0 | O41: 1 | P41: 0.9512837372
A42: 28 | B42: JURISDICTIONAL NET OPERATING INCOME | D42: =+D39*D41 -> 1229710 | E42: 5028704.46 | F42: 0 | G42: -4032828.191 | H42: 490062 | I42: 12194 | J42: -13391 | K42: 3833010.488 | L42: -9324785 | M42: =+'[1]DSM peak adj - sep fac - NOI'!$BE$489 -> -584799.529 | N42: 0 | O42: -3071.647526 | P42: -1378559.049 | Q42: =SUM(D42:P42) -> -4743753.469
A46: 26 | B46: SUBTOTAL (SUM OF LINES 18, 21, & 25) | D46: =+D30+D33+D42 -> 1229710 | E46: 4800695.655 | F46: -806593.5921 | G46: -4032828.191 | H46: 490062 | I46: 12194 | J46: -21004.44519 | K46: 3833010.488 | L46: -9324785 | M46: -942377.3025 | N46: -7297.500284 | O46: -2676.192767 | P46: -1184607.892 | Q46: -5956497.972
A47: 27 | B47: RAF and Bad Debt Multiplier (3) | D47: 1.00137 | E47: 1.00137 | F47: 1.00137 | G47: 1.00137 | H47: 1.00137 | I47: 1.00137 | J47: 1.00137 | K47: 1.00137 | L47: 1.00137 | M47: 1.00137 | N47: 1.00137 | O47: 1.00137 | P47: 1.00137 | Q47: 1.00137
A48: 28 | B48: TOTAL REVENUE REQUIREMENT | D48: =+D46*D47 -> 1231394.703 | E48: 4807272.609 | F48: -807698.6253 | G48: -4038353.166 | H48: 490733.3849 | I48: 12210.70578 | J48: -21033.22128 | K48: 3838261.712 | L48: -9337559.955 | M48: -943668.3594 | N48: -7307.49786 | O48: -2679.859151 | P48: -1186230.804 | Q48: -5964658.375
B50: Notes:
B51: (1) Pre-Tax COC (debt/equity) was obtained from MFRs D-1a for the TY & SY
B52: (2) Jurisdictional factors reflected in this calculation are the same as the jusridictional factors reflected in MFRs B-2 & C-3 for the TY & SY
B53: (3) Refer to MFR C-44 for TY & SY
B54: (4) Fukushima adjustment only applies to 2018.

Sheet 18Fp1
A1: Schedule F, page 1 of 3 | I1: Docket No: 160021-EI
I2: ='18Ep3'!Q2 -> 2018 Subsequent Year Adjustment
A3: Florida Power & Light Company | I3: ='18Ep3'!Q3 -> Exhibit No. RCS-3
A4: Projected Test Year Ended December 31, 2018
A6: Company Rate Base Adjustments from June 16, 2016 Second Notice of Identified Adjustments
A7: (Thousands of Dollars)
G10: FPL June 16, 2016
A11: Line | G11: Second Notice of
A12: No. | C12: Rate Base Components | G12: Filing Adjustments
G13: (A)
A15: 1 | C15: Plant in Service
A16: 2 | C16: Accumulated Depreciation & Amortization | G16: =$I$37 -> 33803.02272
A18: 3 | C18: Net Plant in Service | G18: =G15+G16 -> 33803.02272
A20: 4 | C20: Construction Work in Progress
A21: 5 | C21: Plant Held For Future Use
A22: 6 | C22: Nuclear Fuel
A24: 7 | C24: Total Net Plant | G24: =SUM(G18:G22) -> 33803.02272
A26: 8 | C26: Working Capital Allowance | G26: =$I$43 -> 914.2279062
A27: 9 | C27: Other Rate Base Items
A29: 10 | C29: Total Rate Base | G29: =SUM(G24:G27) -> 34717.25062
A31: Source/Notes:
A32: Schedule F, page 3 of 3
C33: Description | E33: Page 3 Column Reference | G33: Dollars | I33: Thousands of $
C34: Accumulated Depreciation & Amortization
A35: =A29+1 -> 11 | C35: Depreciation Co Adj | E35: ='Fp3'!$E$9 -> (3) | G35: ='18Fp3'!$E$25 -> 33803022.72 | I35: =G35/1000 -> 33803.02272
A36: =A35+1 -> 12 | I36: =G36/1000 -> 0
A37: =A36+1 -> 13 | C37: Accumulated Depreciation & Amortization | G37: =SUM(G35:G36) -> 33803022.72 | I37: =SUM(I35:I36) -> 33803.02272
C39: Working Capital Allowance
A40: =A37+1 -> 14 | C40: ='Fp3'!$D$10 -> SJRPP - Def Credit - Dismantlement | E40: ='Fp3'!D9 -> (2) | G40: ='18Fp3'!$D$25 -> 914227.9062 | I40: =G40/1000 -> 914.2279062
A41: =A40+1 -> 15
A42: 16
A43: 17 | C43: Working Capital Allowance | G43: =SUM(G40:G42) -> 914227.9062 | I43: =SUM(I40:I42) -> 914.2279062
A45: =A43+1 -> 18 | C45: Total Rate Base | G45: =G43+G37 -> 34717250.62 | I45: =I43+I37 -> 34717.25062

Sheet 18Fp2
A1: Schedule F, page 2 of 3 | I1: Docket No: 160021-EI
I2: ='18Fp1'!I2 -> 2018 Subsequent Year Adjustment
A3: Florida Power & Light Company | I3: ='18Fp1'!$I$3 -> Exhibit No. RCS-3
A4: ='18Fp1'!$A$4 -> Projected Test Year Ended December 31, 2018
A6: Company Net Operating Income Adjustments from June 16, 2016 Second Notice of Identified Adjustments
A7: (Thousands of Dollars)
G9: FPL June 16, 2016
A10: Line | G10: Notice of
A11: No. | C11: Description | E11: Reference | G11: Filing Adjustments
G12: (A)
C13: Operating Revenues:
A14: 1 | C14: Revenue From Sales | E14: Line 14 | G14: =$I$37 -> 850
A15: 2 | C15: Other Operating Revenues | E15: Line 18
A17: 3 | C17: Total Operating Revenues | E17: Line 19 | G17: =SUM(G14:G16) -> 850
C19: Operating Expenses:
A20: 4 | C20: Other Operation & Maintenance | E20: Line 22 | G20: =$I$50 -> -25.67387165
A21: 5 | C21: Fuel & Interchange
A22: 6 | C22: Purchased Power
A23: 7 | C23: Deferred Costs
A24: 8 | C24: Depreciation & Amortization | E24: Line 25 | G24: =$I$55 -> -23660.46872
A25: 9 | C25: Taxes Other Than Income Taxes
A26: 10 | C26: Income Taxes | E26: Line 31 | G26: =$I$63 -> 9261.846942
A27: 11 | C27: (Gain)/Loss on Disposal of Plant
A28: 12 | C28: Total Operating Expenses | G28: =SUM(G20:G27) -> -14424.29565
A30: 13 | C30: Net Operating Income | G30: =G17-G28 -> 15274.29565
A32: Source/Notes:
A33: Schedule F, page 3 of 3
C34: Description | E34: Page 3 Column Reference | G34: NOI Dollars (a) | I34: Thousands of NOI $
G35: (B) | I35: (C )
C36: Revenues (Decrease) Increase
A37: =A30+1 -> 14 | C37: ='Fp3'!$C$10 -> EDR | E37: ='Fp3'!$C$9 -> (1) | G37: ='18Fp3'!$C$37 -> 850000 | H37: (a) | I37: =G37/1000 -> 850
C39: Other Operating Revenues
A40: =A37+1 -> 15
A41: =A40+1 -> 16
A42: =A41+1 -> 17
A43: 18 | C43: Other Operating Revenues | G43: =SUM(G40:G42) -> 0 | I43: =SUM(I40:I42) -> 0
A45: =A43+1 -> 19 | C45: Total Operating Revenues | G45: =G43+G37 -> 850000 | I45: =I43+I37 -> 850
C47: Other Operation & Maintenance
A48: =A45+1 -> 20 | C48: ='Fp3'!$C$10 -> EDR | E48: ='Fp3'!$C$9 -> (1) | G48: ='18Fp3'!$C$35 -> -25673.87165 | I48: =G48/1000 -> -25.67387165
A49: =A48+1 -> 21
A50: 22 | C50: Other Operation & Maintenance | G50: =SUM(G48:G49) -> -25673.87165 | I50: =SUM(I48:I49) -> -25.67387165
C52: Depreciation & Amortization
A53: =A50+1 -> 23 | C53: ='Ep3'!$K$11 -> Depreciation Co Adj | E53: ='Fp3'!$E$9 -> (3) | G53: ='18Fp3'!$E$41 -> -23660468.72 | I53: =G53/1000 -> -23660.46872
A54: =A53+1 -> 24
A55: =A54+1 -> 25 | C55: Depreciation & Amortization | G55: =SUM(G53:G54) -> -23660468.72 | I55: =SUM(I53:I54) -> -23660.46872
C57: Income Taxes
A58: =A55+1 -> 26 | C58: Revenue | G58: Line 19 | I58: =$I$45 -> 850
A59: =A58+1 -> 27 | C59: Pre-Tax Expenses | G59: Lines 22 + 25 | I59: =I50+I55 -> -23686.14259
A60: 28 | C60: Synchronized Interest (c ) | G60: Line 37 | I60: =G73 -> 526.1699589
A61: 29 | C61: Taxable Income | I61: =I58-I59-I60 -> 24009.97263
A62: 30 | C62: Combined State and Federal Income Tax Rate Used | I62: =G66 -> 0.38575
A63: 31 | C63: Income Tax Expense | G63: Line 29 x Line 30 | I63: =I61*I62 -> 9261.846942
A65: (a) | C65: Page 3, lines 22-28 state the income statement amounts as net operating income impacts
A66: =A63+1 -> 32 | C66: Combined State and Federal Income Tax Rate Used | G66: 0.38575
A67: =A66+1 -> 33 | C67: NOI factor: 1 minus Income Tax Rate | G67: =1-G66 -> 0.61425
A68: 34 | C68: 1 divided by NOI factor | G68: =1/G67 -> 1.628001628 | H68: (b)
A70: (c ) | C70: Synchronized Interest
A71: =A68+1 -> 35 | C71: Rate Base | E71: Page 1 | G71: ='18Fp1'!$G$29 -> 34717.25062
A72: =A71+1 -> 36 | C72: FPL Interest | E72: Page 3 | G72: ='18Fp3'!$E$31 -> 0.01515586487
A73: 37 | C73: Synchronized Interest | G73: =G71*G72 -> 526.1699589

Sheet 18Fp3
A1: Schedule F, page 3 of 3 | F1: ='SchA-1'!G1 -> Docket No: 160021-EI
F2: ='18Fp2'!$I$2 -> 2018 Subsequent Year Adjustment
A3: Florida Power & Light Company | F3: ='18Fp2'!$I$3 -> Exhibit No. RCS-3
A4: ='18Fp2'!$A$4 -> Projected Test Year Ended December 31, 2018
A6: Company Rate Base and Net Operating Income Adjustments from June 16, 2016 Second Notice of Identified Adjustments
C8: 2018
C9: (1) | D9: (2) | E9: (3) | F9: Total
A10: Line No. | B10: DESCRIPTION | C10: EDR | D10: SJRPP - Def Credit - Dismantlement | E10: Depreciation Co Adj (4)
B11: RATE BASE
A12: 1 | B12: PLANT IN SERVICE | C12: 0 | D12: 0 | E12: 0 | F12: =SUM(C12:E12) -> 0
A13: =+A12+1 -> 2 | B13: DEPRECIATION & AMORT RESERVE | C13: 0 | D13: 0 | E13: 35229695.57 | F13: =SUM(C13:E13) -> 35229695.57
A14: 3 | B14: NET PLANT IN SERVICE | C14: =C12+C13 -> 0 | D14: =D12+D13 -> 0 | E14: 35229695.57 | F14: 35229695.57
A15: 4
A16: 5 | B16: FUTURE USE PLANT | C16: 0 | D16: 0 | E16: 0 | F16: =SUM(C16:E16) -> 0
A17: 6 | B17: CWIP | C17: 0 | D17: 0 | E17: 0 | F17: =SUM(C17:E17) -> 0
A18: 7 | B18: NUCLEAR FUEL | C18: 0 | D18: 0 | E18: 0 | F18: =SUM(C18:E18) -> 0
A19: 8 | B19: NET UTILITY PLANT | C19: =C14+C16+C17+C18 -> 0 | D19: =D14+D16+D17+D18 -> 0 | E19: 35229695.57 | F19: 35229695.57
A20: 9
A21: 10 | B21: WORKING CAPITAL | D21: 961046.5 | E21: 0 | F21: =SUM(C21:E21) -> 961046.5
A22: 11 | B22: RATE BASE - INCREASE/(DECREASE) | C22: =C19+C21 -> 0 | D22: =D19+D21 -> 961046.5 | E22: 35229695.57 | F22: 36190742.07
A23: 12
A24: 13 | B24: JURISDICTIONAL FACTOR (2) | C24: 0 | D24: 0.9512837372 | E24: 0.9595036849
A25: 14 | B25: JURISDICTIONAL RATE BASE | C25: =+C22*C24 -> 0 | D25: =+D22*D24 -> 914227.9062 | E25: 33803022.72 | F25: =SUM(C25:E25) -> 34717250.62
A26: 15
A27: 16 | B27: PRE-TAX RATE OF RETURN (D-1a) (1) | C27: 0.09964052287 | D27: 0.09964052287 | E27: =+C27 -> 0.09964052287 | F27: 0.09964052287
A28: 17
A29: 18 | B29: RETURN ON RATE BASE | C29: =+C25*C27 -> 0 | D29: =+D25*D27 -> 91094.14659 | E29: 3368150.858 | F29: =SUM(C29:E29) -> 3459245.005
A30: 19
A31: 20 | B31: COST OF DEBT (D-1a) (1) | C31: 0.01515586487 | D31: 0.01515586487 | E31: =+C31 -> 0.01515586487 | F31: 0.01515586487
A32: 21 | B32: INTEREST SYNC ADJUSTMENT | C32: =-C25*C31*0.38575 -> 0 | D32: =-D25*D31*0.38575 -> -5344.919058 | E32: -197625.1426 | F32: -202970.0617
B34: NET OPERATING INCOME
A35: =+A32+1 -> 22 | B35: OPERATION AND MAINTENANCE EXPENSE | C35: -25673.87165 | D35: 0 | E35: 0 | F35: =SUM(C35:E35) -> -25673.87165
A36: =A35+1 -> 23 | B36: DEPRECIATION & AMORTIZATION | C36: 0 | E36: -24563848.43
A37: 24 | B37: REVENUES | C37: 850000 | D37: 0 | E37: 0 | F37: =SUM(C37:E37) -> 850000
A38: 25 | B38: TOTAL - INCREASE/(DECREASE) | C38: =SUM(C35:C37) -> 824326.1283 | D38: =SUM(D35:D37) -> 0 | E38: -24563848.43 | F38: 824326.1283
A39: 26
A40: 27 | B40: JURISDICTIONAL FACTOR (2) | C40: 1 | D40: 0 | E40: 0.9632232014
A41: 28 | B41: JURISDICTIONAL NET OPERATING INCOME | C41: =+C38*C40 -> 824326.1283 | D41: =+D38*D40 -> 0 | E41: -23660468.72 | F41: =SUM(C41:E41) -> -22836142.59
A45: =A41+1 -> 29 | B45: SUBTOTAL (SUM OF LINES 18, 21, & 25) | C45: =+C29+C32+C41 -> 824326.1283 | D45: =+D29+D32+D41 -> 85749.22753 | E45: -20489943 | F45: -19579867.65
A46: =A45+1 -> 30 | B46: RAF and Bad Debt Multiplier (3) | C46: 1.00137 | D46: 1.00137 | E46: 1.00137 | F46: 1.00137
A47: =A46+1 -> 31 | B47: TOTAL REVENUE REQUIREMENT | C47: =+C45*C46 -> 825455.4551 | D47: =+D45*D46 -> 85866.70397 | E47: -20518014.22 | F47: -19606692.07
A49: Notes:
A50: (1) Pre-Tax COC (debt/equity) was obtained from MFRs D-1a for the TY & SY
A51: (2) Jurisdictional factors reflected in this calculation are the same as the jusridictional factors reflected in MFRs B-2 & C-3 for the TY & SY
A52: (3) Refer to MFR C-44 for TY & SY
A53: (4) Jurisdictional factor reflected for this adjustment is a composite rate. Jurisdictional factors by function are reflected in the supporting tabs in this workbook.
A55: Source: | B55: [Attachment No. 1 - Second Notice of Identified Adjustments Workpapers.xlsx]rev req

Sheet RCS-4 Contents
A3: Florida Power & Light Company
A4: Docket No. 160021-EI
A5: Exhibit RCS-4
A6: Accompanying the Direct Testimony of Ralph Smith | R6: Schedule | T6: Exhibit LA-1
A7: Revenue Requirement Schedules - Okeechobee Clean Energy Center
A8: Limited Scope Adjustment
A9: CONTENTS
A10: Schedule Number | B10: Description | C10: No. of Pages | D10: Confi- dential | E10: Page No. | K10: Begin | L10: End | N10: Range
K11: 1 | M11: -
A12: =G12 -> A-1 | B12: Calculation of Revenue Deficiency (Sufficiency) | C12: 1 | D12: No | E12: =N12 -> 2 | G12: A-1 | K12: 2 | L12: =K11+C12 -> 2 | M12: - | N12: =IF(K12=L12,L12,K12&M12&L12) -> 2 | R12: =$R$6&A12 -> Schedule A-1
A13: B-1 | B13: Adjusted Rate Base | C13: 1 | D13: No | E13: =N13 -> 3 | G13: B-1 | K13: =L12+1 -> 3 | L13: =L12+C13 -> 3 | M13: - | N13: 3 | R13: Schedule B-1
A14: C-1 | B14: Adjusted Net Operating Income | C14: 1 | D14: No | E14: 4 | G14: C-1 | K14: =L13+1 -> 4 | L14: =L13+C14 -> 4 | M14: - | N14: =IF(K14=L14,L14,K14&M14&L14) -> 4 | R14: =$R$6&A14 -> Schedule C-1
A15: C-2 | B15: ='SchC-5'!$A$6 -> Interest Synchronization Adjustment | C15: 1 | D15: No | E15: 5 | G15: C-2 | K15: =L14+1 -> 5 | L15: =L14+C15 -> 5 | M15: - | N15: 5 | R15: Schedule C-2
A16: =G19 -> D | B16: Capital Structure and Cost Rates | C16: 1 | D16: No | E16: 6 | G16: C-3 | K16: 6 | L16: 6 | M16: - | N16: 6 | R16: =$R$6&#REF! -> 
G17: C-4 | K17: 7 | L17: 6 | M17: - | N17: 7-6 | R17: Schedule
G18: C-5 | K18: 7 | L18: 6 | M18: - | N18: 7-6 | R18: Schedule
G19: D | K19: 7 | L19: 6 | M19: - | N19: 7-6 | R19: =$R$6&A16 -> Schedule D
B21: Total Pages (including Contents page) | C21: =SUM(C12:C20)+1 -> 6

Sheet 19-SchA-1
A1: Schedule A-1 | I1: Docket No: 160021-EI
I2: Okeechobee Limited Scope 2019
A3: Florida Power & Light Company | I3: Exhibit No. RCS-4
A4: Projected Year Ended May 31, 2020
A6: Adjusted Revenue Deficiency - Okeechobee Limited Scope Increase
A7: (Thousands of Dollars)
E9: Per | G9: Per
A10: Line | E10: Company | G10: OPC | I10: Col. (B)
A11: No. | C11: Description | E11: Amount | G11: Amount | I11: Reference | K11: workpaper calcs
E12: (A) | G12: (B)
A14: 1 | C14: Jurisdictional Adjusted Rate Base | E14: ='19-SchB-1p1'!E28 -> 1063315 | G14: ='19-SchB-1p1'!I28 -> 1063314 | I14: Exh. RCS-4, Sch. B-1
A15: 2 | C15: Required Rate of Return | E15: ='19-D'!$S$21 -> 0.08873005647 | G15: ='19-D'!$S$31 -> 0.05170974738 | I15: Exh. RCS-2, Sch. D | K15: 94348 | L15: Required NOI
K16: =E14 -> 1063315 | L16: RB
A17: 3 | C17: Jurisdictional Income Required | E17: =E14*E15 -> 94348 | G17: =G14*G15 -> 54983.69832 | I17: Line 1 x Line 2 | K17: =K15/K16 -> 0.08873005647
A18: 4 | C18: Jurisdictional Adj. Net Operating Income | E18: ='19-SchC-1p1'!E33 -> -33868 | G18: ='19-SchC-1p1'!I33 -> -34228 | I18: Exh. RCS-4, Sch. C-1
A20: 5 | C20: Income Deficiency (Sufficiency) | E20: =E17-E18+1 -> 128217 | G20: =G17-G18 -> 89211.69832 | I20: Line 3 - Line 4
A22: 6 | C22: Net Operating Income Multiplier | E22: ='SchA-1'!E23 -> 1.63024 | G22: =E22 -> 1.63024 | I22: MFR Sch. A-1
A24: 7 | C24: Revenue Deficiency (Sufficiency) | E24: =E20*E22 -> 209024.4821 | G24: =G20*G22 -> 145436.4791 | I24: Line 5 x Line 7
A26: =A24+1 -> 8 | C26: Adjustment (Reduction) to FPL proposed increase | G26: =G24-E24 -> -63588.00301
C28: Source/Notes:
C29: Col. (A): MFR Schedule A-1 - Okeechobee Limited Scope Increase
C30: FPL projects an in-service date of 6/1/2019 for the Okeechobee Clean Energy Center

Sheet 19-SchB-1p1
A1: Schedule B-1 | I1: Docket No: 160021-EI
I2: Okeechobee Limited Scope 2019
A3: Florida Power & Light Company | I3: ='19-SchA-1'!I3 -> Exhibit No. RCS-4
A4: Projected Year Ended May 31, 2020
A6: Adjusted Rate Bases - Okeechobee Limited Scope Increase
A7: (Thousands of Dollars)
E8: Adjusted | I8: Adjusted
E9: Juris. Total | I9: Juris. Total
A10: Line | E10: Amount per | G10: OPC | I10: Amount
A11: No. | C11: Rate Base Components | E11: Company | G11: Adjustments | I11: per Citizens
E12: (A) | G12: (B) | I12: (C)
A14: 1 | C14: Plant in Service | E14: 1165226 | G14: 0 | I14: =E14+G14 -> 1165226
A15: 2 | C15: Accumulated Depreciation & Amortization | E15: -20553 | G15: 0 | I15: =SUM(E15:G15) -> -20553
A17: 3 | C17: Net Plant in Service | E17: =E14+E15 -> 1144673 | G17: =G14+G15 -> 0 | I17: =I14+I15 -> 1144673
A19: 4 | C19: Construction Work in Progress | E19: 0 | I19: 0
A20: 5 | C20: Plant Held For Future Use | E20: 0 | I20: 0
A21: 6 | C21: Nuclear Fuel | E21: 0 | I21: 0
A23: 7 | C23: Total Net Plant | E23: =SUM(E17:E21) -> 1144673 | I23: =SUM(I17:I21) -> 1144673
A25: 8 | C25: Working Capital Allowance | E25: 0 | I25: 0
A26: 9 | C26: Other Rate Base Items | E26: -81359 | G26: 0 | I26: -81359
A28: 10 | C28: Total Rate Base | E28: =SUM(E23:E26)+1 -> 1063315 | G28: =SUM(G23:G26) -> 0 | I28: =SUM(I23:I26) -> 1063314
C32: Source/Notes:
C33: Col. (A): Company MFR Schedule B-1 - Okeechobee Limited Scope Increase
C34: Col. (B): Exhibit No. RCS-4, Schedule B-1, page 2

Sheet 19-SchC-1p1
A1: Schedule C-1 | I1: Docket No: 160021-EI
I2: Okeechobee Limited Scope 2019
A3: Florida Power & Light Company | I3: ='19-SchA-1'!I3 -> Exhibit No. RCS-4
A4: Projected Year Ended May 31, 2020
A6: Adjusted Net Operating Income - Okeechobee Limited Scope Increase
A7: (Thousands of Dollars)
E9: Adjusted | I9: Adjusted
E10: Jurisdictional | I10: Jurisdictional
A11: Line | E11: Total per | G11: OPC | I11: Total
A12: No. | C12: Description | E12: Company | G12: Adjustments | I12: per OPC
E13: (A) | G13: (B) | I13: (C)
C14: Operating Revenues:
A15: 1 | C15: Sales From Electricity | E15: 0 | I15: =E15+G15 -> 0
A16: 2 | C16: Other Operating Revenues | E16: 0 | I16: =E16+G16 -> 0
A17: 3 | C17: Total Operating Revenues | E17: =SUM(E15:E16) -> 0 | G17: =SUM(G15:G16) -> 0 | I17: =SUM(I15:I16) -> 0
C19: Operating Expenses:
A20: 4 | C20: Operation & Maintenance: | E20: 0 | I20: =E20+G20 -> 0
A21: 5 | C21: Fuel | E21: 0 | I21: 0
A22: 6 | C22: Purchased Power | E22: 0 | I22: 0
A23: 7 | C23: Other | E23: 7905 | I23: 7905
A24: 8 | C24: Depreciation & Amortization | E24: 41105 | I24: 41105
A25: 9 | C25: Decommissioning Expense | E25: 0 | I25: 0
A26: 10 | C26: Taxes Other Than Income Taxes | E26: 17110 | I26: 17110
A27: 11 | C27: Income Taxes - Current | E27: -161446 | G27: ='19-SchC2_int sync'!$E$25 -> 360 | I27: -161086
A28: 12 | C28: Deferred Income Taxes - Net | E28: 129194 | I28: 129194
A29: 13 | C29: Investment Tax Credit - Net | E29: 0 | I29: 0
A30: 14 | C30: (Gain)/Loss on Disposal of Plant | E30: 0 | I30: 0
A31: 15 | C31: Total Operating Expenses | E31: =SUM(E20:E30) -> 33868 | G31: =SUM(G20:G30) -> 360 | I31: =SUM(I20:I30) -> 34228
A33: 16 | C33: Net Operating Income | E33: =E17-E31 -> -33868 | G33: =G17-G31 -> -360 | I33: =I17-I31 -> -34228
C36: Source/Notes:
C37: Col. (A): FPL's MFR Schedule C-1 - Okeechobee Limited Scope Increase
C38: Col. (B): Exhibit RCS-4, Schedule C-2, interest synchronization adjustment to income tax expense

Sheet 19-SchC2_int sync
A1: Schedule C-2 | G1: ='19-SchA-1'!I1 -> Docket No: 160021-EI
G2: ='19-SchA-1'!I2 -> Okeechobee Limited Scope 2019
A3: Florida Power & Light Company | G3: ='19-SchA-1'!I3 -> Exhibit No. RCS-4
A4: ='19-SchC-1p1'!$A$4 -> Projected Year Ended May 31, 2020
A5: Okeechobee Limited Scope Increase
A7: Interest Synchronization Adjustment
A8: (Thousands of Dollars)
A10: Line
A11: No. | C11: Description | E11: Amount | G11: Reference
A13: 1 | C13: Adjusted Jurisdictional Rate Base, per Citizens | E13: ='19-SchB-1p1'!I28 -> 1063314 | G13: Exh. RCS-4, Sch. B-1
A15: 2 | C15: Weighted Cost of Debt, per OPC | E15: ='19-D'!$G$55 -> 0.01840086072 | G15: Exh. RCS-4, Sch. D
A17: 3 | C17: Interest Deduction for Income Taxes | E17: =ROUND(E13*E15,0) -> 19566
A19: 4 | C19: Jurisdictional Interest Deduction, per FPL | E19: 20500 | G19: MFR Schedule C-23
A21: 5 | C21: Increase in Deductible Interest | E21: =E17-E19 -> -934
A23: 6 | C23: Combined Income Tax Rate | E23: =ROUND('SchC-4'!$G$24,6) -> 0.38575
A25: 7 | C25: Increase (Reduction) to Income Tax Expense | E25: =-ROUND(E21*E23,0) -> 360

Sheet 19-D
A1: Schedule D | S1: ='18-SchA-1'!$I$1 -> Docket No: 160021-EI
S2: ='19-SchA-1'!$I$2 -> Okeechobee Limited Scope 2019
A3: Florida Power & Light Company | S3: ='19-SchA-1'!$I$3 -> Exhibit No. RCS-4
A4: ='19-SchA-1'!$A$4 -> Projected Year Ended May 31, 2020
A5: ='19-SchC2_int sync'!$A$5 -> Okeechobee Limited Scope Increase
A6: Cost of Capital
A7: (Thousands of Dollars)
E8: Jurisdictional | G8: OPC | M8: Per
E9: Capital | G9: Adjustments | K9: OPC | M9: Citizens
A10: Line | E10: Structure Per | G10: to | I10: Adjusted | K10: Rate Base | M10: Adjusted | Q10: Cost | S10: Weighted
A11: No. | C11: Description | E11: Company | G11: Cap. Struct. | I11: Amounts | K11: Adjustments | M11: Amounts | O11: Ratio | Q11: Rate | S11: Cost Rate
E12: (A) | G12: (B) | I12: (C) | K12: (D) | M12: (E) | O12: (F) | Q12: (G) | S12: (H)
C13: Per Company
A14: 1 | C14: Long Term Debt | E14: 443868 | I14: =SUM(E14:G14) -> 443868 | M14: =SUM(I14:K14) -> 443868 | O14: =I14/$I$21 -> 0.396075191 | Q14: 0.0487 | S14: =O14*Q14 -> 0.0192888618
A15: =A14+1 -> 2 | C15: Short Term Debt | I15: 0 | M15: =SUM(I15:K15) -> 0 | O15: 0 | Q15: 0.0268 | S15: =O15*Q15 -> 0
A16: =A15+1 -> 3 | C16: Preferred Stock | I16: 0 | M16: 0 | O16: 0 | Q16: 0 | S16: 0
A17: 4 | C17: Common Equity | E17: 676799 | I17: 676799 | M17: 676799 | O17: 0.6039257013 | Q17: 0.115 | S17: 0.06945145565
A18: 5 | C18: Customer Deposits | I18: 0 | M18: 0 | O18: 0 | Q18: 0.0204 | S18: 0
A19: 6 | C19: Deferred Taxes | I19: 0 | M19: 0 | O19: 0 | Q19: 0 | S19: 0
A20: 7 | C20: Investment Tax Credits | I20: 0 | M20: 0 | O20: 0 | Q20: 0.0887 | S20: 0 | U20: =SUM(S14:S20) -> 0.08874031745 | V20: this sch
A21: 8 | C21: Total | E21: =SUM(E14:E20)-1 -> 1120666 | G21: =SUM(G14:G20) -> 0 | I21: =SUM(I14:I20)-1 -> 1120666 | M21: =SUM(M14:M20)-1 -> 1120666 | O21: =SUM(O14:O20) -> 1.000000892 | S21: =U20+U22 -> 0.08873005647 | U21: ='19-SchA-1'!$K$17 -> 0.08873005647 | V21: sch A
U22: =U21-U20 -> -1.026097976e-05 | V22: diff
C23: Per OPC - Uses Recommended 2018 Capital Structure - See Exhibit RCS-3, Schedule D
A24: =A21+1 -> 9 | C24: Long Term Debt | E24: ='18-D'!E24 -> 10024107 | G24: =M37 -> 2392637.212 | I24: =SUM(E24:G24) -> 12416744.21 | K24: =O24*K31 -> 146137.3591 | M24: =SUM(I24:K24) -> 12562881.57 | O24: =I24/$I$31 -> 0.3665903567 | Q24: =Q14 -> 0.0487 | S24: =O24*Q24 -> 0.01785295037
A25: =A24+1 -> 10 | C25: Short Term Debt | E25: ='18-D'!E25 -> 321611 | G25: =M38 -> 76764.78777 | I25: 398375.7878 | K25: =O25*K31 -> 4688.635327 | M25: =SUM(I25:K25) -> 403064.4231 | O25: =I25/$I$31 -> 0.01176159544 | Q25: =Q15 -> 0.0268 | S25: =O25*Q25 -> 0.0003152107578
A26: 11 | C26: Preferred Stock | E26: ='18-D'!E26 -> 0 | G26: 0 | I26: 0 | K26: =O26*K31 -> 0 | M26: 0 | O26: 0 | Q26: 0 | S26: 0
A27: 12 | C27: Common Equity | E27: ='18-D'!E27 -> 15284522 | G27: =M39 -> -2469402 | I27: 12815120 | K27: =O27*K31 -> 150825.9945 | M27: 12965945.99 | O27: 0.3783519521 | Q27: =SchD!$Q$27 -> 0.0875 | S27: 0.03310579581
A28: 13 | C28: Customer Deposits | E28: ='18-D'!E28 -> 386360 | G28: 0 | I28: 386360 | K28: =O28*K31 -> 4547.216976 | M28: 390907.217 | O28: 0.01140684287 | Q28: =Q18 -> 0.0204 | S28: 0.0002326995946
A29: 14 | C29: Deferred Taxes | E29: ='18-D'!E29 -> 7753738 | G29: 0 | I29: 7753738 | K29: =O29*K31 -> 91256.67528 | M29: 7844994.675 | O29: 0.2289203619 | Q29: 0 | S29: 0
A30: 15 | C30: Investment Tax Credits | E30: ='18-D'!E30 -> 100559 | G30: 0 | I30: 100559 | K30: =O30*K31 -> 1183.516906 | M30: 101742.5169 | O30: 0.002968890963 | Q30: =(Q24*(M24/($M$24+$M$27)))+(Q27*(M27/(M24+M27))) -> 0.06840629882 | S30: 0.0002030908424
A31: 16 | C31: Total | E31: =SUM(E24:E30) -> 33870897 | G31: =SUM(G24:G30) -> -4.656612873e-10 | I31: =SUM(I24:I30) -> 33870897 | K31: ='18-D'!$K$31 -> 398639.3981 | M31: =SUM(M24:M30) -> 34269536.4 | O31: =SUM(O24:O30) -> 1 | S31: =SUM(S24:S30) -> 0.05170974738
E33: Per FPL | I33: Capitalization | M33: Adjs. To
E34: 2018 | G34: Effective | I34: Ratio | K34: Revised | M34: Reflect OPC
C35: Ratio of Debt & Equity Components | E35: Amounts | G35: FPL Ratio | I35: Per OPC^ | K35: Allocations | M35: Cap. Struct.
E36: (a) | G36: (b) | I36: (c ) | K36: (d) | M36: (e) = (d - a)
A37: =A31+1 -> 17 | C37: Long Term Debt | E37: =E24 -> 10024107 | G37: =E37/$E$40 -> 0.3911046873 | I37: =K45 -> 0.4844568062 | K37: =$E$40*I37 -> 12416744.21 | M37: =K37-E37 -> 2392637.212
A38: =A37+1 -> 18 | C38: Short Term Debt | E38: =E25 -> 321611 | G38: =E38/$E$40 -> 0.01254810724 | I38: =K46 -> 0.01554319381 | K38: =$E$40*I38 -> 398375.7878 | M38: =K38-E38 -> 76764.78777
A39: 19 | C39: Common Equity | E39: =E27 -> 15284522 | G39: =E39/$E$40 -> 0.5963472055 | I39: 0.5 | K39: =$E$40*I39 -> 12815120 | M39: =K39-E39 -> -2469402
E40: =SUM(E37:E39) -> 25630240 | G40: =SUM(G37:G39) -> 1 | I40: =SUM(I37:I39) -> 1 | K40: =SUM(K37:K39) -> 25630240 | M40: =SUM(M37:M39) -> 0
E42: Per FPL | G42: Long/Short | I42: Per OPC | K42: OPC Adjusted
C43: ^ Ratio of Debt Components | E43: Amounts | G43: Term Ratio | I43: Debt Ratio | K43: Debt Ratio
E44: (f) | G44: (g) | I44: (h) | K44: (i) = (g x h)
A45: =A39+1 -> 20 | C45: Long Term Debt | E45: =E37 -> 10024107 | G45: =E45/E47 -> 0.9689136124 | K45: =G45*$I$47 -> 0.4844568062
A46: =A45+1 -> 21 | C46: Short Term Debt | E46: =E38 -> 321611 | G46: =E46/E47 -> 0.03108638762 | K46: =G46*$I$47 -> 0.01554319381
A47: 22 | E47: =E45+E46 -> 10345718 | G47: =G45+G46 -> 1 | I47: 0.5 | K47: =K45+K46 -> 0.5
A49: Notes and Source
A50: The per Company amounts are from MFR Sch. D-1a.
A51: Column (c): Capitalization Ratio per OPC sponsored by OPC Witness Kevin O'Donnell
A52: Column (G): Lines 1 - 3 and 5 based on per-FPL Cost rates. Return on Equity on line 12 is sponsored by OPC witness Randall Woolridge. Lines 7 and 15 are fall-out calculations.
A54: FPL Weighted Cost of Debt for Interest Synchronization | G54: =S14+S15+S18 -> 0.0192888618 | I54: Col. H, lines 1, 2 and 5
A55: OPC Weighted Cost of Debt for Interest Synchronization | G55: =S24+S25+S28 -> 0.01840086072 | I55: Col. H, lines 9, 10 and 13
